Workbook

Sheet Charts

Sheet 75 fpm
A4: Line speed | B4: 75 fpm | G4: Line speed | H4: 75 fpm | M4: Line speed | N4: 75 fpm
A5: Delta T | B5: ~ 25 F | G5: Delta T | H5: ~ 25 F | M5: Delta T | N5: ~ 25 F
A6: Line Tension | B6: 1 pli | G6: Line Tension | H6: 2 pli | M6: Line Tension | N6: 3 pli
A7: Air and roller tempertures determined from readings taken over a ~9 minute span | G7: Air and roller tempertures determined from readings taken over a ~9 minute span | M7: Air and roller tempertures determined from readings taken over a ~9 minute span
A8: Material tempertures determined from readings taken over a 2.5minute span | G8: Material tempertures determined from readings taken over a 2.5minute span | M8: Material tempertures determined from readings taken over a 2.5minute span
A10: Material Temp | E10: =AVERAGE(E12:E24) -> 71.92281818 | F10: =AVERAGE(F12:F24) -> 94.90492308 | G10: Material Temp | K10: =AVERAGE(K12:K24) -> 71.80693007 | L10: =AVERAGE(L12:L24) -> 94.81881119 | M10: Material Temp | Q10: =AVERAGE(Q12:Q24) -> 71.98283916 | R10: =AVERAGE(R12:R24) -> 95.18248951
A11: Angular Position | B11: Avg 2.50" Left | C11: Avg of R&L | D11: Avg 2.50" Right | E11: Avg Air Temp | F11: Avg Roller Temp | H11: Avg 2.50" Left | I11: Avg of R&L | J11: Avg 2.50" Right | K11: Avg Air Temp | L11: Avg Roller Temp | N11: Avg 2.50" Left | O11: Avg of R&L | P11: Avg 2.50" Right | Q11: Avg Air Temp | R11: Avg Roller Temp
A12: 0 | B12: =AVERAGE('75_JULY'!B12,'75_Aug'!B12) -> 79.68 | C12: =AVERAGE(B12,D12) -> 78.92 | D12: =AVERAGE('75_JULY'!D12,'75_Aug'!D12) -> 78.16 | E12: =AVERAGE('75_JULY'!E12,'75_Aug'!E12) -> 72.66509091 | F12: =AVERAGE('75_JULY'!F12,'75_Aug'!F12) -> 94.60809091 | G12: =AVERAGE('75_JULY'!G12,'75_Aug'!G12)+0.0001 -> 0.0001 | H12: =AVERAGE('75_JULY'!H12,'75_Aug'!H12) -> 78.645 | I12: =AVERAGE(H12,J12) -> 78.8725 | J12: =AVERAGE('75_JULY'!J12,'75_Aug'!J12) -> 79.1 | K12: =AVERAGE('75_JULY'!K12,'75_Aug'!K12) -> 72.17836364 | L12: =AVERAGE('75_JULY'!L12,'75_Aug'!L12) -> 95.05572727 | M12: =AVERAGE('75_JULY'!M12,'75_Aug'!M12)+0.0001 -> 0.0001 | N12: =AVERAGE('75_JULY'!N12,'75_Aug'!N12) -> 78.775 | O12: =AVERAGE(N12,P12) -> 78.34 | P12: =AVERAGE('75_JULY'!P12,'75_Aug'!P12) -> 77.905 | Q12: =AVERAGE('75_JULY'!Q12,'75_Aug'!Q12) -> 71.39990909 | R12: =AVERAGE('75_JULY'!R12,'75_Aug'!R12) -> 95.42745454
A13: =AVERAGE('75_JULY'!A13,'75_Aug'!A13) -> 2.5 | B13: =AVERAGE('75_Aug'!B13) -> 82.71 | C13: =AVERAGE(B13,D13) -> 82.325 | D13: =AVERAGE('75_Aug'!D13) -> 81.94 | E13: =AVERAGE('75_Aug'!E13) -> 71.37763636 | F13: =AVERAGE('75_Aug'!F13) -> 95.72309091 | G13: =AVERAGE('75_Aug'!G13) -> 2.5 | H13: =AVERAGE('75_Aug'!H13) -> 82.24 | I13: =AVERAGE(H13,J13) -> 81.555 | J13: =AVERAGE('75_Aug'!J13) -> 80.87 | K13: =AVERAGE('75_Aug'!K13) -> 72.404 | L13: =AVERAGE('75_Aug'!L13) -> 94.58490909 | M13: =AVERAGE('75_Aug'!M13) -> 2.5 | N13: =AVERAGE('75_Aug'!N13) -> 83.16 | O13: =AVERAGE(N13,P13) -> 82.055 | P13: =AVERAGE('75_Aug'!P13) -> 80.95 | Q13: =AVERAGE('75_Aug'!Q13) -> 72.492 | R13: =AVERAGE('75_Aug'!R13) -> 94.87563636
A14: =AVERAGE('75_JULY'!A14,'75_Aug'!A14) -> 5 | B14: =AVERAGE('75_JULY'!B14,'75_Aug'!B14) -> 87.32 | C14: =AVERAGE(B14,D14) -> 86.7825 | D14: =AVERAGE('75_JULY'!D14,'75_Aug'!D14) -> 86.245 | E14: =AVERAGE('75_JULY'!E14,'75_Aug'!E14) -> 72.42154545 | F14: =AVERAGE('75_JULY'!F14,'75_Aug'!F14) -> 94.74436364 | G14: =AVERAGE('75_JULY'!G14,'75_Aug'!G14) -> 5 | H14: =AVERAGE('75_JULY'!H14,'75_Aug'!H14) -> 87.525 | I14: =AVERAGE(H14,J14) -> 87.385 | J14: =AVERAGE('75_JULY'!J14,'75_Aug'!J14) -> 87.245 | K14: =AVERAGE('75_JULY'!K14,'75_Aug'!K14) -> 72.61509091 | L14: =AVERAGE('75_JULY'!L14,'75_Aug'!L14) -> 94.90845455 | M14: =AVERAGE('75_JULY'!M14,'75_Aug'!M14) -> 5 | N14: =AVERAGE('75_JULY'!N14,'75_Aug'!N14) -> 87.67 | O14: =AVERAGE(N14,P14) -> 87.325 | P14: =AVERAGE('75_JULY'!P14,'75_Aug'!P14) -> 86.98 | Q14: =AVERAGE('75_JULY'!Q14,'75_Aug'!Q14) -> 73.344 | R14: =AVERAGE('75_JULY'!R14,'75_Aug'!R14) -> 94.89236364
A15: =AVERAGE('75_JULY'!A15,'75_Aug'!A15) -> 10 | B15: =AVERAGE('75_JULY'!B15,'75_Aug'!B15) -> 91.715 | C15: =AVERAGE(B15,D15) -> 91.65 | D15: =AVERAGE('75_JULY'!D15,'75_Aug'!D15) -> 91.585 | E15: =AVERAGE('75_JULY'!E15,'75_Aug'!E15) -> 71.89063636 | F15: =AVERAGE('75_JULY'!F15,'75_Aug'!F15) -> 95.064 | G15: =AVERAGE('75_JULY'!G15,'75_Aug'!G15) -> 10 | H15: =AVERAGE('75_JULY'!H15,'75_Aug'!H15) -> 91.46 | I15: 91.42 | J15: =AVERAGE('75_JULY'!J15,'75_Aug'!J15) -> 91.38 | K15: =AVERAGE('75_JULY'!K15,'75_Aug'!K15) -> 72.16163636 | L15: =AVERAGE('75_JULY'!L15,'75_Aug'!L15) -> 94.57281818 | M15: =AVERAGE('75_JULY'!M15,'75_Aug'!M15) -> 10 | N15: =AVERAGE('75_JULY'!N15,'75_Aug'!N15) -> 92.025 | O15: 92.2125 | P15: =AVERAGE('75_JULY'!P15,'75_Aug'!P15) -> 92.4 | Q15: =AVERAGE('75_JULY'!Q15,'75_Aug'!Q15) -> 70.24018182 | R15: =AVERAGE('75_JULY'!R15,'75_Aug'!R15) -> 95.42754545
A16: =AVERAGE('75_JULY'!A16,'75_Aug'!A16) -> 15 | B16: =AVERAGE('75_JULY'!B16,'75_Aug'!B16) -> 92.86 | C16: 93.025 | D16: =AVERAGE('75_JULY'!D16,'75_Aug'!D16) -> 93.19 | E16: =AVERAGE('75_JULY'!E16,'75_Aug'!E16) -> 71.47727273 | F16: =AVERAGE('75_JULY'!F16,'75_Aug'!F16) -> 94.70636364 | G16: =AVERAGE('75_JULY'!G16,'75_Aug'!G16) -> 15 | H16: =AVERAGE('75_JULY'!H16,'75_Aug'!H16) -> 92.735 | I16: 92.8775 | J16: =AVERAGE('75_JULY'!J16,'75_Aug'!J16) -> 93.02 | K16: =AVERAGE('75_JULY'!K16,'75_Aug'!K16) -> 71.35418182 | L16: =AVERAGE('75_JULY'!L16,'75_Aug'!L16) -> 95.403 | M16: =AVERAGE('75_JULY'!M16,'75_Aug'!M16) -> 15 | N16: =AVERAGE('75_JULY'!N16,'75_Aug'!N16) -> 93.14 | O16: 93.3475 | P16: =AVERAGE('75_JULY'!P16,'75_Aug'!P16) -> 93.555 | Q16: =AVERAGE('75_JULY'!Q16,'75_Aug'!Q16) -> 72.37790909 | R16: =AVERAGE('75_JULY'!R16,'75_Aug'!R16) -> 95.18063636
A17: =AVERAGE('75_JULY'!A17,'75_Aug'!A17) -> 20 | B17: =AVERAGE('75_JULY'!B17,'75_Aug'!B17) -> 93.7 | C17: 93.9075 | D17: =AVERAGE('75_JULY'!D17,'75_Aug'!D17) -> 94.115 | E17: =AVERAGE('75_JULY'!E17,'75_Aug'!E17) -> 71.32336364 | F17: =AVERAGE('75_JULY'!F17,'75_Aug'!F17) -> 95.00363636 | G17: =AVERAGE('75_JULY'!G17,'75_Aug'!G17) -> 20 | H17: =AVERAGE('75_JULY'!H17,'75_Aug'!H17) -> 93.045 | I17: 93.45 | J17: =AVERAGE('75_JULY'!J17,'75_Aug'!J17) -> 93.855 | K17: =AVERAGE('75_JULY'!K17,'75_Aug'!K17) -> 73.23190909 | L17: =AVERAGE('75_JULY'!L17,'75_Aug'!L17) -> 94.54536364 | M17: =AVERAGE('75_JULY'!M17,'75_Aug'!M17) -> 20 | N17: =AVERAGE('75_JULY'!N17,'75_Aug'!N17) -> 93.525 | O17: 93.7225 | P17: =AVERAGE('75_JULY'!P17,'75_Aug'!P17) -> 93.92 | Q17: =AVERAGE('75_JULY'!Q17,'75_Aug'!Q17) -> 72.03718182 | R17: =AVERAGE('75_JULY'!R17,'75_Aug'!R17) -> 94.973
A18: =AVERAGE('75_JULY'!A18,'75_Aug'!A18) -> 30 | B18: =AVERAGE('75_JULY'!B18,'75_Aug'!B18) -> 93.73 | C18: 94.1625 | D18: =AVERAGE('75_JULY'!D18,'75_Aug'!D18) -> 94.595 | E18: =AVERAGE('75_JULY'!E18,'75_Aug'!E18) -> 73.15954546 | F18: =AVERAGE('75_JULY'!F18,'75_Aug'!F18) -> 94.70436363 | G18: =AVERAGE('75_JULY'!G18,'75_Aug'!G18) -> 30 | H18: =AVERAGE('75_JULY'!H18,'75_Aug'!H18) -> 93.805 | I18: 93.9075 | J18: =AVERAGE('75_JULY'!J18,'75_Aug'!J18) -> 94.01 | K18: =AVERAGE('75_JULY'!K18,'75_Aug'!K18) -> 71.23090909 | L18: =AVERAGE('75_JULY'!L18,'75_Aug'!L18) -> 94.514 | M18: =AVERAGE('75_JULY'!M18,'75_Aug'!M18) -> 30 | N18: =AVERAGE('75_JULY'!N18,'75_Aug'!N18) -> 94.125 | O18: 94.3075 | P18: =AVERAGE('75_JULY'!P18,'75_Aug'!P18) -> 94.49 | Q18: =AVERAGE('75_JULY'!Q18,'75_Aug'!Q18) -> 72.07690909 | R18: =AVERAGE('75_JULY'!R18,'75_Aug'!R18) -> 95.14745454
A19: =AVERAGE('75_JULY'!A19,'75_Aug'!A19) -> 40 | B19: =AVERAGE('75_JULY'!B19,'75_Aug'!B19) -> 93.955 | C19: 94.3025 | D19: =AVERAGE('75_JULY'!D19,'75_Aug'!D19) -> 94.65 | E19: =AVERAGE('75_JULY'!E19,'75_Aug'!E19) -> 71.08572727 | F19: =AVERAGE('75_JULY'!F19,'75_Aug'!F19) -> 94.97809091 | G19: =AVERAGE('75_JULY'!G19,'75_Aug'!G19) -> 40 | H19: =AVERAGE('75_JULY'!H19,'75_Aug'!H19) -> 93.925 | I19: 94.1975 | J19: =AVERAGE('75_JULY'!J19,'75_Aug'!J19) -> 94.47 | K19: =AVERAGE('75_JULY'!K19,'75_Aug'!K19) -> 70.34263636 | L19: =AVERAGE('75_JULY'!L19,'75_Aug'!L19) -> 94.98318182 | M19: =AVERAGE('75_JULY'!M19,'75_Aug'!M19) -> 40 | N19: =AVERAGE('75_JULY'!N19,'75_Aug'!N19) -> 93.49 | O19: 94.0125 | P19: =AVERAGE('75_JULY'!P19,'75_Aug'!P19) -> 94.535 | Q19: =AVERAGE('75_JULY'!Q19,'75_Aug'!Q19) -> 71.70436364 | R19: =AVERAGE('75_JULY'!R19,'75_Aug'!R19) -> 94.59854546
A20: =AVERAGE('75_JULY'!A20,'75_Aug'!A20) -> 50 | B20: =AVERAGE('75_JULY'!B20,'75_Aug'!B20) -> 94.19 | C20: 94.425 | D20: =AVERAGE('75_JULY'!D20,'75_Aug'!D20) -> 94.66 | E20: =AVERAGE('75_JULY'!E20,'75_Aug'!E20) -> 72.19236364 | F20: =AVERAGE('75_JULY'!F20,'75_Aug'!F20) -> 94.943 | G20: =AVERAGE('75_JULY'!G20,'75_Aug'!G20) -> 50 | H20: =AVERAGE('75_JULY'!H20,'75_Aug'!H20) -> 93.72 | I20: 94.095 | J20: =AVERAGE('75_JULY'!J20,'75_Aug'!J20) -> 94.47 | K20: =AVERAGE('75_JULY'!K20,'75_Aug'!K20) -> 72.534 | L20: =AVERAGE('75_JULY'!L20,'75_Aug'!L20) -> 94.59836363 | M20: =AVERAGE('75_JULY'!M20,'75_Aug'!M20) -> 50 | N20: =AVERAGE('75_JULY'!N20,'75_Aug'!N20) -> 94.605 | O20: 95.265 | P20: =AVERAGE('75_JULY'!P20,'75_Aug'!P20) -> 95.925 | Q20: =AVERAGE('75_JULY'!Q20,'75_Aug'!Q20) -> 71.35118182 | R20: =AVERAGE('75_JULY'!R20,'75_Aug'!R20) -> 96.06772727
A21: =AVERAGE('75_JULY'!A21,'75_Aug'!A21) -> 60 | B21: =AVERAGE('75_JULY'!B21,'75_Aug'!B21) -> 94.025 | C21: 94.6025 | D21: =AVERAGE('75_JULY'!D21,'75_Aug'!D21) -> 95.18 | E21: =AVERAGE('75_JULY'!E21,'75_Aug'!E21) -> 72.51718182 | F21: =AVERAGE('75_JULY'!F21,'75_Aug'!F21) -> 94.79636364 | G21: =AVERAGE('75_JULY'!G21,'75_Aug'!G21) -> 60 | H21: =AVERAGE('75_JULY'!H21,'75_Aug'!H21) -> 94.13 | I21: 94.2475 | J21: =AVERAGE('75_JULY'!J21,'75_Aug'!J21) -> 94.365 | K21: =AVERAGE('75_JULY'!K21,'75_Aug'!K21) -> 70.167 | L21: =AVERAGE('75_JULY'!L21,'75_Aug'!L21) -> 94.94636364 | M21: =AVERAGE('75_JULY'!M21,'75_Aug'!M21) -> 60 | N21: =AVERAGE('75_JULY'!N21,'75_Aug'!N21) -> 93.99 | O21: 94.44 | P21: =AVERAGE('75_JULY'!P21,'75_Aug'!P21) -> 94.89 | Q21: =AVERAGE('75_JULY'!Q21,'75_Aug'!Q21) -> 73.67954545 | R21: =AVERAGE('75_JULY'!R21,'75_Aug'!R21) -> 94.85390909
A22: =AVERAGE('75_JULY'!A22,'75_Aug'!A22) -> 70 | B22: =AVERAGE('75_JULY'!B22,'75_Aug'!B22) -> 94.43 | C22: 94.91 | D22: =AVERAGE('75_JULY'!D22,'75_Aug'!D22) -> 95.39 | E22: =AVERAGE('75_JULY'!E22,'75_Aug'!E22) -> 70.66809091 | F22: =AVERAGE('75_JULY'!F22,'75_Aug'!F22) -> 95.60145455 | G22: =AVERAGE('75_JULY'!G22,'75_Aug'!G22) -> 70 | H22: =AVERAGE('75_JULY'!H22,'75_Aug'!H22) -> 93.95 | I22: 94.34 | J22: =AVERAGE('75_JULY'!J22,'75_Aug'!J22) -> 94.73 | K22: =AVERAGE('75_JULY'!K22,'75_Aug'!K22) -> 71.91654545 | L22: =AVERAGE('75_JULY'!L22,'75_Aug'!L22) -> 94.83545455 | M22: =AVERAGE('75_JULY'!M22,'75_Aug'!M22) -> 70 | N22: =AVERAGE('75_JULY'!N22,'75_Aug'!N22) -> 94.15 | O22: 94.835 | P22: =AVERAGE('75_JULY'!P22,'75_Aug'!P22) -> 95.52 | Q22: =AVERAGE('75_JULY'!Q22,'75_Aug'!Q22) -> 70.52763636 | R22: =AVERAGE('75_JULY'!R22,'75_Aug'!R22) -> 95.563
A23: =AVERAGE('75_JULY'!A23,'75_Aug'!A23) -> 80 | B23: =AVERAGE('75_JULY'!B23,'75_Aug'!B23) -> 94.065 | C23: 94.55 | D23: =AVERAGE('75_JULY'!D23,'75_Aug'!D23) -> 95.035 | E23: =AVERAGE('75_JULY'!E23,'75_Aug'!E23) -> 71.70509091 | F23: =AVERAGE('75_JULY'!F23,'75_Aug'!F23) -> 95.10081818 | G23: =AVERAGE('75_JULY'!G23,'75_Aug'!G23) -> 80 | H23: =AVERAGE('75_JULY'!H23,'75_Aug'!H23) -> 94.005 | I23: 94.415 | J23: =AVERAGE('75_JULY'!J23,'75_Aug'!J23) -> 94.825 | K23: =AVERAGE('75_JULY'!K23,'75_Aug'!K23) -> 72.64481818 | L23: =AVERAGE('75_JULY'!L23,'75_Aug'!L23) -> 94.60345454 | M23: =AVERAGE('75_JULY'!M23,'75_Aug'!M23) -> 80 | N23: =AVERAGE('75_JULY'!N23,'75_Aug'!N23) -> 94.385 | O23: 94.56 | P23: =AVERAGE('75_JULY'!P23,'75_Aug'!P23) -> 94.735 | Q23: =AVERAGE('75_JULY'!Q23,'75_Aug'!Q23) -> 71.53127273 | R23: =AVERAGE('75_JULY'!R23,'75_Aug'!R23) -> 95.41981818
A24: =AVERAGE('75_JULY'!A24,'75_Aug'!A24) -> 90 | B24: =AVERAGE('75_JULY'!B24,'75_Aug'!B24) -> 94.21 | C24: 94.965 | D24: =AVERAGE('75_JULY'!D24,'75_Aug'!D24) -> 95.72 | E24: =AVERAGE('75_JULY'!E24,'75_Aug'!E24) -> 72.51309091 | F24: =AVERAGE('75_JULY'!F24,'75_Aug'!F24) -> 93.79036364 | G24: =AVERAGE('75_JULY'!G24,'75_Aug'!G24) -> 90 | H24: =AVERAGE('75_JULY'!H24,'75_Aug'!H24) -> 94.395 | I24: 94.8 | J24: =AVERAGE('75_JULY'!J24,'75_Aug'!J24) -> 95.205 | K24: =AVERAGE('75_JULY'!K24,'75_Aug'!K24) -> 70.709 | L24: =AVERAGE('75_JULY'!L24,'75_Aug'!L24) -> 95.09345455 | M24: =AVERAGE('75_JULY'!M24,'75_Aug'!M24) -> 90 | N24: =AVERAGE('75_JULY'!N24,'75_Aug'!N24) -> 94.105 | O24: 94.56 | P24: =AVERAGE('75_JULY'!P24,'75_Aug'!P24) -> 95.015 | Q24: =AVERAGE('75_JULY'!Q24,'75_Aug'!Q24) -> 73.01481818 | R24: =AVERAGE('75_JULY'!R24,'75_Aug'!R24) -> 94.94527273
A46: Circumferential Position | B46: 1 PLI-2.5 Lt | C46: 1 PLI-Avg | D46: 1 PLI-2.5 Rt | E46: 2 PLI-2.5 Lt | F46: 2 PLI-Avg | G46: 2 PLI-2.5 Rt | H46: 3 PLI-2.5 Lt | I46: 3 PLI-Avg | J46: 3 PLI-2.5 Rt | K46: dist | L46: time
A47: =A12 -> 0 | B47: =B12 -> 79.68 | C47: =C12 -> 78.92 | D47: =D12 -> 78.16 | E47: =H12 -> 78.645 | F47: 78.8725 | G47: 79.1 | H47: =N12 -> 78.775 | I47: =O12 -> 78.34 | J47: =P12 -> 77.905 | K47: =$A47*5.51*PI()/360 -> 0 | L47: =A47*PI()*(5.51/2)/(180*15) -> 0 | M47: =B47 -> 79.68 | N47: =C47 -> 78.92 | O47: =D47 -> 78.16 | P47: =E47 -> 78.645 | Q47: =F47 -> 78.8725 | R47: =G47 -> 79.1 | S47: =H47 -> 78.775 | T47: =I47 -> 78.34 | U47: =J47 -> 77.905
A48: =A13 -> 2.5 | B48: =B13 -> 82.71 | C48: 82.325 | D48: =D13 -> 81.94 | E48: =H13 -> 82.24 | F48: 81.555 | G48: 80.87 | H48: 83.16 | I48: 82.055 | J48: 80.95 | K48: 0.1202095522 | L48: 0.008013970149 | M48: 82.71 | N48: 82.325 | O48: 81.94 | P48: 82.24 | Q48: 81.555 | R48: 80.87 | S48: 83.16 | T48: 82.055 | U48: 80.95
A49: 5 | B49: =B14 -> 87.32 | C49: =C14 -> 86.7825 | D49: =D14 -> 86.245 | E49: 87.525 | F49: 87.385 | G49: 87.245 | H49: 87.67 | I49: 87.325 | J49: 86.98 | K49: 0.2404191045 | L49: 0.0160279403 | M49: 87.32 | N49: 86.7825 | O49: 86.245 | P49: 87.525 | Q49: 87.385 | R49: 87.245 | S49: 87.67 | T49: 87.325 | U49: 86.98
A50: 10 | B50: =B15 -> 91.715 | C50: =C15 -> 91.65 | D50: =D15 -> 91.585 | E50: 91.46 | F50: 91.42 | G50: 91.38 | H50: 92.025 | I50: 92.2125 | J50: 92.4 | K50: 0.4808382089 | L50: 0.03205588059 | M50: 91.715 | N50: 91.65 | O50: 91.585 | P50: 91.46 | Q50: 91.42 | R50: 91.38 | S50: 92.025 | T50: 92.2125 | U50: 92.4
A51: 15 | B51: =B16 -> 92.86 | C51: =C16 -> 93.025 | D51: =D16 -> 93.19 | E51: 92.735 | F51: 92.8775 | G51: 93.02 | H51: 93.14 | I51: 93.3475 | J51: 93.555 | K51: 0.7212573134 | L51: 0.04808382089 | M51: 92.86 | N51: 93.025 | O51: 93.19 | P51: 92.735 | Q51: 92.8775 | R51: 93.02 | S51: 93.14 | T51: 93.3475 | U51: 93.555
A52: 20 | B52: =B17 -> 93.7 | C52: =C17 -> 93.9075 | D52: =D17 -> 94.115 | E52: 93.045 | F52: 93.45 | G52: 93.855 | H52: 93.525 | I52: 93.7225 | J52: 93.92 | K52: 0.9616764178 | L52: 0.06411176119 | M52: 93.7 | N52: 93.9075 | O52: 94.115 | P52: 93.045 | Q52: 93.45 | R52: 93.855 | S52: 93.525 | T52: 93.7225 | U52: 93.92
A53: 30 | B53: =B18 -> 93.73 | C53: =C18 -> 94.1625 | D53: =D18 -> 94.595 | E53: 93.805 | F53: 93.9075 | G53: 94.01 | H53: 94.125 | I53: 94.3075 | J53: 94.49 | K53: 1.442514627 | L53: 0.09616764178 | M53: 93.73 | N53: 94.1625 | O53: 94.595 | P53: 93.805 | Q53: 93.9075 | R53: 94.01 | S53: 94.125 | T53: 94.3075 | U53: 94.49
A54: 40 | B54: =B19 -> 93.955 | C54: =C19 -> 94.3025 | D54: =D19 -> 94.65 | E54: 93.925 | F54: 94.1975 | G54: 94.47 | H54: 93.49 | I54: 94.0125 | J54: 94.535 | K54: 1.923352836 | L54: 0.1282235224 | M54: 93.955 | N54: 94.3025 | O54: 94.65 | P54: 93.925 | Q54: 94.1975 | R54: 94.47 | S54: 93.49 | T54: 94.0125 | U54: 94.535
A55: 50 | B55: =B20 -> 94.19 | C55: =C20 -> 94.425 | D55: =D20 -> 94.66 | E55: 93.72 | F55: 94.095 | G55: 94.47 | H55: 94.605 | I55: 95.265 | J55: 95.925 | K55: 2.404191045 | L55: 0.160279403 | M55: 94.19 | N55: 94.425 | O55: 94.66 | P55: 93.72 | Q55: 94.095 | R55: 94.47 | S55: 94.605 | T55: 95.265 | U55: 95.925
A56: 60 | B56: =B21 -> 94.025 | C56: =C21 -> 94.6025 | D56: =D21 -> 95.18 | E56: 94.13 | F56: 94.2475 | G56: 94.365 | H56: 93.99 | I56: 94.44 | J56: 94.89 | K56: 2.885029254 | L56: 0.1923352836 | M56: 94.025 | N56: 94.6025 | O56: 95.18 | P56: 94.13 | Q56: 94.2475 | R56: 94.365 | S56: 93.99 | T56: 94.44 | U56: 94.89
A57: 70 | B57: =B22 -> 94.43 | C57: =C22 -> 94.91 | D57: =D22 -> 95.39 | E57: 93.95 | F57: 94.34 | G57: 94.73 | H57: 94.15 | I57: 94.835 | J57: 95.52 | K57: 3.365867462 | L57: 0.2243911642 | M57: 94.43 | N57: 94.91 | O57: 95.39 | P57: 93.95 | Q57: 94.34 | R57: 94.73 | S57: 94.15 | T57: 94.835 | U57: 95.52
A58: 80 | B58: =B23 -> 94.065 | C58: =C23 -> 94.55 | D58: =D23 -> 95.035 | E58: 94.005 | F58: 94.415 | G58: 94.825 | H58: 94.385 | I58: 94.56 | J58: 94.735 | K58: 3.846705671 | L58: 0.2564470448 | M58: 94.065 | N58: 94.55 | O58: 95.035 | P58: 94.005 | Q58: 94.415 | R58: 94.825 | S58: 94.385 | T58: 94.56 | U58: 94.735
A59: 90 | B59: =B24 -> 94.21 | C59: =C24 -> 94.965 | D59: =D24 -> 95.72 | E59: 94.395 | F59: 94.8 | G59: 95.205 | H59: =N24 -> 94.105 | I59: 94.56 | J59: 95.015 | K59: 4.32754388 | L59: 0.2885029254 | M59: 94.21 | N59: 94.965 | O59: 95.72 | P59: 94.395 | Q59: 94.8 | R59: 95.205 | S59: 94.105 | T59: 94.56 | U59: 95.015
L65: Time | M65: =B46 -> 1 PLI-2.5 Lt | N65: 1 PLI-Avg | O65: 1 PLI-2.5 Rt | P65: 2 PLI-2.5 Lt | Q65: 2 PLI-Avg | R65: 2 PLI-2.5 Rt | S65: 3 PLI-2.5 Lt | T65: 3 PLI-Avg | U65: 3 PLI-2.5 Rt
L66: =L47 -> 0 | M66: =(M47-M$47)*$M$82*$M$83 -> 0 | N66: =(N47-N$47)*$M$82*$M$83 -> 0 | O66: 0 | P66: 0 | Q66: 0 | R66: 0 | S66: 0 | T66: 0 | U66: 0
L67: 0.008013970149 | M67: =(M48-M$47)*$M$82*$M$83 -> 21.17633333 | N67: =(N48-N$47)*$M$82*$M$83 -> 23.79716667 | O67: 26.418 | P67: 25.12505556 | Q67: 18.74769444 | R67: 12.37033333 | S67: 30.64627778 | T67: 25.96372222 | U67: 21.28116667
L68: 0.0160279403 | M68: 53.39511111 | N68: 54.95013889 | O68: 56.50516667 | P68: 62.06133333 | Q68: 59.49291667 | R68: 56.9245 | S68: 62.16616667 | T68: 62.79516667 | U68: 63.42416667
L69: 0.03205588059 | M69: 84.11127778 | N69: 88.96855556 | O69: 93.82583333 | P69: 89.56261111 | Q69: 87.69308333 | R69: 85.82355556 | S69: 92.60277778 | T69: 96.95336111 | U69: 101.3039444
L70: 0.04808382089 | M70: 92.11355556 | N70: 98.57827778 | O70: 105.043 | P70: 98.47344444 | Q70: 97.87938889 | R70: 97.28533333 | S70: 100.3953889 | T70: 104.88575 | U70: 109.3761111
L71: 0.06411176119 | M71: 97.98422222 | N71: 104.7459722 | O71: 111.5077222 | P71: 100.64 | Q71: 101.8805278 | R71: 103.1210556 | S71: 103.0861111 | T71: 107.5065833 | U71: 111.9270556
L72: 0.09616764178 | M72: 98.19388889 | N72: 106.5281389 | O72: 114.8623889 | P72: 105.9515556 | Q72: 105.0779444 | R72: 104.2043333 | S72: 107.2794444 | T72: 111.5950833 | U72: 115.9107222
L73: 0.1282235224 | M73: 99.76638889 | N73: 107.5065833 | O73: 115.2467778 | P73: 106.7902222 | Q73: 107.1047222 | R73: 107.4192222 | S73: 102.8415 | T73: 109.5333611 | U73: 116.2252222
L74: 0.160279403 | M74: 101.4087778 | N74: 108.3627222 | O74: 115.3166667 | P74: 105.3575 | Q74: 106.3883611 | R74: 107.4192222 | S74: 110.6341111 | T74: 118.2869444 | U74: 125.9397778
L75: 0.1923352836 | M75: 100.2556111 | N75: 109.60325 | O75: 118.9508889 | P75: 108.2229444 | Q75: 107.4541667 | R75: 106.6853889 | S75: 106.3359444 | T75: 112.5211111 | U75: 118.7062778
L76: 0.2243911642 | M76: 103.0861111 | N76: 111.7523333 | O76: 120.4185556 | P76: 106.9649444 | Q76: 108.1006389 | R76: 109.2363333 | S76: 107.4541667 | T76: 115.2817222 | U76: 123.1092778
L77: 0.2564470448 | M77: 100.5351667 | N77: 109.2363333 | O77: 117.9375 | P77: 107.3493333 | Q77: 108.6248056 | R77: 109.9002778 | S77: 109.0965556 | T77: 113.3597778 | U77: 117.623
L78: 0.2885029254 | M78: 101.5485556 | N78: 112.1367222 | O78: 122.7248889 | P78: 110.075 | Q78: 111.3155278 | R78: 112.5560556 | S78: 107.1396667 | T78: 113.3597778 | U78: 119.5798889
L82: alpha | M82: =(5/9)*0.000017 -> 9.444444444e-06 | N82: in/in/F
L83: E-CMD | M83: 740000 | N83: psi

Sheet 150 fpm
A4: Line speed | B4: 150 fpm | G4: Line speed | H4: 150 fpm | M4: Line speed | N4: 150 fpm
A5: Delta T | B5: ~ 25 F | G5: Delta T | H5: ~ 25 F | M5: Delta T | N5: ~ 25 F
A6: Line Tension | B6: 1 pli | G6: Line Tension | H6: 2 pli | M6: Line Tension | N6: 3 pli
A7: Air and roller tempertures determined from readings taken over a ~9 minute span | G7: Air and roller tempertures determined from readings taken over a ~9 minute span | M7: Air and roller tempertures determined from readings taken over a ~9 minute span
A8: Material tempertures determined from readings taken over a 2.5minute span | G8: Material tempertures determined from readings taken over a 2.5minute span | M8: Material tempertures determined from readings taken over a 2.5minute span
A10: Material Temp | E10: =AVERAGE(E12:E24) -> 71.72593007 | F10: =AVERAGE(F12:F24) -> 93.12479021 | G10: Material Temp | K10: =AVERAGE(K12:K24) -> 72.19176923 | L10: =AVERAGE(L12:L24) -> 92.3948042 | M10: Material Temp | Q10: =AVERAGE(Q12:Q24) -> 71.97763636 | R10: =AVERAGE(R12:R24) -> 92.86429371
A11: Angular Position | B11: Avg 2.50" Left | C11: Avg of R&L | D11: Avg 2.50" Right | E11: Avg Air Temp | F11: Avg Roller Temp | H11: Avg 2.50" Left | I11: Avg of R&L | J11: Avg 2.50" Right | K11: Avg Air Temp | L11: Avg Roller Temp | N11: Avg 2.50" Left | O11: Avg of R&L | P11: Avg 2.50" Right | Q11: Avg Air Temp | R11: Avg Roller Temp
A12: =AVERAGE('150_JULY'!A12,'150_AUG'!A12) -> 0 | B12: =AVERAGE('150_JULY'!B12,'150_AUG'!B12) -> 76.435 | C12: =AVERAGE(B12,D12) -> 76.0925 | D12: =AVERAGE('150_JULY'!D12,'150_AUG'!D12) -> 75.75 | E12: =AVERAGE('150_JULY'!E12,'150_AUG'!E12) -> 71.79727273 | F12: =AVERAGE('150_JULY'!F12,'150_AUG'!F12) -> 93.21890909 | G12: =AVERAGE('150_JULY'!G12,'150_AUG'!G12) -> 0 | H12: =AVERAGE('150_JULY'!H12,'150_AUG'!H12) -> 75.91 | I12: =AVERAGE(H12,J12) -> 76.0475 | J12: =AVERAGE('150_JULY'!J12,'150_AUG'!J12) -> 76.185 | K12: =AVERAGE('150_JULY'!K12,'150_AUG'!K12) -> 72.05409091 | L12: =AVERAGE('150_JULY'!L12,'150_AUG'!L12) -> 92.46127273 | M12: =AVERAGE('150_JULY'!M12,'150_AUG'!M12) -> 0 | N12: =AVERAGE('150_JULY'!N12,'150_AUG'!N12) -> 77.245 | O12: =AVERAGE(N12,P12) -> 76.7525 | P12: =AVERAGE('150_JULY'!P12,'150_AUG'!P12) -> 76.26 | Q12: =AVERAGE('150_JULY'!Q12,'150_AUG'!Q12) -> 72.54618182 | R12: =AVERAGE('150_JULY'!R12,'150_AUG'!R12) -> 92.53454545
A13: =AVERAGE('150_JULY'!A13,'150_AUG'!A13) -> 2.5 | B13: =AVERAGE('150_AUG'!B13) -> 78.5 | C13: =AVERAGE(B13,D13) -> 77.775 | D13: =AVERAGE('150_AUG'!D13) -> 77.05 | E13: =AVERAGE('150_AUG'!E13) -> 70.67472727 | F13: =AVERAGE('150_AUG'!F13) -> 92.52345455 | G13: 2.5 | H13: =AVERAGE('150_AUG'!H13) -> 78.59 | I13: =AVERAGE(H13,J13) -> 78.765 | J13: =AVERAGE('150_AUG'!J13) -> 78.94 | K13: =AVERAGE('150_AUG'!K13) -> 73.60509091 | L13: =AVERAGE('150_AUG'!L13) -> 92.40509091 | M13: =AVERAGE('150_AUG'!M13) -> 2.5 | N13: =AVERAGE('150_AUG'!N13) -> 79.07 | O13: =AVERAGE(N13,P13) -> 78.41 | P13: =AVERAGE('150_AUG'!P13) -> 77.75 | Q13: =AVERAGE('150_AUG'!Q13) -> 72.41709091 | R13: =AVERAGE('150_AUG'!R13) -> 92.40909091
A14: =AVERAGE('150_JULY'!A14,'150_AUG'!A14) -> 5 | B14: =AVERAGE('150_JULY'!B14,'150_AUG'!B14) -> 80.85 | C14: =AVERAGE(B14,D14) -> 80.655 | D14: =AVERAGE('150_JULY'!D14,'150_AUG'!D14) -> 80.46 | E14: =AVERAGE('150_JULY'!E14,'150_AUG'!E14) -> 71.97781818 | F14: =AVERAGE('150_JULY'!F14,'150_AUG'!F14) -> 93.11272727 | G14: =AVERAGE('150_JULY'!G14,'150_AUG'!G14) -> 5 | H14: =AVERAGE('150_JULY'!H14,'150_AUG'!H14) -> 82.05 | I14: =AVERAGE(H14,J14) -> 81.4725 | J14: =AVERAGE('150_JULY'!J14,'150_AUG'!J14) -> 80.895 | K14: =AVERAGE('150_JULY'!K14,'150_AUG'!K14) -> 72.24109091 | L14: =AVERAGE('150_JULY'!L14,'150_AUG'!L14) -> 92.52345455 | M14: =AVERAGE('150_JULY'!M14,'150_AUG'!M14) -> 5 | N14: =AVERAGE('150_JULY'!N14,'150_AUG'!N14) -> 81.445 | O14: =AVERAGE(N14,P14) -> 80.6675 | P14: =AVERAGE('150_JULY'!P14,'150_AUG'!P14) -> 79.89 | Q14: =AVERAGE('150_JULY'!Q14,'150_AUG'!Q14) -> 70.90927273 | R14: =AVERAGE('150_JULY'!R14,'150_AUG'!R14) -> 92.40627273
A15: =AVERAGE('150_JULY'!A15,'150_AUG'!A15) -> 10 | B15: =AVERAGE('150_JULY'!B15,'150_AUG'!B15) -> 85.415 | C15: 85.0375 | D15: =AVERAGE('150_JULY'!D15,'150_AUG'!D15) -> 84.66 | E15: =AVERAGE('150_JULY'!E15,'150_AUG'!E15) -> 71.70518182 | F15: =AVERAGE('150_JULY'!F15,'150_AUG'!F15) -> 93.15663636 | G15: =AVERAGE('150_JULY'!G15,'150_AUG'!G15) -> 10 | H15: =AVERAGE('150_JULY'!H15,'150_AUG'!H15) -> 85.995 | I15: 85.81 | J15: =AVERAGE('150_JULY'!J15,'150_AUG'!J15) -> 85.625 | K15: =AVERAGE('150_JULY'!K15,'150_AUG'!K15) -> 71.04745455 | L15: =AVERAGE('150_JULY'!L15,'150_AUG'!L15) -> 92.53909091 | M15: =AVERAGE('150_JULY'!M15,'150_AUG'!M15) -> 10 | N15: =AVERAGE('150_JULY'!N15,'150_AUG'!N15) -> 85.78 | O15: 85.55 | P15: =AVERAGE('150_JULY'!P15,'150_AUG'!P15) -> 85.32 | Q15: =AVERAGE('150_JULY'!Q15,'150_AUG'!Q15) -> 72.80981818 | R15: =AVERAGE('150_JULY'!R15,'150_AUG'!R15) -> 92.38181818
A16: =AVERAGE('150_JULY'!A16,'150_AUG'!A16) -> 15 | B16: =AVERAGE('150_JULY'!B16,'150_AUG'!B16) -> 87.335 | C16: 87.32 | D16: =AVERAGE('150_JULY'!D16,'150_AUG'!D16) -> 87.305 | E16: =AVERAGE('150_JULY'!E16,'150_AUG'!E16) -> 71.27481818 | F16: =AVERAGE('150_JULY'!F16,'150_AUG'!F16) -> 92.95545454 | G16: =AVERAGE('150_JULY'!G16,'150_AUG'!G16) -> 15 | H16: =AVERAGE('150_JULY'!H16,'150_AUG'!H16) -> 87.635 | I16: 87.8325 | J16: =AVERAGE('150_JULY'!J16,'150_AUG'!J16) -> 88.03 | K16: =AVERAGE('150_JULY'!K16,'150_AUG'!K16) -> 71.828 | L16: =AVERAGE('150_JULY'!L16,'150_AUG'!L16) -> 92.38572727 | M16: =AVERAGE('150_JULY'!M16,'150_AUG'!M16) -> 15 | N16: =AVERAGE('150_JULY'!N16,'150_AUG'!N16) -> 87.83 | O16: 87.9325 | P16: =AVERAGE('150_JULY'!P16,'150_AUG'!P16) -> 88.035 | Q16: =AVERAGE('150_JULY'!Q16,'150_AUG'!Q16) -> 72.62190909 | R16: =AVERAGE('150_JULY'!R16,'150_AUG'!R16) -> 93.166
A17: =AVERAGE('150_JULY'!A17,'150_AUG'!A17) -> 20 | B17: =AVERAGE('150_JULY'!B17,'150_AUG'!B17) -> 88.985 | C17: 89.1825 | D17: =AVERAGE('150_JULY'!D17,'150_AUG'!D17) -> 89.38 | E17: =AVERAGE('150_JULY'!E17,'150_AUG'!E17) -> 72.72954545 | F17: =AVERAGE('150_JULY'!F17,'150_AUG'!F17) -> 92.72454546 | G17: =AVERAGE('150_JULY'!G17,'150_AUG'!G17) -> 20 | H17: =AVERAGE('150_JULY'!H17,'150_AUG'!H17) -> 89.015 | I17: 89.12 | J17: =AVERAGE('150_JULY'!J17,'150_AUG'!J17) -> 89.225 | K17: =AVERAGE('150_JULY'!K17,'150_AUG'!K17) -> 72.64663636 | L17: =AVERAGE('150_JULY'!L17,'150_AUG'!L17) -> 92.35354545 | M17: =AVERAGE('150_JULY'!M17,'150_AUG'!M17) -> 20 | N17: =AVERAGE('150_JULY'!N17,'150_AUG'!N17) -> 89.1 | O17: 88.95 | P17: =AVERAGE('150_JULY'!P17,'150_AUG'!P17) -> 88.8 | Q17: =AVERAGE('150_JULY'!Q17,'150_AUG'!Q17) -> 71.80936364 | R17: =AVERAGE('150_JULY'!R17,'150_AUG'!R17) -> 92.95390909
A18: =AVERAGE('150_JULY'!A18,'150_AUG'!A18) -> 30 | B18: =AVERAGE('150_JULY'!B18,'150_AUG'!B18) -> 90.465 | C18: 90.51 | D18: =AVERAGE('150_JULY'!D18,'150_AUG'!D18) -> 90.555 | E18: =AVERAGE('150_JULY'!E18,'150_AUG'!E18) -> 71.97481818 | F18: =AVERAGE('150_JULY'!F18,'150_AUG'!F18) -> 92.88927273 | G18: =AVERAGE('150_JULY'!G18,'150_AUG'!G18) -> 30 | H18: =AVERAGE('150_JULY'!H18,'150_AUG'!H18) -> 90.27 | I18: 90.58 | J18: =AVERAGE('150_JULY'!J18,'150_AUG'!J18) -> 90.89 | K18: =AVERAGE('150_JULY'!K18,'150_AUG'!K18) -> 71.72254546 | L18: =AVERAGE('150_JULY'!L18,'150_AUG'!L18) -> 92.81990909 | M18: =AVERAGE('150_JULY'!M18,'150_AUG'!M18) -> 30 | N18: =AVERAGE('150_JULY'!N18,'150_AUG'!N18) -> 90.425 | O18: 90.575 | P18: =AVERAGE('150_JULY'!P18,'150_AUG'!P18) -> 90.725 | Q18: =AVERAGE('150_JULY'!Q18,'150_AUG'!Q18) -> 71.38563636 | R18: =AVERAGE('150_JULY'!R18,'150_AUG'!R18) -> 92.91218182
A19: =AVERAGE('150_JULY'!A19,'150_AUG'!A19) -> 40 | B19: =AVERAGE('150_JULY'!B19,'150_AUG'!B19) -> 90.735 | C19: 91.1625 | D19: =AVERAGE('150_JULY'!D19,'150_AUG'!D19) -> 91.59 | E19: =AVERAGE('150_JULY'!E19,'150_AUG'!E19) -> 72.04072727 | F19: =AVERAGE('150_JULY'!F19,'150_AUG'!F19) -> 93.21081818 | G19: =AVERAGE('150_JULY'!G19,'150_AUG'!G19) -> 40 | H19: =AVERAGE('150_JULY'!H19,'150_AUG'!H19) -> 90.695 | I19: 90.8875 | J19: =AVERAGE('150_JULY'!J19,'150_AUG'!J19) -> 91.08 | K19: =AVERAGE('150_JULY'!K19,'150_AUG'!K19) -> 70.45863637 | L19: =AVERAGE('150_JULY'!L19,'150_AUG'!L19) -> 92.35281818 | M19: =AVERAGE('150_JULY'!M19,'150_AUG'!M19) -> 40 | N19: =AVERAGE('150_JULY'!N19,'150_AUG'!N19) -> 91.085 | O19: 91.2225 | P19: =AVERAGE('150_JULY'!P19,'150_AUG'!P19) -> 91.36 | Q19: =AVERAGE('150_JULY'!Q19,'150_AUG'!Q19) -> 72.34581818 | R19: =AVERAGE('150_JULY'!R19,'150_AUG'!R19) -> 93.00554545
A20: =AVERAGE('150_JULY'!A20,'150_AUG'!A20) -> 50 | B20: =AVERAGE('150_JULY'!B20,'150_AUG'!B20) -> 91.575 | C20: 92.01 | D20: =AVERAGE('150_JULY'!D20,'150_AUG'!D20) -> 92.445 | E20: =AVERAGE('150_JULY'!E20,'150_AUG'!E20) -> 72.102 | F20: =AVERAGE('150_JULY'!F20,'150_AUG'!F20) -> 93.61254545 | G20: =AVERAGE('150_JULY'!G20,'150_AUG'!G20) -> 50 | H20: =AVERAGE('150_JULY'!H20,'150_AUG'!H20) -> 90.695 | I20: 91.0175 | J20: =AVERAGE('150_JULY'!J20,'150_AUG'!J20) -> 91.34 | K20: =AVERAGE('150_JULY'!K20,'150_AUG'!K20) -> 72.37254546 | L20: =AVERAGE('150_JULY'!L20,'150_AUG'!L20) -> 92.19118182 | M20: =AVERAGE('150_JULY'!M20,'150_AUG'!M20) -> 50 | N20: =AVERAGE('150_JULY'!N20,'150_AUG'!N20) -> 91.08 | O20: 91.41 | P20: =AVERAGE('150_JULY'!P20,'150_AUG'!P20) -> 91.74 | Q20: =AVERAGE('150_JULY'!Q20,'150_AUG'!Q20) -> 72.77081818 | R20: =AVERAGE('150_JULY'!R20,'150_AUG'!R20) -> 92.81736363
A21: =AVERAGE('150_JULY'!A21,'150_AUG'!A21) -> 60 | B21: =AVERAGE('150_JULY'!B21,'150_AUG'!B21) -> 91.805 | C21: 91.605 | D21: =AVERAGE('150_JULY'!D21,'150_AUG'!D21) -> 91.405 | E21: =AVERAGE('150_JULY'!E21,'150_AUG'!E21) -> 70.67972727 | F21: =AVERAGE('150_JULY'!F21,'150_AUG'!F21) -> 93.58345455 | G21: =AVERAGE('150_JULY'!G21,'150_AUG'!G21) -> 60 | H21: =AVERAGE('150_JULY'!H21,'150_AUG'!H21) -> 90.68 | I21: 91.2025 | J21: =AVERAGE('150_JULY'!J21,'150_AUG'!J21) -> 91.725 | K21: =AVERAGE('150_JULY'!K21,'150_AUG'!K21) -> 72.03336364 | L21: =AVERAGE('150_JULY'!L21,'150_AUG'!L21) -> 92.23172727 | M21: =AVERAGE('150_JULY'!M21,'150_AUG'!M21) -> 60 | N21: =AVERAGE('150_JULY'!N21,'150_AUG'!N21) -> 91.2 | O21: 91.4025 | P21: =AVERAGE('150_JULY'!P21,'150_AUG'!P21) -> 91.605 | Q21: =AVERAGE('150_JULY'!Q21,'150_AUG'!Q21) -> 70.38627273 | R21: =AVERAGE('150_JULY'!R21,'150_AUG'!R21) -> 93.12009091
A22: =AVERAGE('150_JULY'!A22,'150_AUG'!A22) -> 70 | B22: =AVERAGE('150_JULY'!B22,'150_AUG'!B22) -> 91.195 | C22: 91.7125 | D22: =AVERAGE('150_JULY'!D22,'150_AUG'!D22) -> 92.23 | E22: =AVERAGE('150_JULY'!E22,'150_AUG'!E22) -> 73.64554546 | F22: =AVERAGE('150_JULY'!F22,'150_AUG'!F22) -> 92.76145455 | G22: =AVERAGE('150_JULY'!G22,'150_AUG'!G22) -> 70 | H22: =AVERAGE('150_JULY'!H22,'150_AUG'!H22) -> 91.08 | I22: 91.5575 | J22: =AVERAGE('150_JULY'!J22,'150_AUG'!J22) -> 92.035 | K22: =AVERAGE('150_JULY'!K22,'150_AUG'!K22) -> 72.262 | L22: =AVERAGE('150_JULY'!L22,'150_AUG'!L22) -> 92.26963637 | M22: =AVERAGE('150_JULY'!M22,'150_AUG'!M22) -> 70 | N22: =AVERAGE('150_JULY'!N22,'150_AUG'!N22) -> 90.935 | O22: 91.2325 | P22: =AVERAGE('150_JULY'!P22,'150_AUG'!P22) -> 91.53 | Q22: =AVERAGE('150_JULY'!Q22,'150_AUG'!Q22) -> 72.08490909 | R22: =AVERAGE('150_JULY'!R22,'150_AUG'!R22) -> 93.01209091
A23: =AVERAGE('150_JULY'!A23,'150_AUG'!A23) -> 80 | B23: =AVERAGE('150_JULY'!B23,'150_AUG'!B23) -> 92.095 | C23: 92.3425 | D23: =AVERAGE('150_JULY'!D23,'150_AUG'!D23) -> 92.59 | E23: =AVERAGE('150_JULY'!E23,'150_AUG'!E23) -> 70.71627273 | F23: =AVERAGE('150_JULY'!F23,'150_AUG'!F23) -> 93.40518182 | G23: =AVERAGE('150_JULY'!G23,'150_AUG'!G23) -> 80 | H23: =AVERAGE('150_JULY'!H23,'150_AUG'!H23) -> 91.23 | I23: 91.675 | J23: =AVERAGE('150_JULY'!J23,'150_AUG'!J23) -> 92.12 | K23: =AVERAGE('150_JULY'!K23,'150_AUG'!K23) -> 72.66390909 | L23: =AVERAGE('150_JULY'!L23,'150_AUG'!L23) -> 92.35527273 | M23: =AVERAGE('150_JULY'!M23,'150_AUG'!M23) -> 80 | N23: =AVERAGE('150_JULY'!N23,'150_AUG'!N23) -> 91.3 | O23: 91.6775 | P23: =AVERAGE('150_JULY'!P23,'150_AUG'!P23) -> 92.055 | Q23: =AVERAGE('150_JULY'!Q23,'150_AUG'!Q23) -> 73.62936364 | R23: =AVERAGE('150_JULY'!R23,'150_AUG'!R23) -> 92.924
A24: =AVERAGE('150_JULY'!A24,'150_AUG'!A24) -> 90 | B24: =AVERAGE('150_JULY'!B24,'150_AUG'!B24) -> 91.77 | C24: 91.695 | D24: =AVERAGE('150_JULY'!D24,'150_AUG'!D24) -> 91.62 | E24: =AVERAGE('150_JULY'!E24,'150_AUG'!E24) -> 71.11863636 | F24: =AVERAGE('150_JULY'!F24,'150_AUG'!F24) -> 93.46781818 | G24: =AVERAGE('150_JULY'!G24,'150_AUG'!G24) -> 90 | H24: =AVERAGE('150_JULY'!H24,'150_AUG'!H24) -> 91.195 | I24: 91.71 | J24: =AVERAGE('150_JULY'!J24,'150_AUG'!J24) -> 92.225 | K24: =AVERAGE('150_JULY'!K24,'150_AUG'!K24) -> 73.55763636 | L24: =AVERAGE('150_JULY'!L24,'150_AUG'!L24) -> 92.24372728 | M24: =AVERAGE('150_JULY'!M24,'150_AUG'!M24) -> 90 | N24: =AVERAGE('150_JULY'!N24,'150_AUG'!N24) -> 91.56 | O24: 91.97 | P24: =AVERAGE('150_JULY'!P24,'150_AUG'!P24) -> 92.38 | Q24: =AVERAGE('150_JULY'!Q24,'150_AUG'!Q24) -> 69.99281818 | R24: =AVERAGE('150_JULY'!R24,'150_AUG'!R24) -> 93.59290909
B46: 1 PLI-2.5 Lt | C46: 1 PLI-Avg | D46: 1 PLI-2.5 Rt | E46: 2 PLI-2.5 Lt | F46: 2 PLI-Avg | G46: 2 PLI-2.5 Rt | H46: 3 PLI-2.5 Lt | I46: 3 PLI-Avg | J46: 3 PLI-2.5 Rt | L46: Time | M46: =B46 -> 1 PLI-2.5 Lt | N46: =C46 -> 1 PLI-Avg | O46: =D46 -> 1 PLI-2.5 Rt | P46: =E46 -> 2 PLI-2.5 Lt | Q46: =F46 -> 2 PLI-Avg | R46: =G46 -> 2 PLI-2.5 Rt | S46: =H46 -> 3 PLI-2.5 Lt | T46: =I46 -> 3 PLI-Avg | U46: =J46 -> 3 PLI-2.5 Rt
A47: =A12 -> 0 | B47: =B12 -> 76.435 | C47: =C12 -> 76.0925 | D47: =D12 -> 75.75 | E47: =H12 -> 75.91 | F47: 76.0475 | G47: 76.185 | H47: =N12 -> 77.245 | I47: 76.7525 | J47: 76.26 | L47: =A47*PI()*(5.51/2)/(180*30) -> 0 | M47: 76.435 | N47: 76.0925 | O47: 75.75 | P47: 75.91 | Q47: 76.0475 | R47: 76.185 | S47: 77.245 | T47: 76.7525 | U47: 76.26
A48: =A13 -> 2.5 | B48: =B13 -> 78.5 | C48: 77.775 | D48: =D13 -> 77.05 | E48: =H13 -> 78.59 | F48: 78.765 | G48: 78.94 | H48: =N13 -> 79.07 | I48: 78.41 | J48: 77.75 | L48: 0.004006985074 | M48: 78.5 | N48: 77.775 | O48: 77.05 | P48: 78.59 | Q48: 78.765 | R48: 78.94 | S48: 79.07 | T48: 78.41 | U48: 77.75
A49: 5 | B49: =B14 -> 80.85 | C49: =C14 -> 80.655 | D49: =D14 -> 80.46 | E49: 82.05 | F49: 81.4725 | G49: 80.895 | H49: 81.445 | I49: 80.6675 | J49: 79.89 | L49: 0.008013970149 | M49: 80.85 | N49: 80.655 | O49: 80.46 | P49: 82.05 | Q49: 81.4725 | R49: 80.895 | S49: 81.445 | T49: 80.6675 | U49: 79.89
A50: 10 | B50: =B15 -> 85.415 | C50: 85.0375 | D50: =D15 -> 84.66 | E50: 85.995 | F50: 85.81 | G50: 85.625 | H50: 85.78 | I50: 85.55 | J50: 85.32 | L50: 0.0160279403 | M50: 85.415 | N50: 85.0375 | O50: 84.66 | P50: 85.995 | Q50: 85.81 | R50: 85.625 | S50: 85.78 | T50: 85.55 | U50: 85.32
A51: 15 | B51: =B16 -> 87.335 | C51: 87.32 | D51: =D16 -> 87.305 | E51: 87.635 | F51: 87.8325 | G51: 88.03 | H51: 87.83 | I51: 87.9325 | J51: 88.035 | L51: 0.02404191045 | M51: 87.335 | N51: 87.32 | O51: 87.305 | P51: 87.635 | Q51: 87.8325 | R51: 88.03 | S51: 87.83 | T51: 87.9325 | U51: 88.035
A52: 20 | B52: =B17 -> 88.985 | C52: 89.1825 | D52: =D17 -> 89.38 | E52: 89.015 | F52: 89.12 | G52: 89.225 | H52: 89.1 | I52: 88.95 | J52: 88.8 | L52: 0.03205588059 | M52: 88.985 | N52: 89.1825 | O52: 89.38 | P52: 89.015 | Q52: 89.12 | R52: 89.225 | S52: 89.1 | T52: 88.95 | U52: 88.8
A53: 30 | B53: =B18 -> 90.465 | C53: 90.51 | D53: =D18 -> 90.555 | E53: 90.27 | F53: 90.58 | G53: 90.89 | H53: 90.425 | I53: 90.575 | J53: 90.725 | L53: 0.04808382089 | M53: 90.465 | N53: 90.51 | O53: 90.555 | P53: 90.27 | Q53: 90.58 | R53: 90.89 | S53: 90.425 | T53: 90.575 | U53: 90.725
A54: 40 | B54: =B19 -> 90.735 | C54: 91.1625 | D54: =D19 -> 91.59 | E54: 90.695 | F54: 90.8875 | G54: 91.08 | H54: 91.085 | I54: 91.2225 | J54: 91.36 | L54: 0.06411176119 | M54: 90.735 | N54: 91.1625 | O54: 91.59 | P54: 90.695 | Q54: 90.8875 | R54: 91.08 | S54: 91.085 | T54: 91.2225 | U54: 91.36
A55: 50 | B55: =B20 -> 91.575 | C55: 92.01 | D55: =D20 -> 92.445 | E55: 90.695 | F55: 91.0175 | G55: 91.34 | H55: 91.08 | I55: 91.41 | J55: 91.74 | L55: 0.08013970149 | M55: 91.575 | N55: 92.01 | O55: 92.445 | P55: 90.695 | Q55: 91.0175 | R55: 91.34 | S55: 91.08 | T55: 91.41 | U55: 91.74
A56: 60 | B56: =B21 -> 91.805 | C56: 91.605 | D56: =D21 -> 91.405 | E56: 90.68 | F56: 91.2025 | G56: 91.725 | H56: 91.2 | I56: 91.4025 | J56: 91.605 | L56: 0.09616764178 | M56: 91.805 | N56: 91.605 | O56: 91.405 | P56: 90.68 | Q56: 91.2025 | R56: 91.725 | S56: 91.2 | T56: 91.4025 | U56: 91.605
A57: 70 | B57: =B22 -> 91.195 | C57: 91.7125 | D57: =D22 -> 92.23 | E57: 91.08 | F57: 91.5575 | G57: 92.035 | H57: 90.935 | I57: 91.2325 | J57: 91.53 | L57: 0.1121955821 | M57: 91.195 | N57: 91.7125 | O57: 92.23 | P57: 91.08 | Q57: 91.5575 | R57: 92.035 | S57: 90.935 | T57: 91.2325 | U57: 91.53
A58: 80 | B58: =B23 -> 92.095 | C58: 92.3425 | D58: =D23 -> 92.59 | E58: 91.23 | F58: 91.675 | G58: 92.12 | H58: 91.3 | I58: 91.6775 | J58: 92.055 | L58: 0.1282235224 | M58: 92.095 | N58: 92.3425 | O58: 92.59 | P58: 91.23 | Q58: 91.675 | R58: 92.12 | S58: 91.3 | T58: 91.6775 | U58: 92.055
A59: 90 | B59: 91.77 | C59: 91.695 | D59: =D24 -> 91.62 | E59: 91.195 | F59: 91.71 | G59: 92.225 | H59: 91.56 | I59: 91.97 | J59: 92.38 | L59: 0.1442514627 | M59: 91.77 | N59: 91.695 | O59: 91.62 | P59: 91.195 | Q59: 91.71 | R59: 92.225 | S59: 91.56 | T59: 91.97 | U59: 92.38
L66: =L47 -> 0 | M66: =(M47-M$47)*$M$82*$M$83 -> 0 | N66: =(N47-N$47)*$M$82*$M$83 -> 0 | O66: 0 | P66: 0 | Q66: 0 | R66: 0 | S66: 0 | T66: 0 | U66: 0
L67: 0.004006985074 | M67: =(M48-M$47)*$M$82*$M$83 -> 14.43205556 | N67: 11.75880556 | O67: 9.085555556 | P67: 18.73022222 | Q67: 18.99230556 | R67: 19.25438889 | S67: 12.75472222 | T67: 11.58408333 | U67: 10.41344444
L68: 0.008013970149 | M68: 30.85594444 | N68: 31.88680556 | O68: 32.91766667 | P68: 42.91177778 | Q68: 37.91472222 | R68: 32.91766667 | S68: 29.35333333 | T68: 27.3615 | U68: 25.36966667
L69: 0.0160279403 | M69: 62.76022222 | N69: 62.51561111 | O69: 62.271 | P69: 70.48294444 | Q69: 68.22902778 | R69: 65.97511111 | S69: 59.65016667 | T69: 61.48475 | U69: 63.31933333
L70: 0.02404191045 | M70: 76.17888889 | N70: 78.46775 | O70: 80.75661111 | P70: 81.94472222 | Q70: 82.36405556 | R70: 82.78338889 | S70: 73.97738889 | T70: 78.13577778 | U70: 82.29416667
L71: 0.03205588059 | M71: 87.71055556 | N71: 91.48455556 | O71: 95.25855556 | P71: 91.58938889 | Q71: 91.36225 | R71: 91.13511111 | S71: 82.85327778 | T71: 85.24697222 | U71: 87.64066667
L72: 0.04808382089 | M72: 98.05411111 | N72: 100.7623056 | O72: 103.4705 | P72: 100.3604444 | Q72: 101.5660278 | R72: 102.7716111 | S72: 92.11355556 | T72: 96.60391667 | U72: 101.0942778
L73: 0.06411176119 | M73: 99.94111111 | N73: 105.3225556 | O73: 110.704 | P73: 103.3307222 | Q73: 103.7151111 | R73: 104.0995 | S73: 96.72622222 | T73: 101.1292222 | U73: 105.5322222
L74: 0.08013970149 | M74: 105.8117778 | N74: 111.2456389 | O74: 116.6795 | P74: 103.3307222 | Q74: 104.6236667 | R74: 105.9166111 | S74: 96.69127778 | T74: 102.4396389 | U74: 108.188
L75: 0.09616764178 | M75: 107.4192222 | N75: 108.4151389 | O75: 109.4110556 | P75: 103.2258889 | Q75: 105.9166111 | R75: 108.6073333 | S75: 97.52994444 | T75: 102.3872222 | U75: 107.2445
L76: 0.1121955821 | M76: 103.156 | N76: 109.1664444 | O76: 115.1768889 | P76: 106.0214444 | Q76: 108.3976667 | R76: 110.7738889 | S76: 95.67788889 | T76: 101.1991111 | U76: 106.7203333
L77: 0.1282235224 | M77: 109.446 | N77: 113.5694444 | O77: 117.6928889 | P77: 107.0697778 | Q77: 109.2188611 | R77: 111.3679444 | S77: 98.22883333 | T77: 104.3091667 | U77: 110.3895
L78: 0.1442514627 | M78: 107.1746111 | N78: 109.0441389 | O78: 110.9136667 | P78: 106.8251667 | Q78: 109.4634722 | R78: 112.1017778 | S78: 100.0459444 | T78: 106.3534167 | U78: 112.6608889
L82: alpha | M82: =(5/9)*0.000017 -> 9.444444444e-06 | N82: in/in/F
L83: E-CMD | M83: 740000 | N83: psi
L84: t | M84: 0.002

Sheet 225 fpm
A4: Line speed | B4: 225 fpm | G4: Line speed | H4: 225 fpm | M4: Line speed | N4: 225 fpm
A5: Delta T | B5: ~ 25 F | G5: Delta T | H5: ~ 25 F | M5: Delta T | N5: ~ 25 F
A6: Line Tension | B6: 1 pli | G6: Line Tension | H6: 2 pli | M6: Line Tension | N6: 3 pli
A7: Air and roller tempertures determined from readings taken over a ~9 minute span | G7: Air and roller tempertures determined from readings taken over a ~9 minute span | M7: Air and roller tempertures determined from readings taken over a ~9 minute span
A8: Material tempertures determined from readings taken over a 2.5minute span | G8: Material tempertures determined from readings taken over a 2.5minute span | M8: Material tempertures determined from readings taken over a 2.5minute span
A10: Material Temp | E10: =AVERAGE(E12:E27) -> 72.18141477 | F10: =AVERAGE(F12:F27) -> 92.41768182 | G10: Material Temp | K10: =AVERAGE(K12:K27) -> 72.08195455 | L10: =AVERAGE(L12:L27) -> 92.83923295 | M10: Material Temp | Q10: =AVERAGE(Q12:Q27) -> 72.43859091 | R10: =AVERAGE(R12:R27) -> 92.95907386
A11: Angular Position | B11: Avg 2.50" Left | C11: Avg of R&L | D11: Avg 2.50" Right | E11: Avg Air Temp | F11: Avg Roller Temp | H11: Avg 2.50" Left | I11: Avg of R&L | J11: Avg 2.50" Right | K11: Avg Air Temp | L11: Avg Roller Temp | N11: Avg 2.50" Left | O11: Avg of R&L | P11: Avg 2.50" Right | Q11: Avg Air Temp | R11: Avg Roller Temp
A12: =AVERAGE('225_JULY'!A12,'225_AUG'!A12) -> 0 | B12: =AVERAGE('225_JULY'!B12,'225_AUG'!B12) -> 76.545 | C12: =AVERAGE(B12,D12) -> 76.1375 | D12: =AVERAGE('225_JULY'!D12,'225_AUG'!D12) -> 75.73 | E12: =AVERAGE('225_JULY'!E12,'225_AUG'!E12) -> 72.38363636 | F12: =AVERAGE('225_JULY'!F12,'225_AUG'!F12) -> 93.46009091 | G12: =AVERAGE('225_JULY'!G12,'225_AUG'!G12) -> 0 | H12: =AVERAGE('225_JULY'!H12,'225_AUG'!H12) -> 75.825 | I12: =AVERAGE(H12,J12) -> 75.435 | J12: =AVERAGE('225_JULY'!J12,'225_AUG'!J12) -> 75.045 | K12: =AVERAGE('225_JULY'!K12,'225_AUG'!K12) -> 70.62136364 | L12: =AVERAGE('225_JULY'!L12,'225_AUG'!L12) -> 93.01 | M12: =AVERAGE('225_JULY'!M12,'225_AUG'!M12) -> 0 | N12: =AVERAGE('225_JULY'!N12,'225_AUG'!N12) -> 76.235 | O12: =AVERAGE(N12,P12) -> 75.9425 | P12: =AVERAGE('225_JULY'!P12,'225_AUG'!P12) -> 75.65 | Q12: =AVERAGE('225_JULY'!Q12,'225_AUG'!Q12) -> 71.25745455 | R12: =AVERAGE('225_JULY'!R12,'225_AUG'!R12) -> 93.146
A13: =AVERAGE('225_JULY'!A13,'225_AUG'!A13) -> 2.5 | B13: =AVERAGE('225_AUG'!B13) -> 76.11 | C13: =AVERAGE(B13,D13) -> 76.16 | D13: =AVERAGE('225_AUG'!D13) -> 76.21 | E13: =AVERAGE('225_AUG'!E13) -> 72.76054545 | F13: =AVERAGE('225_AUG'!F13) -> 91.97618182 | G13: =AVERAGE('225_JULY'!G13,'225_AUG'!G13) -> 2.5 | H13: =AVERAGE('225_AUG'!H13) -> 77.78 | I13: =AVERAGE(H13,J13) -> 77.42 | J13: =AVERAGE('225_AUG'!J13) -> 77.06 | K13: =AVERAGE('225_AUG'!K13) -> 72.46527273 | L13: =AVERAGE('225_AUG'!L13) -> 92.72381818 | M13: =AVERAGE('225_JULY'!M13,'225_AUG'!M13) -> 2.5 | N13: =AVERAGE('225_AUG'!N13) -> 77.88 | O13: =AVERAGE(N13,P13) -> 77.915 | P13: =AVERAGE('225_AUG'!P13) -> 77.95 | Q13: =AVERAGE('225_AUG'!Q13) -> 73.80454545 | R13: =AVERAGE('225_AUG'!R13) -> 92.64472727
A14: =AVERAGE('225_JULY'!A14,'225_AUG'!A14) -> 5 | B14: =AVERAGE('225_JULY'!B14,'225_AUG'!B14) -> 78.725 | C14: =AVERAGE(B14,D14) -> 78.3525 | D14: =AVERAGE('225_JULY'!D14,'225_AUG'!D14) -> 77.98 | E14: =AVERAGE('225_JULY'!E14,'225_AUG'!E14) -> 72.74563636 | F14: =AVERAGE('225_JULY'!F14,'225_AUG'!F14) -> 92.82318182 | G14: =AVERAGE('225_JULY'!G14,'225_AUG'!G14) -> 5 | H14: =AVERAGE('225_JULY'!H14,'225_AUG'!H14) -> 79.405 | I14: =AVERAGE(H14,J14) -> 79.305 | J14: =AVERAGE('225_JULY'!J14,'225_AUG'!J14) -> 79.205 | K14: =AVERAGE('225_JULY'!K14,'225_AUG'!K14) -> 73.73990909 | L14: =AVERAGE('225_JULY'!L14,'225_AUG'!L14) -> 92.65609091 | M14: =AVERAGE('225_JULY'!M14,'225_AUG'!M14) -> 5 | N14: =AVERAGE('225_JULY'!N14,'225_AUG'!N14) -> 79.1 | O14: =AVERAGE(N14,P14) -> 78.665 | P14: =AVERAGE('225_JULY'!P14,'225_AUG'!P14) -> 78.23 | Q14: =AVERAGE('225_JULY'!Q14,'225_AUG'!Q14) -> 72.31654545 | R14: =AVERAGE('225_JULY'!R14,'225_AUG'!R14) -> 92.73745455
A15: =AVERAGE('225_JULY'!A15,'225_AUG'!A15) -> 10 | B15: =AVERAGE('225_JULY'!B15,'225_AUG'!B15) -> 82.155 | C15: 81.84 | D15: =AVERAGE('225_JULY'!D15,'225_AUG'!D15) -> 81.525 | E15: =AVERAGE('225_JULY'!E15,'225_AUG'!E15) -> 70.531 | F15: =AVERAGE('225_JULY'!F15,'225_AUG'!F15) -> 92.15436364 | G15: =AVERAGE('225_JULY'!G15,'225_AUG'!G15) -> 10 | H15: =AVERAGE('225_JULY'!H15,'225_AUG'!H15) -> 83.075 | I15: 82.32 | J15: =AVERAGE('225_JULY'!J15,'225_AUG'!J15) -> 81.565 | K15: =AVERAGE('225_JULY'!K15,'225_AUG'!K15) -> 71.55254545 | L15: =AVERAGE('225_JULY'!L15,'225_AUG'!L15) -> 93.00709091 | M15: =AVERAGE('225_JULY'!M15,'225_AUG'!M15) -> 10 | N15: =AVERAGE('225_JULY'!N15,'225_AUG'!N15) -> 82.72 | O15: 82.4125 | P15: =AVERAGE('225_JULY'!P15,'225_AUG'!P15) -> 82.105 | Q15: =AVERAGE('225_JULY'!Q15,'225_AUG'!Q15) -> 72.55436364 | R15: =AVERAGE('225_JULY'!R15,'225_AUG'!R15) -> 93.03827273
A16: =AVERAGE('225_JULY'!A16,'225_AUG'!A16) -> 15 | B16: =AVERAGE('225_JULY'!B16,'225_AUG'!B16) -> 84.215 | C16: 83.9 | D16: =AVERAGE('225_JULY'!D16,'225_AUG'!D16) -> 83.585 | E16: =AVERAGE('225_JULY'!E16,'225_AUG'!E16) -> 71.18972727 | F16: =AVERAGE('225_JULY'!F16,'225_AUG'!F16) -> 92.09118182 | G16: =AVERAGE('225_JULY'!G16,'225_AUG'!G16) -> 15 | H16: =AVERAGE('225_JULY'!H16,'225_AUG'!H16) -> 83.89 | I16: 83.8725 | J16: =AVERAGE('225_JULY'!J16,'225_AUG'!J16) -> 83.855 | K16: =AVERAGE('225_JULY'!K16,'225_AUG'!K16) -> 70.42518182 | L16: =AVERAGE('225_JULY'!L16,'225_AUG'!L16) -> 93.29263636 | M16: =AVERAGE('225_JULY'!M16,'225_AUG'!M16) -> 15 | N16: =AVERAGE('225_JULY'!N16,'225_AUG'!N16) -> 85.005 | O16: 84.725 | P16: =AVERAGE('225_JULY'!P16,'225_AUG'!P16) -> 84.445 | Q16: =AVERAGE('225_JULY'!Q16,'225_AUG'!Q16) -> 72.44072727 | R16: =AVERAGE('225_JULY'!R16,'225_AUG'!R16) -> 92.83309091
A17: =AVERAGE('225_JULY'!A17,'225_AUG'!A17) -> 20 | B17: =AVERAGE('225_JULY'!B17,'225_AUG'!B17) -> 85.21 | C17: 85.2125 | D17: =AVERAGE('225_JULY'!D17,'225_AUG'!D17) -> 85.215 | E17: =AVERAGE('225_JULY'!E17,'225_AUG'!E17) -> 72.90245455 | F17: =AVERAGE('225_JULY'!F17,'225_AUG'!F17) -> 91.54409091 | G17: =AVERAGE('225_JULY'!G17,'225_AUG'!G17) -> 20 | H17: =AVERAGE('225_JULY'!H17,'225_AUG'!H17) -> 85.795 | I17: 85.82 | J17: =AVERAGE('225_JULY'!J17,'225_AUG'!J17) -> 85.845 | K17: =AVERAGE('225_JULY'!K17,'225_AUG'!K17) -> 72.78336364 | L17: =AVERAGE('225_JULY'!L17,'225_AUG'!L17) -> 92.57518182 | M17: =AVERAGE('225_JULY'!M17,'225_AUG'!M17) -> 20 | N17: =AVERAGE('225_JULY'!N17,'225_AUG'!N17) -> 86.635 | O17: 86.3675 | P17: =AVERAGE('225_JULY'!P17,'225_AUG'!P17) -> 86.1 | Q17: =AVERAGE('225_JULY'!Q17,'225_AUG'!Q17) -> 72.24454545 | R17: =AVERAGE('225_JULY'!R17,'225_AUG'!R17) -> 93.11809091
A18: =AVERAGE('225_JULY'!A18,'225_AUG'!A18) -> 30 | B18: =AVERAGE('225_JULY'!B18,'225_AUG'!B18) -> 87.175 | C18: 87.58 | D18: =AVERAGE('225_JULY'!D18,'225_AUG'!D18) -> 87.985 | E18: =AVERAGE('225_JULY'!E18,'225_AUG'!E18) -> 72.73490909 | F18: =AVERAGE('225_JULY'!F18,'225_AUG'!F18) -> 91.78645455 | G18: =AVERAGE('225_JULY'!G18,'225_AUG'!G18) -> 30 | H18: =AVERAGE('225_JULY'!H18,'225_AUG'!H18) -> 88.28 | I18: 88.2675 | J18: =AVERAGE('225_JULY'!J18,'225_AUG'!J18) -> 88.255 | K18: =AVERAGE('225_JULY'!K18,'225_AUG'!K18) -> 73.42227273 | L18: =AVERAGE('225_JULY'!L18,'225_AUG'!L18) -> 92.70245455 | M18: =AVERAGE('225_JULY'!M18,'225_AUG'!M18) -> 30 | N18: =AVERAGE('225_JULY'!N18,'225_AUG'!N18) -> 88.98 | O18: 88.7275 | P18: =AVERAGE('225_JULY'!P18,'225_AUG'!P18) -> 88.475 | Q18: =AVERAGE('225_JULY'!Q18,'225_AUG'!Q18) -> 72.04672727 | R18: =AVERAGE('225_JULY'!R18,'225_AUG'!R18) -> 93.23618182
A19: =AVERAGE('225_JULY'!A19,'225_AUG'!A19) -> 40 | B19: =AVERAGE('225_JULY'!B19,'225_AUG'!B19) -> 88.205 | C19: 88.705 | D19: =AVERAGE('225_JULY'!D19,'225_AUG'!D19) -> 89.205 | E19: =AVERAGE('225_JULY'!E19,'225_AUG'!E19) -> 71.51318182 | F19: =AVERAGE('225_JULY'!F19,'225_AUG'!F19) -> 92.55672727 | G19: =AVERAGE('225_JULY'!G19,'225_AUG'!G19) -> 40 | H19: =AVERAGE('225_JULY'!H19,'225_AUG'!H19) -> 88.46 | I19: 88.59 | J19: =AVERAGE('225_JULY'!J19,'225_AUG'!J19) -> 88.72 | K19: =AVERAGE('225_JULY'!K19,'225_AUG'!K19) -> 71.28936364 | L19: =AVERAGE('225_JULY'!L19,'225_AUG'!L19) -> 92.52 | M19: =AVERAGE('225_JULY'!M19,'225_AUG'!M19) -> 40 | N19: =AVERAGE('225_JULY'!N19,'225_AUG'!N19) -> 89.49 | O19: 89.5475 | P19: =AVERAGE('225_JULY'!P19,'225_AUG'!P19) -> 89.605 | Q19: =AVERAGE('225_JULY'!Q19,'225_AUG'!Q19) -> 72.31581818 | R19: =AVERAGE('225_JULY'!R19,'225_AUG'!R19) -> 92.87463636
A20: =AVERAGE('225_JULY'!A20,'225_AUG'!A20) -> 50 | B20: =AVERAGE('225_JULY'!B20,'225_AUG'!B20) -> 89.13 | C20: 89.615 | D20: =AVERAGE('225_JULY'!D20,'225_AUG'!D20) -> 90.1 | E20: =AVERAGE('225_JULY'!E20,'225_AUG'!E20) -> 72.79754545 | F20: =AVERAGE('225_JULY'!F20,'225_AUG'!F20) -> 92.25509091 | G20: =AVERAGE('225_JULY'!G20,'225_AUG'!G20) -> 50 | H20: =AVERAGE('225_JULY'!H20,'225_AUG'!H20) -> 89.63 | I20: 89.735 | J20: =AVERAGE('225_JULY'!J20,'225_AUG'!J20) -> 89.84 | K20: =AVERAGE('225_JULY'!K20,'225_AUG'!K20) -> 72.74863636 | L20: =AVERAGE('225_JULY'!L20,'225_AUG'!L20) -> 92.75445455 | M20: =AVERAGE('225_JULY'!M20,'225_AUG'!M20) -> 50 | N20: =AVERAGE('225_JULY'!N20,'225_AUG'!N20) -> 90.18 | O20: 90.16 | P20: =AVERAGE('225_JULY'!P20,'225_AUG'!P20) -> 90.14 | Q20: =AVERAGE('225_JULY'!Q20,'225_AUG'!Q20) -> 72.73409091 | R20: =AVERAGE('225_JULY'!R20,'225_AUG'!R20) -> 93.06572727
A21: =AVERAGE('225_JULY'!A21,'225_AUG'!A21) -> 60 | B21: =AVERAGE('225_JULY'!B21,'225_AUG'!B21) -> 89.545 | C21: 89.92 | D21: =AVERAGE('225_JULY'!D21,'225_AUG'!D21) -> 90.295 | E21: =AVERAGE('225_JULY'!E21,'225_AUG'!E21) -> 73.27454545 | F21: =AVERAGE('225_JULY'!F21,'225_AUG'!F21) -> 92.01227273 | G21: =AVERAGE('225_JULY'!G21,'225_AUG'!G21) -> 60 | H21: =AVERAGE('225_JULY'!H21,'225_AUG'!H21) -> 89.855 | I21: 90.1175 | J21: =AVERAGE('225_JULY'!J21,'225_AUG'!J21) -> 90.38 | K21: =AVERAGE('225_JULY'!K21,'225_AUG'!K21) -> 72.19554545 | L21: =AVERAGE('225_JULY'!L21,'225_AUG'!L21) -> 92.89663636 | M21: =AVERAGE('225_JULY'!M21,'225_AUG'!M21) -> 60 | N21: =AVERAGE('225_JULY'!N21,'225_AUG'!N21) -> 89.915 | O21: 90.1125 | P21: =AVERAGE('225_JULY'!P21,'225_AUG'!P21) -> 90.31 | Q21: =AVERAGE('225_JULY'!Q21,'225_AUG'!Q21) -> 72.43472727 | R21: =AVERAGE('225_JULY'!R21,'225_AUG'!R21) -> 92.96681818
A22: =AVERAGE('225_JULY'!A22,'225_AUG'!A22) -> 70 | B22: =AVERAGE('225_JULY'!B22,'225_AUG'!B22) -> 90.13 | C22: 90.5325 | D22: =AVERAGE('225_JULY'!D22,'225_AUG'!D22) -> 90.935 | E22: =AVERAGE('225_JULY'!E22,'225_AUG'!E22) -> 72.73327273 | F22: =AVERAGE('225_JULY'!F22,'225_AUG'!F22) -> 92.17209091 | G22: =AVERAGE('225_JULY'!G22,'225_AUG'!G22) -> 70 | H22: =AVERAGE('225_JULY'!H22,'225_AUG'!H22) -> 89.745 | I22: 90.0275 | J22: =AVERAGE('225_JULY'!J22,'225_AUG'!J22) -> 90.31 | K22: =AVERAGE('225_JULY'!K22,'225_AUG'!K22) -> 71.54945455 | L22: =AVERAGE('225_JULY'!L22,'225_AUG'!L22) -> 92.79 | M22: =AVERAGE('225_JULY'!M22,'225_AUG'!M22) -> 70 | N22: =AVERAGE('225_JULY'!N22,'225_AUG'!N22) -> 90.025 | O22: 90.3625 | P22: =AVERAGE('225_JULY'!P22,'225_AUG'!P22) -> 90.7 | Q22: =AVERAGE('225_JULY'!Q22,'225_AUG'!Q22) -> 72.04436364 | R22: =AVERAGE('225_JULY'!R22,'225_AUG'!R22) -> 92.99590909
A23: =AVERAGE('225_JULY'!A23,'225_AUG'!A23) -> 80 | B23: =AVERAGE('225_JULY'!B23,'225_AUG'!B23) -> 90.31 | C23: 90.3425 | D23: =AVERAGE('225_JULY'!D23,'225_AUG'!D23) -> 90.375 | E23: =AVERAGE('225_JULY'!E23,'225_AUG'!E23) -> 70.615 | F23: =AVERAGE('225_JULY'!F23,'225_AUG'!F23) -> 92.77327273 | G23: =AVERAGE('225_JULY'!G23,'225_AUG'!G23) -> 80 | H23: =AVERAGE('225_JULY'!H23,'225_AUG'!H23) -> 90.19 | I23: 90.26 | J23: =AVERAGE('225_JULY'!J23,'225_AUG'!J23) -> 90.33 | K23: =AVERAGE('225_JULY'!K23,'225_AUG'!K23) -> 72.80545455 | L23: =AVERAGE('225_JULY'!L23,'225_AUG'!L23) -> 92.75772727 | M23: =AVERAGE('225_JULY'!M23,'225_AUG'!M23) -> 80 | N23: =AVERAGE('225_JULY'!N23,'225_AUG'!N23) -> 90.4 | O23: 90.4925 | P23: =AVERAGE('225_JULY'!P23,'225_AUG'!P23) -> 90.585 | Q23: =AVERAGE('225_JULY'!Q23,'225_AUG'!Q23) -> 72.68227273 | R23: =AVERAGE('225_JULY'!R23,'225_AUG'!R23) -> 92.81945455
A24: =AVERAGE('225_JULY'!A24,'225_AUG'!A24) -> 90 | B24: =AVERAGE('225_JULY'!B24,'225_AUG'!B24) -> 89.435 | C24: 89.82 | D24: =AVERAGE('225_JULY'!D24,'225_AUG'!D24) -> 90.205 | E24: =AVERAGE('225_JULY'!E24,'225_AUG'!E24) -> 72.94772727 | F24: =AVERAGE('225_JULY'!F24,'225_AUG'!F24) -> 91.79809091 | G24: =AVERAGE('225_JULY'!G24,'225_AUG'!G24) -> 90 | H24: =AVERAGE('225_JULY'!H24,'225_AUG'!H24) -> 90.22 | I24: 90.4 | J24: =AVERAGE('225_JULY'!J24,'225_AUG'!J24) -> 90.58 | K24: =AVERAGE('225_JULY'!K24,'225_AUG'!K24) -> 72.31109091 | L24: =AVERAGE('225_JULY'!L24,'225_AUG'!L24) -> 92.86472727 | M24: =AVERAGE('225_JULY'!M24,'225_AUG'!M24) -> 90 | N24: =AVERAGE('225_JULY'!N24,'225_AUG'!N24) -> 90.69 | O24: 90.9625 | P24: =AVERAGE('225_JULY'!P24,'225_AUG'!P24) -> 91.235 | Q24: =AVERAGE('225_JULY'!Q24,'225_AUG'!Q24) -> 72.64909091 | R24: =AVERAGE('225_JULY'!R24,'225_AUG'!R24) -> 93.22936364
A25: =AVERAGE('225_JULY'!A25,'225_AUG'!A25) -> 100 | B25: =AVERAGE('225_JULY'!B25,'225_AUG'!B25) -> 90.07 | C25: 90.38 | D25: =AVERAGE('225_JULY'!D25,'225_AUG'!D25) -> 90.69 | E25: =AVERAGE('225_AUG'!E25) -> 73.91181818 | F25: =AVERAGE('225_AUG'!F25) -> 92.77036364 | G25: =AVERAGE('225_JULY'!G25,'225_AUG'!G25) -> 100 | H25: =AVERAGE('225_JULY'!H25,'225_AUG'!H25) -> 90.36 | I25: 90.585 | J25: =AVERAGE('225_JULY'!J25,'225_AUG'!J25) -> 90.81 | K25: =AVERAGE('225_JULY'!K25,'225_AUG'!K25) -> 71.32963636 | L25: =AVERAGE('225_JULY'!L25,'225_AUG'!L25) -> 93.29363636 | M25: =AVERAGE('225_JULY'!M25,'225_AUG'!M25) -> 100 | N25: =AVERAGE('225_JULY'!N25,'225_AUG'!N25) -> 90.19 | O25: 90.405 | P25: =AVERAGE('225_JULY'!P25,'225_AUG'!P25) -> 90.62 | Q25: =AVERAGE('225_JULY'!Q25,'225_AUG'!Q25) -> 73.70072727 | R25: =AVERAGE('225_JULY'!R25,'225_AUG'!R25) -> 92.70236364
A26: =AVERAGE('225_JULY'!A26,'225_AUG'!A26) -> 110 | B26: =AVERAGE('225_JULY'!B26,'225_AUG'!B26) -> 90.12 | C26: 90.0775 | D26: =AVERAGE('225_JULY'!D26,'225_AUG'!D26) -> 90.035 | E26: =AVERAGE('225_AUG'!E26) -> 69.97254545 | F26: =AVERAGE('225_AUG'!F26) -> 93.54290909 | G26: =AVERAGE('225_JULY'!G26,'225_AUG'!G26) -> 110 | H26: =AVERAGE('225_JULY'!H26,'225_AUG'!H26) -> 89.59 | I26: 89.785 | J26: =AVERAGE('225_JULY'!J26,'225_AUG'!J26) -> 89.98 | K26: =AVERAGE('225_JULY'!K26,'225_AUG'!K26) -> 70.78672727 | L26: =AVERAGE('225_JULY'!L26,'225_AUG'!L26) -> 92.72636364 | M26: =AVERAGE('225_JULY'!M26,'225_AUG'!M26) -> 110 | N26: =AVERAGE('225_JULY'!N26,'225_AUG'!N26) -> 90.52 | O26: 90.545 | P26: =AVERAGE('225_JULY'!P26,'225_AUG'!P26) -> 90.57 | Q26: =AVERAGE('225_JULY'!Q26,'225_AUG'!Q26) -> 73.02345455 | R26: =AVERAGE('225_JULY'!R26,'225_AUG'!R26) -> 92.72636364
A27: =AVERAGE('225_JULY'!A27,'225_AUG'!A27) -> 120 | B27: =AVERAGE('225_JULY'!B27,'225_AUG'!B27) -> 89.92 | C27: 89.97 | D27: =AVERAGE('225_JULY'!D27,'225_AUG'!D27) -> 90.02 | E27: =AVERAGE('225_JULY'!E27,'225_AUG'!E27) -> 71.88909091 | F27: =AVERAGE('225_JULY'!F27,'225_AUG'!F27) -> 92.96654545 | G27: =AVERAGE('225_JULY'!G27,'225_AUG'!G27) -> 120 | H27: =AVERAGE('225_JULY'!H27,'225_AUG'!H27) -> 90.03 | I27: 90.31 | J27: =AVERAGE('225_JULY'!J27,'225_AUG'!J27) -> 90.59 | K27: =AVERAGE('225_JULY'!K27,'225_AUG'!K27) -> 73.28545455 | L27: =AVERAGE('225_JULY'!L27,'225_AUG'!L27) -> 92.85690909 | M27: =AVERAGE('225_JULY'!M27,'225_AUG'!M27) -> 120 | N27: =AVERAGE('225_JULY'!N27,'225_AUG'!N27) -> 90.14 | O27: 90.435 | P27: =AVERAGE('225_JULY'!P27,'225_AUG'!P27) -> 90.73 | Q27: =AVERAGE('225_JULY'!Q27,'225_AUG'!Q27) -> 70.768 | R27: =AVERAGE('225_JULY'!R27,'225_AUG'!R27) -> 93.21072727
B48: 1 PLI-2.5 Lt | C48: 1 PLI-AVG | D48: 1 PLI-2.5 Rt | E48: 2 PLI-2.5 Lt | F48: 2 PLI-AVG | G48: 2 PLI-2.5 Rt | H48: 3 PLI-2.5 Lt | I48: 3 PLI-AVG | J48: 3 PLI-2.5 Rt | K48: dist | L48: time | M48: =B48 -> 1 PLI-2.5 Lt | N48: =C48 -> 1 PLI-AVG | O48: =D48 -> 1 PLI-2.5 Rt | P48: =E48 -> 2 PLI-2.5 Lt | Q48: =F48 -> 2 PLI-AVG | R48: =G48 -> 2 PLI-2.5 Rt | S48: =H48 -> 3 PLI-2.5 Lt | T48: =I48 -> 3 PLI-AVG | U48: =J48 -> 3 PLI-2.5 Rt
A49: =A12 -> 0 | B49: =B12 -> 76.545 | C49: =C12 -> 76.1375 | D49: =D12 -> 75.73 | E49: =H12 -> 75.825 | F49: =I12 -> 75.435 | G49: 75.045 | H49: =N12 -> 76.235 | I49: =O12 -> 75.9425 | J49: 75.65 | K49: =$A49*5.51*PI()/360 -> 0 | L49: =A49*PI()*(5.51/2)/(180*45) -> 0 | M49: 76.545 | N49: 76.1375 | O49: 75.73 | P49: 75.825 | Q49: 75.435 | R49: 75.045 | S49: 76.235 | T49: 75.9425 | U49: 75.65
A50: =A13 -> 2.5 | B50: =B13 -> 76.11 | C50: 76.16 | D50: 76.21 | E50: =H13 -> 77.78 | F50: =I13 -> 77.42 | G50: =J13 -> 77.06 | H50: =N13 -> 77.88 | I50: =O13 -> 77.915 | J50: =P13 -> 77.95 | K50: 0.1202095522 | L50: 0.002671323383 | M50: 76.11 | N50: 76.16 | O50: 76.21 | P50: 77.78 | Q50: 77.42 | R50: 77.06 | S50: 77.88 | T50: 77.915 | U50: 77.95
A51: 5 | B51: =B14 -> 78.725 | C51: 78.3525 | D51: 77.98 | E51: 79.405 | F51: 79.305 | G51: 79.205 | H51: 79.1 | I51: 78.665 | J51: 78.23 | K51: 0.2404191045 | L51: 0.005342646766 | M51: 78.725 | N51: 78.3525 | O51: 77.98 | P51: 79.405 | Q51: 79.305 | R51: 79.205 | S51: 79.1 | T51: 78.665 | U51: 78.23
A52: 10 | B52: =B15 -> 82.155 | C52: 81.84 | D52: 81.525 | E52: 83.075 | F52: 82.32 | G52: 81.565 | H52: 82.72 | I52: 82.4125 | J52: 82.105 | K52: 0.4808382089 | L52: 0.01068529353 | M52: 82.155 | N52: 81.84 | O52: 81.525 | P52: 83.075 | Q52: 82.32 | R52: 81.565 | S52: 82.72 | T52: 82.4125 | U52: 82.105
A53: 15 | B53: =B16 -> 84.215 | C53: 83.9 | D53: 83.585 | E53: 83.89 | F53: 83.8725 | G53: 83.855 | H53: 85.005 | I53: 84.725 | J53: 84.445 | K53: 0.7212573134 | L53: 0.0160279403 | M53: 84.215 | N53: 83.9 | O53: 83.585 | P53: 83.89 | Q53: 83.8725 | R53: 83.855 | S53: 85.005 | T53: 84.725 | U53: 84.445
A54: 20 | B54: =B17 -> 85.21 | C54: 85.2125 | D54: 85.215 | E54: 85.795 | F54: 85.82 | G54: 85.845 | H54: 86.635 | I54: 86.3675 | J54: 86.1 | K54: 0.9616764178 | L54: 0.02137058706 | M54: 85.21 | N54: 85.2125 | O54: 85.215 | P54: 85.795 | Q54: 85.82 | R54: 85.845 | S54: 86.635 | T54: 86.3675 | U54: 86.1
A55: 30 | B55: =B18 -> 87.175 | C55: 87.58 | D55: 87.985 | E55: 88.28 | F55: 88.2675 | G55: 88.255 | H55: 88.98 | I55: 88.7275 | J55: 88.475 | K55: 1.442514627 | L55: 0.03205588059 | M55: 87.175 | N55: 87.58 | O55: 87.985 | P55: 88.28 | Q55: 88.2675 | R55: 88.255 | S55: 88.98 | T55: 88.7275 | U55: 88.475
A56: 40 | B56: =B19 -> 88.205 | C56: 88.705 | D56: 89.205 | E56: 88.46 | F56: 88.59 | G56: 88.72 | H56: 89.49 | I56: 89.5475 | J56: 89.605 | K56: 1.923352836 | L56: 0.04274117413 | M56: 88.205 | N56: 88.705 | O56: 89.205 | P56: 88.46 | Q56: 88.59 | R56: 88.72 | S56: 89.49 | T56: 89.5475 | U56: 89.605
A57: 50 | B57: =B20 -> 89.13 | C57: 89.615 | D57: 90.1 | E57: 89.63 | F57: 89.735 | G57: 89.84 | H57: 90.18 | I57: 90.16 | J57: 90.14 | K57: 2.404191045 | L57: 0.05342646766 | M57: 89.13 | N57: 89.615 | O57: 90.1 | P57: 89.63 | Q57: 89.735 | R57: 89.84 | S57: 90.18 | T57: 90.16 | U57: 90.14
A58: 60 | B58: =B21 -> 89.545 | C58: 89.92 | D58: 90.295 | E58: 89.855 | F58: 90.1175 | G58: 90.38 | H58: 89.915 | I58: 90.1125 | J58: 90.31 | K58: 2.885029254 | L58: 0.06411176119 | M58: 89.545 | N58: 89.92 | O58: 90.295 | P58: 89.855 | Q58: 90.1175 | R58: 90.38 | S58: 89.915 | T58: 90.1125 | U58: 90.31
A59: 70 | B59: =B22 -> 90.13 | C59: 90.5325 | D59: 90.935 | E59: 89.745 | F59: 90.0275 | G59: 90.31 | H59: 90.025 | I59: 90.3625 | J59: 90.7 | K59: 3.365867462 | L59: 0.07479705472 | M59: 90.13 | N59: 90.5325 | O59: 90.935 | P59: 89.745 | Q59: 90.0275 | R59: 90.31 | S59: 90.025 | T59: 90.3625 | U59: 90.7
A60: 80 | B60: =B23 -> 90.31 | C60: 90.3425 | D60: 90.375 | E60: 90.19 | F60: 90.26 | G60: 90.33 | H60: 90.4 | I60: 90.4925 | J60: 90.585 | K60: 3.846705671 | L60: 0.08548234825 | M60: 90.31 | N60: 90.3425 | O60: 90.375 | P60: 90.19 | Q60: 90.26 | R60: 90.33 | S60: 90.4 | T60: 90.4925 | U60: 90.585
A61: 90 | B61: =B24 -> 89.435 | C61: 89.82 | D61: 90.205 | E61: 90.22 | F61: 90.4 | G61: 90.58 | H61: 90.69 | I61: 90.9625 | J61: 91.235 | K61: 4.32754388 | L61: 0.09616764178 | M61: 89.435 | N61: 89.82 | O61: 90.205 | P61: 90.22 | Q61: 90.4 | R61: 90.58 | S61: 90.69 | T61: 90.9625 | U61: 91.235
A62: 100 | B62: =B25 -> 90.07 | C62: 90.38 | D62: 90.69 | E62: 90.36 | F62: 90.585 | G62: 90.81 | H62: 90.19 | I62: 90.405 | J62: 90.62 | K62: 4.808382089 | L62: 0.1068529353 | M62: 90.07 | N62: 90.38 | O62: 90.69 | P62: 90.36 | Q62: 90.585 | R62: 90.81 | S62: 90.19 | T62: 90.405 | U62: 90.62
A63: 110 | B63: =B26 -> 90.12 | C63: 90.0775 | D63: 90.035 | E63: 89.59 | F63: 89.785 | G63: 89.98 | H63: 90.52 | I63: 90.545 | J63: 90.57 | K63: 5.289220298 | L63: 0.1175382288 | M63: 90.12 | N63: 90.0775 | O63: 90.035 | P63: 89.59 | Q63: 89.785 | R63: 89.98 | S63: 90.52 | T63: 90.545 | U63: 90.57
A64: 120 | B64: =B27 -> 89.92 | C64: 89.97 | D64: 90.02 | E64: 90.03 | F64: 90.31 | G64: 90.59 | H64: 90.14 | I64: 90.435 | J64: 90.73 | K64: 5.770058507 | L64: 0.1282235224 | M64: 89.92 | N64: 89.97 | O64: 90.02 | P64: 90.03 | Q64: 90.31 | R64: 90.59 | S64: 90.14 | T64: 90.435 | U64: 90.73
K66: cicumference | L66: =PI()*5.51/2 -> 8.655087761
L68: =L49 -> 0 | M68: =(M49-M$49)*$M$85*$M$86 -> 0 | N68: 0 | O68: 0 | P68: 0 | Q68: 0 | R68: 0 | S68: 0 | T68: 0 | U68: 0
L69: 0.002671323383 | M69: =(M50-M$49)*$M$85*$M$86 -> -3.040166667 | N69: 0.15725 | O69: 3.354666667 | P69: 13.66327778 | Q69: 13.87294444 | R69: 14.08261111 | S69: 11.49672222 | T69: 13.78558333 | U69: 16.07444444
L70: 0.005342646766 | M70: =(M51-M$49)*$M$85*$M$86 -> 15.23577778 | N70: 15.48038889 | O70: 15.725 | P70: 25.02022222 | Q70: 27.047 | R70: 29.07377778 | S70: 20.02316667 | T70: 19.02725 | U70: 18.03133333
L71: 0.01068529353 | M71: =(M52-M$49)*$M$85*$M$86 -> 39.20766667 | N71: 39.85413889 | O71: 40.50061111 | P71: 50.66944444 | Q71: 48.1185 | R71: 45.56755556 | S71: 45.32294444 | T71: 45.21811111 | U71: 45.11327778
L72: 0.0160279403 | M72: =(M53-M$49)*$M$85*$M$86 -> 53.60477778 | N72: 54.25125 | O72: 54.89772222 | P72: 56.36538889 | Q72: 58.96875 | R72: 61.57211111 | S72: 61.29255556 | T72: 61.37991667 | U72: 61.46727778
L73: 0.02137058706 | M73: =(M54-M$49)*$M$85*$M$86 -> 60.55872222 | N73: 63.42416667 | O73: 66.28961111 | P73: 69.67922222 | Q73: 72.57961111 | R73: 75.48 | S73: 72.68444444 | T73: 72.85916667 | U73: 73.03388889
L74: 0.03205588059 | M74: =(M55-M$49)*$M$85*$M$86 -> 74.29188889 | N74: 79.97036111 | O74: 85.64883333 | P74: 87.04661111 | Q74: 89.68491667 | R74: 92.32322222 | S74: 89.07338889 | T74: 89.35294444 | U74: 89.6325
L75: 0.04274117413 | M75: =(M56-M$49)*$M$85*$M$86 -> 81.49044444 | N75: 87.83286111 | O75: 94.17527778 | P75: 88.30461111 | Q75: 91.93883333 | R75: 95.57305556 | S75: 92.63772222 | T75: 95.08383333 | U75: 97.52994444
L76: 0.05342646766 | M76: =(M57-M$49)*$M$85*$M$86 -> 87.95516667 | N76: 94.19275 | O76: 100.4303333 | P76: 96.48161111 | Q76: 99.94111111 | R76: 103.4006111 | S76: 97.46005556 | T76: 99.36452778 | U76: 101.269
L77: 0.06411176119 | M77: =(M58-M$49)*$M$85*$M$86 -> 90.85555556 | N77: 96.32436111 | O77: 101.7931667 | P77: 98.05411111 | Q77: 102.6143611 | R77: 107.1746111 | S77: 95.608 | T77: 99.03255556 | U77: 102.4571111
L78: 0.07479705472 | M78: =(M59-M$49)*$M$85*$M$86 -> 94.94405556 | N78: 100.6050556 | O78: 106.2660556 | P78: 97.28533333 | Q78: 101.9853611 | R78: 106.6853889 | S78: 96.37677778 | T78: 100.7797778 | U78: 105.1827778
L79: 0.08548234825 | M79: =(M60-M$49)*$M$85*$M$86 -> 96.20205556 | N79: 99.27716667 | O79: 102.3522778 | P79: 100.3953889 | Q79: 103.6102778 | R79: 106.8251667 | S79: 98.99761111 | T79: 101.6883333 | U79: 104.3790556
L80: 0.09616764178 | M80: =(M61-M$49)*$M$85*$M$86 -> 90.08677778 | N80: 95.62547222 | O80: 101.1641667 | P80: 100.6050556 | Q80: 104.5887222 | R80: 108.5723889 | S80: 101.0243889 | T80: 104.9731111 | U80: 108.9218333
L81: =L62 -> 0.1068529353 | M81: =(M62-M$49)*$M$85*$M$86 -> 94.52472222 | N81: 99.53925 | O81: 104.5537778 | P81: 101.5835 | Q81: 105.8816667 | R81: 110.1798333 | S81: 97.52994444 | T81: 101.0768056 | U81: 104.6236667
L82: 0.1175382288 | M82: =(M63-M$49)*$M$85*$M$86 -> 94.87416667 | N82: 97.42511111 | O82: 99.97605556 | P82: 96.20205556 | Q82: 100.2905556 | R82: 104.3790556 | S82: 99.83627778 | T82: 102.05525 | U82: 104.2742222
L83: =L64 -> 0.1282235224 | M83: =(M64-M$49)*$M$85*$M$86 -> 93.47638889 | N83: 96.67380556 | O83: 99.87122222 | P83: 99.27716667 | Q83: 103.9597222 | R83: 108.6422778 | S83: 97.1805 | T83: 101.2864722 | U83: 105.3924444
L85: alpha | M85: =(5/9)*0.000017 -> 9.444444444e-06 | N85: in/in/F
L86: E-CMD | M86: 740000 | N86: psi

Sheet 1 PLI
A1: Comparisons for readings taken at 1 PLI but at varying line speeds
B3: 75 fpm-2.5 Lt | C3: 75 fpm-Avg | D3: 75 fpm-2.5 Rt | E3: 150 fpm-2.5 Lt | F3: 150 fpm-Avg | G3: 150 fpm-2.5 Rt | H3: 225 fpm-2.5 Lt | I3: 225 fpm-Avg | J3: 225 fpm-2.5 Rt | L3: Time (sec) | N3: 75 fpm-Avg | Q3: Time (sec) | S3: 150 fpm-Avg | V3: Time (sec) | X3: 225 fpm-Avg
A4: 0 | B4: ='75 fpm'!B12 -> 79.68 | C4: ='75 fpm'!C12 -> 78.92 | D4: ='75 fpm'!D12 -> 78.16 | E4: ='150 fpm'!B12 -> 76.435 | F4: ='150 fpm'!C12 -> 76.0925 | G4: ='150 fpm'!D12 -> 75.75 | H4: ='225 fpm'!B12 -> 76.545 | I4: ='225 fpm'!C12 -> 76.1375 | J4: ='225 fpm'!D12 -> 75.73 | L4: ='75 fpm'!L47 -> 0 | M4: ='75 fpm'!M47 -> 79.68 | N4: ='75 fpm'!N47 -> 78.92 | O4: ='75 fpm'!O47 -> 78.16 | Q4: ='150 fpm'!L47 -> 0 | R4: ='150 fpm'!M47 -> 76.435 | S4: ='150 fpm'!N47 -> 76.0925 | T4: ='150 fpm'!O47 -> 75.75 | V4: ='225 fpm'!L49 -> 0 | W4: ='225 fpm'!M49 -> 76.545 | X4: ='225 fpm'!N49 -> 76.1375 | Y4: ='225 fpm'!O49 -> 75.73
A5: 2.5 | B5: ='75 fpm'!B13 -> 82.71 | C5: ='75 fpm'!C13 -> 82.325 | D5: ='75 fpm'!D13 -> 81.94 | E5: ='150 fpm'!B13 -> 78.5 | F5: ='150 fpm'!C13 -> 77.775 | G5: ='150 fpm'!D13 -> 77.05 | H5: ='225 fpm'!B13 -> 76.11 | I5: ='225 fpm'!C13 -> 76.16 | J5: ='225 fpm'!D13 -> 76.21 | L5: ='75 fpm'!L48 -> 0.008013970149 | M5: ='75 fpm'!M48 -> 82.71 | N5: ='75 fpm'!N48 -> 82.325 | O5: ='75 fpm'!O48 -> 81.94 | Q5: ='150 fpm'!L48 -> 0.004006985074 | R5: ='150 fpm'!M48 -> 78.5 | S5: ='150 fpm'!N48 -> 77.775 | T5: ='150 fpm'!O48 -> 77.05 | V5: ='225 fpm'!L50 -> 0.002671323383 | W5: ='225 fpm'!M50 -> 76.11 | X5: ='225 fpm'!N50 -> 76.16 | Y5: ='225 fpm'!O50 -> 76.21
A6: 5 | B6: ='75 fpm'!B14 -> 87.32 | C6: ='75 fpm'!C14 -> 86.7825 | D6: ='75 fpm'!D14 -> 86.245 | E6: ='150 fpm'!B14 -> 80.85 | F6: ='150 fpm'!C14 -> 80.655 | G6: ='150 fpm'!D14 -> 80.46 | H6: ='225 fpm'!B14 -> 78.725 | I6: ='225 fpm'!C14 -> 78.3525 | J6: ='225 fpm'!D14 -> 77.98 | L6: ='75 fpm'!L49 -> 0.0160279403 | M6: ='75 fpm'!M49 -> 87.32 | N6: ='75 fpm'!N49 -> 86.7825 | O6: ='75 fpm'!O49 -> 86.245 | Q6: ='150 fpm'!L49 -> 0.008013970149 | R6: ='150 fpm'!M49 -> 80.85 | S6: ='150 fpm'!N49 -> 80.655 | T6: ='150 fpm'!O49 -> 80.46 | V6: ='225 fpm'!L51 -> 0.005342646766 | W6: ='225 fpm'!M51 -> 78.725 | X6: ='225 fpm'!N51 -> 78.3525 | Y6: ='225 fpm'!O51 -> 77.98
A7: 10 | B7: ='75 fpm'!B15 -> 91.715 | C7: ='75 fpm'!C15 -> 91.65 | D7: ='75 fpm'!D15 -> 91.585 | E7: ='150 fpm'!B15 -> 85.415 | F7: ='150 fpm'!C15 -> 85.0375 | G7: ='150 fpm'!D15 -> 84.66 | H7: ='225 fpm'!B15 -> 82.155 | I7: ='225 fpm'!C15 -> 81.84 | J7: ='225 fpm'!D15 -> 81.525 | L7: ='75 fpm'!L50 -> 0.03205588059 | M7: ='75 fpm'!M50 -> 91.715 | N7: ='75 fpm'!N50 -> 91.65 | O7: ='75 fpm'!O50 -> 91.585 | Q7: ='150 fpm'!L50 -> 0.0160279403 | R7: ='150 fpm'!M50 -> 85.415 | S7: ='150 fpm'!N50 -> 85.0375 | T7: ='150 fpm'!O50 -> 84.66 | V7: ='225 fpm'!L52 -> 0.01068529353 | W7: ='225 fpm'!M52 -> 82.155 | X7: ='225 fpm'!N52 -> 81.84 | Y7: ='225 fpm'!O52 -> 81.525
A8: 15 | B8: ='75 fpm'!B16 -> 92.86 | C8: ='75 fpm'!C16 -> 93.025 | D8: ='75 fpm'!D16 -> 93.19 | E8: ='150 fpm'!B16 -> 87.335 | F8: ='150 fpm'!C16 -> 87.32 | G8: ='150 fpm'!D16 -> 87.305 | H8: ='225 fpm'!B16 -> 84.215 | I8: ='225 fpm'!C16 -> 83.9 | J8: ='225 fpm'!D16 -> 83.585 | L8: ='75 fpm'!L51 -> 0.04808382089 | M8: ='75 fpm'!M51 -> 92.86 | N8: ='75 fpm'!N51 -> 93.025 | O8: ='75 fpm'!O51 -> 93.19 | Q8: ='150 fpm'!L51 -> 0.02404191045 | R8: ='150 fpm'!M51 -> 87.335 | S8: ='150 fpm'!N51 -> 87.32 | T8: ='150 fpm'!O51 -> 87.305 | V8: ='225 fpm'!L53 -> 0.0160279403 | W8: ='225 fpm'!M53 -> 84.215 | X8: ='225 fpm'!N53 -> 83.9 | Y8: ='225 fpm'!O53 -> 83.585
A9: 20 | B9: ='75 fpm'!B17 -> 93.7 | C9: ='75 fpm'!C17 -> 93.9075 | D9: ='75 fpm'!D17 -> 94.115 | E9: ='150 fpm'!B17 -> 88.985 | F9: ='150 fpm'!C17 -> 89.1825 | G9: ='150 fpm'!D17 -> 89.38 | H9: ='225 fpm'!B17 -> 85.21 | I9: ='225 fpm'!C17 -> 85.2125 | J9: ='225 fpm'!D17 -> 85.215 | L9: ='75 fpm'!L52 -> 0.06411176119 | M9: ='75 fpm'!M52 -> 93.7 | N9: ='75 fpm'!N52 -> 93.9075 | O9: ='75 fpm'!O52 -> 94.115 | Q9: ='150 fpm'!L52 -> 0.03205588059 | R9: ='150 fpm'!M52 -> 88.985 | S9: ='150 fpm'!N52 -> 89.1825 | T9: ='150 fpm'!O52 -> 89.38 | V9: ='225 fpm'!L54 -> 0.02137058706 | W9: ='225 fpm'!M54 -> 85.21 | X9: ='225 fpm'!N54 -> 85.2125 | Y9: ='225 fpm'!O54 -> 85.215
A10: 30 | B10: ='75 fpm'!B18 -> 93.73 | C10: ='75 fpm'!C18 -> 94.1625 | D10: ='75 fpm'!D18 -> 94.595 | E10: ='150 fpm'!B18 -> 90.465 | F10: ='150 fpm'!C18 -> 90.51 | G10: ='150 fpm'!D18 -> 90.555 | H10: ='225 fpm'!B18 -> 87.175 | I10: ='225 fpm'!C18 -> 87.58 | J10: ='225 fpm'!D18 -> 87.985 | L10: ='75 fpm'!L53 -> 0.09616764178 | M10: ='75 fpm'!M53 -> 93.73 | N10: ='75 fpm'!N53 -> 94.1625 | O10: ='75 fpm'!O53 -> 94.595 | Q10: ='150 fpm'!L53 -> 0.04808382089 | R10: ='150 fpm'!M53 -> 90.465 | S10: ='150 fpm'!N53 -> 90.51 | T10: ='150 fpm'!O53 -> 90.555 | V10: ='225 fpm'!L55 -> 0.03205588059 | W10: ='225 fpm'!M55 -> 87.175 | X10: ='225 fpm'!N55 -> 87.58 | Y10: ='225 fpm'!O55 -> 87.985
A11: 40 | B11: ='75 fpm'!B19 -> 93.955 | C11: ='75 fpm'!C19 -> 94.3025 | D11: ='75 fpm'!D19 -> 94.65 | E11: ='150 fpm'!B19 -> 90.735 | F11: ='150 fpm'!C19 -> 91.1625 | G11: ='150 fpm'!D19 -> 91.59 | H11: ='225 fpm'!B19 -> 88.205 | I11: ='225 fpm'!C19 -> 88.705 | J11: ='225 fpm'!D19 -> 89.205 | L11: ='75 fpm'!L54 -> 0.1282235224 | M11: ='75 fpm'!M54 -> 93.955 | N11: ='75 fpm'!N54 -> 94.3025 | O11: ='75 fpm'!O54 -> 94.65 | Q11: ='150 fpm'!L54 -> 0.06411176119 | R11: ='150 fpm'!M54 -> 90.735 | S11: ='150 fpm'!N54 -> 91.1625 | T11: ='150 fpm'!O54 -> 91.59 | V11: ='225 fpm'!L56 -> 0.04274117413 | W11: ='225 fpm'!M56 -> 88.205 | X11: ='225 fpm'!N56 -> 88.705 | Y11: ='225 fpm'!O56 -> 89.205
A12: 50 | B12: ='75 fpm'!B20 -> 94.19 | C12: ='75 fpm'!C20 -> 94.425 | D12: ='75 fpm'!D20 -> 94.66 | E12: ='150 fpm'!B20 -> 91.575 | F12: ='150 fpm'!C20 -> 92.01 | G12: ='150 fpm'!D20 -> 92.445 | H12: ='225 fpm'!B20 -> 89.13 | I12: ='225 fpm'!C20 -> 89.615 | J12: ='225 fpm'!D20 -> 90.1 | L12: ='75 fpm'!L55 -> 0.160279403 | M12: ='75 fpm'!M55 -> 94.19 | N12: ='75 fpm'!N55 -> 94.425 | O12: ='75 fpm'!O55 -> 94.66 | Q12: ='150 fpm'!L55 -> 0.08013970149 | R12: ='150 fpm'!M55 -> 91.575 | S12: ='150 fpm'!N55 -> 92.01 | T12: ='150 fpm'!O55 -> 92.445 | V12: ='225 fpm'!L57 -> 0.05342646766 | W12: ='225 fpm'!M57 -> 89.13 | X12: ='225 fpm'!N57 -> 89.615 | Y12: ='225 fpm'!O57 -> 90.1
A13: 60 | B13: ='75 fpm'!B21 -> 94.025 | C13: ='75 fpm'!C21 -> 94.6025 | D13: ='75 fpm'!D21 -> 95.18 | E13: ='150 fpm'!B21 -> 91.805 | F13: ='150 fpm'!C21 -> 91.605 | G13: ='150 fpm'!D21 -> 91.405 | H13: ='225 fpm'!B21 -> 89.545 | I13: ='225 fpm'!C21 -> 89.92 | J13: ='225 fpm'!D21 -> 90.295 | L13: ='75 fpm'!L56 -> 0.1923352836 | M13: ='75 fpm'!M56 -> 94.025 | N13: ='75 fpm'!N56 -> 94.6025 | O13: ='75 fpm'!O56 -> 95.18 | Q13: ='150 fpm'!L56 -> 0.09616764178 | R13: ='150 fpm'!M56 -> 91.805 | S13: ='150 fpm'!N56 -> 91.605 | T13: ='150 fpm'!O56 -> 91.405 | V13: ='225 fpm'!L58 -> 0.06411176119 | W13: ='225 fpm'!M58 -> 89.545 | X13: ='225 fpm'!N58 -> 89.92 | Y13: ='225 fpm'!O58 -> 90.295
A14: 70 | B14: ='75 fpm'!B22 -> 94.43 | C14: ='75 fpm'!C22 -> 94.91 | D14: ='75 fpm'!D22 -> 95.39 | E14: ='150 fpm'!B22 -> 91.195 | F14: ='150 fpm'!C22 -> 91.7125 | G14: ='150 fpm'!D22 -> 92.23 | H14: ='225 fpm'!B22 -> 90.13 | I14: ='225 fpm'!C22 -> 90.5325 | J14: ='225 fpm'!D22 -> 90.935 | L14: ='75 fpm'!L57 -> 0.2243911642 | M14: ='75 fpm'!M57 -> 94.43 | N14: ='75 fpm'!N57 -> 94.91 | O14: ='75 fpm'!O57 -> 95.39 | Q14: ='150 fpm'!L57 -> 0.1121955821 | R14: ='150 fpm'!M57 -> 91.195 | S14: ='150 fpm'!N57 -> 91.7125 | T14: ='150 fpm'!O57 -> 92.23 | V14: ='225 fpm'!L59 -> 0.07479705472 | W14: ='225 fpm'!M59 -> 90.13 | X14: ='225 fpm'!N59 -> 90.5325 | Y14: ='225 fpm'!O59 -> 90.935
A15: 80 | B15: ='75 fpm'!B23 -> 94.065 | C15: ='75 fpm'!C23 -> 94.55 | D15: ='75 fpm'!D23 -> 95.035 | E15: ='150 fpm'!B23 -> 92.095 | F15: ='150 fpm'!C23 -> 92.3425 | G15: ='150 fpm'!D23 -> 92.59 | H15: ='225 fpm'!B23 -> 90.31 | I15: ='225 fpm'!C23 -> 90.3425 | J15: ='225 fpm'!D23 -> 90.375 | L15: ='75 fpm'!L58 -> 0.2564470448 | M15: ='75 fpm'!M58 -> 94.065 | N15: ='75 fpm'!N58 -> 94.55 | O15: ='75 fpm'!O58 -> 95.035 | Q15: ='150 fpm'!L58 -> 0.1282235224 | R15: ='150 fpm'!M58 -> 92.095 | S15: ='150 fpm'!N58 -> 92.3425 | T15: ='150 fpm'!O58 -> 92.59 | V15: ='225 fpm'!L60 -> 0.08548234825 | W15: ='225 fpm'!M60 -> 90.31 | X15: ='225 fpm'!N60 -> 90.3425 | Y15: ='225 fpm'!O60 -> 90.375
A16: 90 | B16: ='75 fpm'!B24 -> 94.21 | C16: ='75 fpm'!C24 -> 94.965 | D16: ='75 fpm'!D24 -> 95.72 | E16: ='150 fpm'!B24 -> 91.77 | F16: ='150 fpm'!C24 -> 91.695 | G16: ='150 fpm'!D24 -> 91.62 | H16: ='225 fpm'!B24 -> 89.435 | I16: ='225 fpm'!C24 -> 89.82 | J16: ='225 fpm'!D24 -> 90.205 | L16: ='75 fpm'!L59 -> 0.2885029254 | M16: ='75 fpm'!M59 -> 94.21 | N16: ='75 fpm'!N59 -> 94.965 | O16: ='75 fpm'!O59 -> 95.72 | Q16: ='150 fpm'!L59 -> 0.1442514627 | R16: ='150 fpm'!M59 -> 91.77 | S16: ='150 fpm'!N59 -> 91.695 | T16: ='150 fpm'!O59 -> 91.62 | V16: ='225 fpm'!L61 -> 0.09616764178 | W16: ='225 fpm'!M61 -> 89.435 | X16: ='225 fpm'!N61 -> 89.82 | Y16: ='225 fpm'!O61 -> 90.205
V17: ='225 fpm'!L62 -> 0.1068529353 | W17: ='225 fpm'!M62 -> 90.07 | X17: ='225 fpm'!N62 -> 90.38 | Y17: ='225 fpm'!O62 -> 90.69
V18: ='225 fpm'!L63 -> 0.1175382288 | W18: ='225 fpm'!M63 -> 90.12 | X18: ='225 fpm'!N63 -> 90.0775 | Y18: ='225 fpm'!O63 -> 90.035
V19: ='225 fpm'!L64 -> 0.1282235224 | W19: ='225 fpm'!M64 -> 89.92 | X19: ='225 fpm'!N64 -> 89.97 | Y19: ='225 fpm'!O64 -> 90.02

Sheet 2 PLI
A1: Comparisons for readings taken at 2 PLI but at varying line speeds
B3: 75 fpm-2.5 Lt | C3: 75 fpm-Avg | D3: 75 fpm-2.5 Rt | E3: 150 fpm-2.5 Lt | F3: 150 fpm-Avg | G3: 150 fpm-2.5 Rt | H3: 225 fpm-2.5 Lt | I3: 225 fpm-Avg | J3: 225 fpm-2.5 Rt | L3: Time (sec) | N3: 75 fpm-Avg | Q3: Time (sec) | S3: 150 fpm-Avg | V3: Time (sec) | X3: 225 fpm-Avg
A4: 0 | B4: ='75 fpm'!H12 -> 78.645 | C4: ='75 fpm'!I12 -> 78.8725 | D4: ='75 fpm'!J12 -> 79.1 | E4: ='150 fpm'!H12 -> 75.91 | F4: ='150 fpm'!I12 -> 76.0475 | G4: ='150 fpm'!J12 -> 76.185 | H4: ='225 fpm'!H12 -> 75.825 | I4: ='225 fpm'!I12 -> 75.435 | J4: ='225 fpm'!J12 -> 75.045 | L4: ='75 fpm'!L47 -> 0 | M4: ='75 fpm'!P47 -> 78.645 | N4: ='75 fpm'!Q47 -> 78.8725 | O4: ='75 fpm'!R47 -> 79.1 | Q4: ='150 fpm'!L47 -> 0 | R4: ='150 fpm'!P47 -> 75.91 | S4: ='150 fpm'!Q47 -> 76.0475 | T4: ='150 fpm'!R47 -> 76.185 | V4: ='225 fpm'!L49 -> 0 | W4: ='225 fpm'!P49 -> 75.825 | X4: ='225 fpm'!Q49 -> 75.435 | Y4: ='225 fpm'!R49 -> 75.045
A5: 2.5 | B5: ='75 fpm'!H13 -> 82.24 | C5: ='75 fpm'!I13 -> 81.555 | D5: ='75 fpm'!J13 -> 80.87 | E5: ='150 fpm'!H13 -> 78.59 | F5: ='150 fpm'!I13 -> 78.765 | G5: ='150 fpm'!J13 -> 78.94 | H5: ='225 fpm'!H13 -> 77.78 | I5: ='225 fpm'!I13 -> 77.42 | J5: ='225 fpm'!J13 -> 77.06 | L5: ='75 fpm'!L48 -> 0.008013970149 | M5: ='75 fpm'!P48 -> 82.24 | N5: ='75 fpm'!Q48 -> 81.555 | O5: ='75 fpm'!R48 -> 80.87 | Q5: ='150 fpm'!L48 -> 0.004006985074 | R5: ='150 fpm'!P48 -> 78.59 | S5: ='150 fpm'!Q48 -> 78.765 | T5: ='150 fpm'!R48 -> 78.94 | V5: ='225 fpm'!L50 -> 0.002671323383 | W5: ='225 fpm'!P50 -> 77.78 | X5: ='225 fpm'!Q50 -> 77.42 | Y5: ='225 fpm'!R50 -> 77.06
A6: 5 | B6: ='75 fpm'!H14 -> 87.525 | C6: ='75 fpm'!I14 -> 87.385 | D6: ='75 fpm'!J14 -> 87.245 | E6: ='150 fpm'!H14 -> 82.05 | F6: ='150 fpm'!I14 -> 81.4725 | G6: ='150 fpm'!J14 -> 80.895 | H6: ='225 fpm'!H14 -> 79.405 | I6: ='225 fpm'!I14 -> 79.305 | J6: ='225 fpm'!J14 -> 79.205 | L6: ='75 fpm'!L49 -> 0.0160279403 | M6: ='75 fpm'!P49 -> 87.525 | N6: ='75 fpm'!Q49 -> 87.385 | O6: ='75 fpm'!R49 -> 87.245 | Q6: ='150 fpm'!L49 -> 0.008013970149 | R6: ='150 fpm'!P49 -> 82.05 | S6: ='150 fpm'!Q49 -> 81.4725 | T6: ='150 fpm'!R49 -> 80.895 | V6: ='225 fpm'!L51 -> 0.005342646766 | W6: ='225 fpm'!P51 -> 79.405 | X6: ='225 fpm'!Q51 -> 79.305 | Y6: ='225 fpm'!R51 -> 79.205
A7: 10 | B7: ='75 fpm'!H15 -> 91.46 | C7: ='75 fpm'!I15 -> 91.42 | D7: ='75 fpm'!J15 -> 91.38 | E7: ='150 fpm'!H15 -> 85.995 | F7: ='150 fpm'!I15 -> 85.81 | G7: ='150 fpm'!J15 -> 85.625 | H7: ='225 fpm'!H15 -> 83.075 | I7: ='225 fpm'!I15 -> 82.32 | J7: ='225 fpm'!J15 -> 81.565 | L7: ='75 fpm'!L50 -> 0.03205588059 | M7: ='75 fpm'!P50 -> 91.46 | N7: ='75 fpm'!Q50 -> 91.42 | O7: ='75 fpm'!R50 -> 91.38 | Q7: ='150 fpm'!L50 -> 0.0160279403 | R7: ='150 fpm'!P50 -> 85.995 | S7: ='150 fpm'!Q50 -> 85.81 | T7: ='150 fpm'!R50 -> 85.625 | V7: ='225 fpm'!L52 -> 0.01068529353 | W7: ='225 fpm'!P52 -> 83.075 | X7: ='225 fpm'!Q52 -> 82.32 | Y7: ='225 fpm'!R52 -> 81.565
A8: 15 | B8: ='75 fpm'!H16 -> 92.735 | C8: ='75 fpm'!I16 -> 92.8775 | D8: ='75 fpm'!J16 -> 93.02 | E8: ='150 fpm'!H16 -> 87.635 | F8: ='150 fpm'!I16 -> 87.8325 | G8: ='150 fpm'!J16 -> 88.03 | H8: ='225 fpm'!H16 -> 83.89 | I8: ='225 fpm'!I16 -> 83.8725 | J8: ='225 fpm'!J16 -> 83.855 | L8: ='75 fpm'!L51 -> 0.04808382089 | M8: ='75 fpm'!P51 -> 92.735 | N8: ='75 fpm'!Q51 -> 92.8775 | O8: ='75 fpm'!R51 -> 93.02 | Q8: ='150 fpm'!L51 -> 0.02404191045 | R8: ='150 fpm'!P51 -> 87.635 | S8: ='150 fpm'!Q51 -> 87.8325 | T8: ='150 fpm'!R51 -> 88.03 | V8: ='225 fpm'!L53 -> 0.0160279403 | W8: ='225 fpm'!P53 -> 83.89 | X8: ='225 fpm'!Q53 -> 83.8725 | Y8: ='225 fpm'!R53 -> 83.855
A9: 20 | B9: ='75 fpm'!H17 -> 93.045 | C9: ='75 fpm'!I17 -> 93.45 | D9: ='75 fpm'!J17 -> 93.855 | E9: ='150 fpm'!H17 -> 89.015 | F9: ='150 fpm'!I17 -> 89.12 | G9: ='150 fpm'!J17 -> 89.225 | H9: ='225 fpm'!H17 -> 85.795 | I9: ='225 fpm'!I17 -> 85.82 | J9: ='225 fpm'!J17 -> 85.845 | L9: ='75 fpm'!L52 -> 0.06411176119 | M9: ='75 fpm'!P52 -> 93.045 | N9: ='75 fpm'!Q52 -> 93.45 | O9: ='75 fpm'!R52 -> 93.855 | Q9: ='150 fpm'!L52 -> 0.03205588059 | R9: ='150 fpm'!P52 -> 89.015 | S9: ='150 fpm'!Q52 -> 89.12 | T9: ='150 fpm'!R52 -> 89.225 | V9: ='225 fpm'!L54 -> 0.02137058706 | W9: ='225 fpm'!P54 -> 85.795 | X9: ='225 fpm'!Q54 -> 85.82 | Y9: ='225 fpm'!R54 -> 85.845
A10: 30 | B10: ='75 fpm'!H18 -> 93.805 | C10: ='75 fpm'!I18 -> 93.9075 | D10: ='75 fpm'!J18 -> 94.01 | E10: ='150 fpm'!H18 -> 90.27 | F10: ='150 fpm'!I18 -> 90.58 | G10: ='150 fpm'!J18 -> 90.89 | H10: ='225 fpm'!H18 -> 88.28 | I10: ='225 fpm'!I18 -> 88.2675 | J10: ='225 fpm'!J18 -> 88.255 | L10: ='75 fpm'!L53 -> 0.09616764178 | M10: ='75 fpm'!P53 -> 93.805 | N10: ='75 fpm'!Q53 -> 93.9075 | O10: ='75 fpm'!R53 -> 94.01 | Q10: ='150 fpm'!L53 -> 0.04808382089 | R10: ='150 fpm'!P53 -> 90.27 | S10: ='150 fpm'!Q53 -> 90.58 | T10: ='150 fpm'!R53 -> 90.89 | V10: ='225 fpm'!L55 -> 0.03205588059 | W10: ='225 fpm'!P55 -> 88.28 | X10: ='225 fpm'!Q55 -> 88.2675 | Y10: ='225 fpm'!R55 -> 88.255
A11: 40 | B11: ='75 fpm'!H19 -> 93.925 | C11: ='75 fpm'!I19 -> 94.1975 | D11: ='75 fpm'!J19 -> 94.47 | E11: ='150 fpm'!H19 -> 90.695 | F11: ='150 fpm'!I19 -> 90.8875 | G11: ='150 fpm'!J19 -> 91.08 | H11: ='225 fpm'!H19 -> 88.46 | I11: ='225 fpm'!I19 -> 88.59 | J11: ='225 fpm'!J19 -> 88.72 | L11: ='75 fpm'!L54 -> 0.1282235224 | M11: ='75 fpm'!P54 -> 93.925 | N11: ='75 fpm'!Q54 -> 94.1975 | O11: ='75 fpm'!R54 -> 94.47 | Q11: ='150 fpm'!L54 -> 0.06411176119 | R11: ='150 fpm'!P54 -> 90.695 | S11: ='150 fpm'!Q54 -> 90.8875 | T11: ='150 fpm'!R54 -> 91.08 | V11: ='225 fpm'!L56 -> 0.04274117413 | W11: ='225 fpm'!P56 -> 88.46 | X11: ='225 fpm'!Q56 -> 88.59 | Y11: ='225 fpm'!R56 -> 88.72
A12: 50 | B12: ='75 fpm'!H20 -> 93.72 | C12: ='75 fpm'!I20 -> 94.095 | D12: ='75 fpm'!J20 -> 94.47 | E12: ='150 fpm'!H20 -> 90.695 | F12: ='150 fpm'!I20 -> 91.0175 | G12: ='150 fpm'!J20 -> 91.34 | H12: ='225 fpm'!H20 -> 89.63 | I12: ='225 fpm'!I20 -> 89.735 | J12: ='225 fpm'!J20 -> 89.84 | L12: ='75 fpm'!L55 -> 0.160279403 | M12: ='75 fpm'!P55 -> 93.72 | N12: ='75 fpm'!Q55 -> 94.095 | O12: ='75 fpm'!R55 -> 94.47 | Q12: ='150 fpm'!L55 -> 0.08013970149 | R12: ='150 fpm'!P55 -> 90.695 | S12: ='150 fpm'!Q55 -> 91.0175 | T12: ='150 fpm'!R55 -> 91.34 | V12: ='225 fpm'!L57 -> 0.05342646766 | W12: ='225 fpm'!P57 -> 89.63 | X12: ='225 fpm'!Q57 -> 89.735 | Y12: ='225 fpm'!R57 -> 89.84
A13: 60 | B13: ='75 fpm'!H21 -> 94.13 | C13: ='75 fpm'!I21 -> 94.2475 | D13: ='75 fpm'!J21 -> 94.365 | E13: ='150 fpm'!H21 -> 90.68 | F13: ='150 fpm'!I21 -> 91.2025 | G13: ='150 fpm'!J21 -> 91.725 | H13: ='225 fpm'!H21 -> 89.855 | I13: ='225 fpm'!I21 -> 90.1175 | J13: ='225 fpm'!J21 -> 90.38 | L13: ='75 fpm'!L56 -> 0.1923352836 | M13: ='75 fpm'!P56 -> 94.13 | N13: ='75 fpm'!Q56 -> 94.2475 | O13: ='75 fpm'!R56 -> 94.365 | Q13: ='150 fpm'!L56 -> 0.09616764178 | R13: ='150 fpm'!P56 -> 90.68 | S13: ='150 fpm'!Q56 -> 91.2025 | T13: ='150 fpm'!R56 -> 91.725 | V13: ='225 fpm'!L58 -> 0.06411176119 | W13: ='225 fpm'!P58 -> 89.855 | X13: ='225 fpm'!Q58 -> 90.1175 | Y13: ='225 fpm'!R58 -> 90.38
A14: 70 | B14: ='75 fpm'!H22 -> 93.95 | C14: ='75 fpm'!I22 -> 94.34 | D14: ='75 fpm'!J22 -> 94.73 | E14: ='150 fpm'!H22 -> 91.08 | F14: ='150 fpm'!I22 -> 91.5575 | G14: ='150 fpm'!J22 -> 92.035 | H14: ='225 fpm'!H22 -> 89.745 | I14: ='225 fpm'!I22 -> 90.0275 | J14: ='225 fpm'!J22 -> 90.31 | L14: ='75 fpm'!L57 -> 0.2243911642 | M14: ='75 fpm'!P57 -> 93.95 | N14: ='75 fpm'!Q57 -> 94.34 | O14: ='75 fpm'!R57 -> 94.73 | Q14: ='150 fpm'!L57 -> 0.1121955821 | R14: ='150 fpm'!P57 -> 91.08 | S14: ='150 fpm'!Q57 -> 91.5575 | T14: ='150 fpm'!R57 -> 92.035 | V14: ='225 fpm'!L59 -> 0.07479705472 | W14: ='225 fpm'!P59 -> 89.745 | X14: ='225 fpm'!Q59 -> 90.0275 | Y14: ='225 fpm'!R59 -> 90.31
A15: 80 | B15: ='75 fpm'!H23 -> 94.005 | C15: ='75 fpm'!I23 -> 94.415 | D15: ='75 fpm'!J23 -> 94.825 | E15: ='150 fpm'!H23 -> 91.23 | F15: ='150 fpm'!I23 -> 91.675 | G15: ='150 fpm'!J23 -> 92.12 | H15: ='225 fpm'!H23 -> 90.19 | I15: ='225 fpm'!I23 -> 90.26 | J15: ='225 fpm'!J23 -> 90.33 | L15: ='75 fpm'!L58 -> 0.2564470448 | M15: ='75 fpm'!P58 -> 94.005 | N15: ='75 fpm'!Q58 -> 94.415 | O15: ='75 fpm'!R58 -> 94.825 | Q15: ='150 fpm'!L58 -> 0.1282235224 | R15: ='150 fpm'!P58 -> 91.23 | S15: ='150 fpm'!Q58 -> 91.675 | T15: ='150 fpm'!R58 -> 92.12 | V15: ='225 fpm'!L60 -> 0.08548234825 | W15: ='225 fpm'!P60 -> 90.19 | X15: ='225 fpm'!Q60 -> 90.26 | Y15: ='225 fpm'!R60 -> 90.33
A16: 90 | B16: ='75 fpm'!H24 -> 94.395 | C16: ='75 fpm'!I24 -> 94.8 | D16: ='75 fpm'!J24 -> 95.205 | E16: ='150 fpm'!H24 -> 91.195 | F16: ='150 fpm'!I24 -> 91.71 | G16: ='150 fpm'!J24 -> 92.225 | H16: ='225 fpm'!H24 -> 90.22 | I16: ='225 fpm'!I24 -> 90.4 | J16: ='225 fpm'!J24 -> 90.58 | L16: ='75 fpm'!L59 -> 0.2885029254 | M16: ='75 fpm'!P59 -> 94.395 | N16: ='75 fpm'!Q59 -> 94.8 | O16: ='75 fpm'!R59 -> 95.205 | Q16: ='150 fpm'!L59 -> 0.1442514627 | R16: ='150 fpm'!P59 -> 91.195 | S16: ='150 fpm'!Q59 -> 91.71 | T16: ='150 fpm'!R59 -> 92.225 | V16: ='225 fpm'!L61 -> 0.09616764178 | W16: ='225 fpm'!P61 -> 90.22 | X16: ='225 fpm'!Q61 -> 90.4 | Y16: ='225 fpm'!R61 -> 90.58
V17: ='225 fpm'!L62 -> 0.1068529353 | W17: ='225 fpm'!P62 -> 90.36 | X17: ='225 fpm'!Q62 -> 90.585 | Y17: ='225 fpm'!R62 -> 90.81
V18: ='225 fpm'!L63 -> 0.1175382288 | W18: ='225 fpm'!P63 -> 89.59 | X18: ='225 fpm'!Q63 -> 89.785 | Y18: ='225 fpm'!R63 -> 89.98
V19: ='225 fpm'!L64 -> 0.1282235224 | W19: ='225 fpm'!P64 -> 90.03 | X19: ='225 fpm'!Q64 -> 90.31 | Y19: ='225 fpm'!R64 -> 90.59

Sheet 3 PLI
A1: Comparisons for readings taken at 3 PLI but at varying line speeds
B3: 75 fpm-2.5 Lt | C3: 75 fpm-Avg | D3: 75 fpm-2.5 Rt | E3: 150 fpm-2.5 Lt | F3: 150 fpm-Avg | G3: 150 fpm-2.5 Rt | H3: 225 fpm-2.5 Lt | I3: 225 fpm-Avg | J3: 225 fpm-2.5 Rt | L3: Time (sec) | N3: 75 fpm-Avg | Q3: Time (sec) | S3: 150 fpm-Avg | V3: Time (sec) | X3: 225 fpm-Avg
A4: 0 | B4: ='75 fpm'!N12 -> 78.775 | C4: ='75 fpm'!O12 -> 78.34 | D4: ='75 fpm'!P12 -> 77.905 | E4: ='150 fpm'!N12 -> 77.245 | F4: ='150 fpm'!O12 -> 76.7525 | G4: ='150 fpm'!P12 -> 76.26 | H4: ='225 fpm'!N12 -> 76.235 | I4: ='225 fpm'!O12 -> 75.9425 | J4: ='225 fpm'!P12 -> 75.65 | L4: ='75 fpm'!L47 -> 0 | M4: ='75 fpm'!S47 -> 78.775 | N4: ='75 fpm'!T47 -> 78.34 | O4: ='75 fpm'!U47 -> 77.905 | Q4: ='150 fpm'!L47 -> 0 | R4: ='150 fpm'!S47 -> 77.245 | S4: ='150 fpm'!T47 -> 76.7525 | T4: ='150 fpm'!U47 -> 76.26 | V4: ='225 fpm'!L49 -> 0 | W4: ='225 fpm'!S49 -> 76.235 | X4: ='225 fpm'!T49 -> 75.9425 | Y4: ='225 fpm'!U49 -> 75.65
A5: 2.5 | B5: ='75 fpm'!N13 -> 83.16 | C5: ='75 fpm'!O13 -> 82.055 | D5: ='75 fpm'!P13 -> 80.95 | E5: ='150 fpm'!N13 -> 79.07 | F5: ='150 fpm'!O13 -> 78.41 | G5: ='150 fpm'!P13 -> 77.75 | H5: ='225 fpm'!N13 -> 77.88 | I5: ='225 fpm'!O13 -> 77.915 | J5: ='225 fpm'!P13 -> 77.95 | L5: ='75 fpm'!L48 -> 0.008013970149 | M5: ='75 fpm'!S48 -> 83.16 | N5: ='75 fpm'!T48 -> 82.055 | O5: ='75 fpm'!U48 -> 80.95 | Q5: ='150 fpm'!L48 -> 0.004006985074 | R5: ='150 fpm'!S48 -> 79.07 | S5: ='150 fpm'!T48 -> 78.41 | T5: ='150 fpm'!U48 -> 77.75 | V5: ='225 fpm'!L50 -> 0.002671323383 | W5: ='225 fpm'!S50 -> 77.88 | X5: ='225 fpm'!T50 -> 77.915 | Y5: ='225 fpm'!U50 -> 77.95
A6: 5 | B6: ='75 fpm'!N14 -> 87.67 | C6: ='75 fpm'!O14 -> 87.325 | D6: ='75 fpm'!P14 -> 86.98 | E6: ='150 fpm'!N14 -> 81.445 | F6: ='150 fpm'!O14 -> 80.6675 | G6: ='150 fpm'!P14 -> 79.89 | H6: ='225 fpm'!N14 -> 79.1 | I6: ='225 fpm'!O14 -> 78.665 | J6: ='225 fpm'!P14 -> 78.23 | L6: ='75 fpm'!L49 -> 0.0160279403 | M6: ='75 fpm'!S49 -> 87.67 | N6: ='75 fpm'!T49 -> 87.325 | O6: ='75 fpm'!U49 -> 86.98 | Q6: ='150 fpm'!L49 -> 0.008013970149 | R6: ='150 fpm'!S49 -> 81.445 | S6: ='150 fpm'!T49 -> 80.6675 | T6: ='150 fpm'!U49 -> 79.89 | V6: ='225 fpm'!L51 -> 0.005342646766 | W6: ='225 fpm'!S51 -> 79.1 | X6: ='225 fpm'!T51 -> 78.665 | Y6: ='225 fpm'!U51 -> 78.23
A7: 10 | B7: ='75 fpm'!N15 -> 92.025 | C7: ='75 fpm'!O15 -> 92.2125 | D7: ='75 fpm'!P15 -> 92.4 | E7: ='150 fpm'!N15 -> 85.78 | F7: ='150 fpm'!O15 -> 85.55 | G7: ='150 fpm'!P15 -> 85.32 | H7: ='225 fpm'!N15 -> 82.72 | I7: ='225 fpm'!O15 -> 82.4125 | J7: ='225 fpm'!P15 -> 82.105 | L7: ='75 fpm'!L50 -> 0.03205588059 | M7: ='75 fpm'!S50 -> 92.025 | N7: ='75 fpm'!T50 -> 92.2125 | O7: ='75 fpm'!U50 -> 92.4 | Q7: ='150 fpm'!L50 -> 0.0160279403 | R7: ='150 fpm'!S50 -> 85.78 | S7: ='150 fpm'!T50 -> 85.55 | T7: ='150 fpm'!U50 -> 85.32 | V7: ='225 fpm'!L52 -> 0.01068529353 | W7: ='225 fpm'!S52 -> 82.72 | X7: ='225 fpm'!T52 -> 82.4125 | Y7: ='225 fpm'!U52 -> 82.105
A8: 15 | B8: ='75 fpm'!N16 -> 93.14 | C8: ='75 fpm'!O16 -> 93.3475 | D8: ='75 fpm'!P16 -> 93.555 | E8: ='150 fpm'!N16 -> 87.83 | F8: ='150 fpm'!O16 -> 87.9325 | G8: ='150 fpm'!P16 -> 88.035 | H8: ='225 fpm'!N16 -> 85.005 | I8: ='225 fpm'!O16 -> 84.725 | J8: ='225 fpm'!P16 -> 84.445 | L8: ='75 fpm'!L51 -> 0.04808382089 | M8: ='75 fpm'!S51 -> 93.14 | N8: ='75 fpm'!T51 -> 93.3475 | O8: ='75 fpm'!U51 -> 93.555 | Q8: ='150 fpm'!L51 -> 0.02404191045 | R8: ='150 fpm'!S51 -> 87.83 | S8: ='150 fpm'!T51 -> 87.9325 | T8: ='150 fpm'!U51 -> 88.035 | V8: ='225 fpm'!L53 -> 0.0160279403 | W8: ='225 fpm'!S53 -> 85.005 | X8: ='225 fpm'!T53 -> 84.725 | Y8: ='225 fpm'!U53 -> 84.445
A9: 20 | B9: ='75 fpm'!N17 -> 93.525 | C9: ='75 fpm'!O17 -> 93.7225 | D9: ='75 fpm'!P17 -> 93.92 | E9: ='150 fpm'!N17 -> 89.1 | F9: ='150 fpm'!O17 -> 88.95 | G9: ='150 fpm'!P17 -> 88.8 | H9: ='225 fpm'!N17 -> 86.635 | I9: ='225 fpm'!O17 -> 86.3675 | J9: ='225 fpm'!P17 -> 86.1 | L9: ='75 fpm'!L52 -> 0.06411176119 | M9: ='75 fpm'!S52 -> 93.525 | N9: ='75 fpm'!T52 -> 93.7225 | O9: ='75 fpm'!U52 -> 93.92 | Q9: ='150 fpm'!L52 -> 0.03205588059 | R9: ='150 fpm'!S52 -> 89.1 | S9: ='150 fpm'!T52 -> 88.95 | T9: ='150 fpm'!U52 -> 88.8 | V9: ='225 fpm'!L54 -> 0.02137058706 | W9: ='225 fpm'!S54 -> 86.635 | X9: ='225 fpm'!T54 -> 86.3675 | Y9: ='225 fpm'!U54 -> 86.1
A10: 30 | B10: ='75 fpm'!N18 -> 94.125 | C10: ='75 fpm'!O18 -> 94.3075 | D10: ='75 fpm'!P18 -> 94.49 | E10: ='150 fpm'!N18 -> 90.425 | F10: ='150 fpm'!O18 -> 90.575 | G10: ='150 fpm'!P18 -> 90.725 | H10: ='225 fpm'!N18 -> 88.98 | I10: ='225 fpm'!O18 -> 88.7275 | J10: ='225 fpm'!P18 -> 88.475 | L10: ='75 fpm'!L53 -> 0.09616764178 | M10: ='75 fpm'!S53 -> 94.125 | N10: ='75 fpm'!T53 -> 94.3075 | O10: ='75 fpm'!U53 -> 94.49 | Q10: ='150 fpm'!L53 -> 0.04808382089 | R10: ='150 fpm'!S53 -> 90.425 | S10: ='150 fpm'!T53 -> 90.575 | T10: ='150 fpm'!U53 -> 90.725 | V10: ='225 fpm'!L55 -> 0.03205588059 | W10: ='225 fpm'!S55 -> 88.98 | X10: ='225 fpm'!T55 -> 88.7275 | Y10: ='225 fpm'!U55 -> 88.475
A11: 40 | B11: ='75 fpm'!N19 -> 93.49 | C11: ='75 fpm'!O19 -> 94.0125 | D11: ='75 fpm'!P19 -> 94.535 | E11: ='150 fpm'!N19 -> 91.085 | F11: ='150 fpm'!O19 -> 91.2225 | G11: ='150 fpm'!P19 -> 91.36 | H11: ='225 fpm'!N19 -> 89.49 | I11: ='225 fpm'!O19 -> 89.5475 | J11: ='225 fpm'!P19 -> 89.605 | L11: ='75 fpm'!L54 -> 0.1282235224 | M11: ='75 fpm'!S54 -> 93.49 | N11: ='75 fpm'!T54 -> 94.0125 | O11: ='75 fpm'!U54 -> 94.535 | Q11: ='150 fpm'!L54 -> 0.06411176119 | R11: ='150 fpm'!S54 -> 91.085 | S11: ='150 fpm'!T54 -> 91.2225 | T11: ='150 fpm'!U54 -> 91.36 | V11: ='225 fpm'!L56 -> 0.04274117413 | W11: ='225 fpm'!S56 -> 89.49 | X11: ='225 fpm'!T56 -> 89.5475 | Y11: ='225 fpm'!U56 -> 89.605
A12: 50 | B12: ='75 fpm'!N20 -> 94.605 | C12: ='75 fpm'!O20 -> 95.265 | D12: ='75 fpm'!P20 -> 95.925 | E12: ='150 fpm'!N20 -> 91.08 | F12: ='150 fpm'!O20 -> 91.41 | G12: ='150 fpm'!P20 -> 91.74 | H12: ='225 fpm'!N20 -> 90.18 | I12: ='225 fpm'!O20 -> 90.16 | J12: ='225 fpm'!P20 -> 90.14 | L12: ='75 fpm'!L55 -> 0.160279403 | M12: ='75 fpm'!S55 -> 94.605 | N12: ='75 fpm'!T55 -> 95.265 | O12: ='75 fpm'!U55 -> 95.925 | Q12: ='150 fpm'!L55 -> 0.08013970149 | R12: ='150 fpm'!S55 -> 91.08 | S12: ='150 fpm'!T55 -> 91.41 | T12: ='150 fpm'!U55 -> 91.74 | V12: ='225 fpm'!L57 -> 0.05342646766 | W12: ='225 fpm'!S57 -> 90.18 | X12: ='225 fpm'!T57 -> 90.16 | Y12: ='225 fpm'!U57 -> 90.14
A13: 60 | B13: ='75 fpm'!N21 -> 93.99 | C13: ='75 fpm'!O21 -> 94.44 | D13: ='75 fpm'!P21 -> 94.89 | E13: ='150 fpm'!N21 -> 91.2 | F13: ='150 fpm'!O21 -> 91.4025 | G13: ='150 fpm'!P21 -> 91.605 | H13: ='225 fpm'!N21 -> 89.915 | I13: ='225 fpm'!O21 -> 90.1125 | J13: ='225 fpm'!P21 -> 90.31 | L13: ='75 fpm'!L56 -> 0.1923352836 | M13: ='75 fpm'!S56 -> 93.99 | N13: ='75 fpm'!T56 -> 94.44 | O13: ='75 fpm'!U56 -> 94.89 | Q13: ='150 fpm'!L56 -> 0.09616764178 | R13: ='150 fpm'!S56 -> 91.2 | S13: ='150 fpm'!T56 -> 91.4025 | T13: ='150 fpm'!U56 -> 91.605 | V13: ='225 fpm'!L58 -> 0.06411176119 | W13: ='225 fpm'!S58 -> 89.915 | X13: ='225 fpm'!T58 -> 90.1125 | Y13: ='225 fpm'!U58 -> 90.31
A14: 70 | B14: ='75 fpm'!N22 -> 94.15 | C14: ='75 fpm'!O22 -> 94.835 | D14: ='75 fpm'!P22 -> 95.52 | E14: ='150 fpm'!N22 -> 90.935 | F14: ='150 fpm'!O22 -> 91.2325 | G14: ='150 fpm'!P22 -> 91.53 | H14: ='225 fpm'!N22 -> 90.025 | I14: ='225 fpm'!O22 -> 90.3625 | J14: ='225 fpm'!P22 -> 90.7 | L14: ='75 fpm'!L57 -> 0.2243911642 | M14: ='75 fpm'!S57 -> 94.15 | N14: ='75 fpm'!T57 -> 94.835 | O14: ='75 fpm'!U57 -> 95.52 | Q14: ='150 fpm'!L57 -> 0.1121955821 | R14: ='150 fpm'!S57 -> 90.935 | S14: ='150 fpm'!T57 -> 91.2325 | T14: ='150 fpm'!U57 -> 91.53 | V14: ='225 fpm'!L59 -> 0.07479705472 | W14: ='225 fpm'!S59 -> 90.025 | X14: ='225 fpm'!T59 -> 90.3625 | Y14: ='225 fpm'!U59 -> 90.7
A15: 80 | B15: ='75 fpm'!N23 -> 94.385 | C15: ='75 fpm'!O23 -> 94.56 | D15: ='75 fpm'!P23 -> 94.735 | E15: ='150 fpm'!N23 -> 91.3 | F15: ='150 fpm'!O23 -> 91.6775 | G15: ='150 fpm'!P23 -> 92.055 | H15: ='225 fpm'!N23 -> 90.4 | I15: ='225 fpm'!O23 -> 90.4925 | J15: ='225 fpm'!P23 -> 90.585 | L15: ='75 fpm'!L58 -> 0.2564470448 | M15: ='75 fpm'!S58 -> 94.385 | N15: ='75 fpm'!T58 -> 94.56 | O15: ='75 fpm'!U58 -> 94.735 | Q15: ='150 fpm'!L58 -> 0.1282235224 | R15: ='150 fpm'!S58 -> 91.3 | S15: ='150 fpm'!T58 -> 91.6775 | T15: ='150 fpm'!U58 -> 92.055 | V15: ='225 fpm'!L60 -> 0.08548234825 | W15: ='225 fpm'!S60 -> 90.4 | X15: ='225 fpm'!T60 -> 90.4925 | Y15: ='225 fpm'!U60 -> 90.585
A16: 90 | B16: ='75 fpm'!N24 -> 94.105 | C16: ='75 fpm'!O24 -> 94.56 | D16: ='75 fpm'!P24 -> 95.015 | E16: ='150 fpm'!N24 -> 91.56 | F16: ='150 fpm'!O24 -> 91.97 | G16: ='150 fpm'!P24 -> 92.38 | H16: ='225 fpm'!N24 -> 90.69 | I16: ='225 fpm'!O24 -> 90.9625 | J16: ='225 fpm'!P24 -> 91.235 | L16: ='75 fpm'!L59 -> 0.2885029254 | M16: ='75 fpm'!S59 -> 94.105 | N16: ='75 fpm'!T59 -> 94.56 | O16: ='75 fpm'!U59 -> 95.015 | Q16: ='150 fpm'!L59 -> 0.1442514627 | R16: ='150 fpm'!S59 -> 91.56 | S16: ='150 fpm'!T59 -> 91.97 | T16: ='150 fpm'!U59 -> 92.38 | V16: ='225 fpm'!L61 -> 0.09616764178 | W16: ='225 fpm'!S61 -> 90.69 | X16: ='225 fpm'!T61 -> 90.9625 | Y16: ='225 fpm'!U61 -> 91.235
V17: ='225 fpm'!L62 -> 0.1068529353 | W17: ='225 fpm'!S62 -> 90.19 | X17: ='225 fpm'!T62 -> 90.405 | Y17: ='225 fpm'!U62 -> 90.62
V18: ='225 fpm'!L63 -> 0.1175382288 | W18: ='225 fpm'!S63 -> 90.52 | X18: ='225 fpm'!T63 -> 90.545 | Y18: ='225 fpm'!U63 -> 90.57
V19: ='225 fpm'!L64 -> 0.1282235224 | W19: ='225 fpm'!S64 -> 90.14 | X19: ='225 fpm'!T64 -> 90.435 | Y19: ='225 fpm'!U64 -> 90.73

Sheet 75_JULY
A4: Line speed | B4: 75 fpm | G4: Line speed | H4: 75 fpm | M4: Line speed | N4: 75 fpm
A5: Delta T | B5: ~ 25 F | G5: Delta T | H5: ~ 25 F | M5: Delta T | N5: ~ 25 F
A6: Line Tension | B6: 1 pli | G6: Line Tension | H6: 2 pli | M6: Line Tension | N6: 3 pli
A7: Air and roller tempertures determined from readings taken over a ~9 minute span | G7: Air and roller tempertures determined from readings taken over a ~9 minute span | M7: Air and roller tempertures determined from readings taken over a ~9 minute span
A8: Material tempertures determined from readings taken over a 2.5minute span | G8: Material tempertures determined from readings taken over a 2.5minute span | M8: Material tempertures determined from readings taken over a 2.5minute span
A10: Material Temp | G10: Material Temp | M10: Material Temp
B11: 2.50" Left | C11: Centerline | D11: 2.50" Right | E11: Air Temp | F11: Roller Temp | H11: 2.50" Left | I11: Centerline | J11: 2.50" Right | K11: Air Temp | L11: Roller Temp | N11: 2.50" Left | O11: Centerline | P11: 2.50" Right | Q11: Air Temp | R11: Roller Temp
A12: 0 | B12: 79.46 | C12: 79.29 | D12: 78.6 | E12: 73.33145455 | F12: 94.94654545 | G12: 0 | H12: 78.57 | I12: 77.01 | J12: 76.9 | K12: 71.382 | L12: 95.69690909 | M12: 0 | N12: 80.11 | O12: 79.87 | P12: 78.8 | Q12: 73.29981818 | R12: 95.29581818 | T12: Roler Temps
B13: =NA() ->  | C13: =NA() ->  | D13: =NA() ->  | E13: =NA() ->  | F13: =NA() ->  | H13: =NA() ->  | I13: =NA() ->  | J13: =NA() ->  | K13: =NA() ->  | L13: =NA() ->  | N13: =NA() ->  | O13: =NA() ->  | P13: =NA() ->  | Q13: =NA() ->  | R13: =NA() -> 
A14: 5 | B14: 88.38 | C14: 87.36 | D14: 86.46 | E14: 71.76563636 | F14: 95.04818182 | G14: 5 | H14: 88.63 | I14: 88.08 | J14: 88.43 | K14: 72.96145455 | L14: 95.22436364 | M14: 5 | N14: 88.67 | O14: 89.35 | P14: 88.59 | Q14: 73.18472727 | R14: 95.14727273
A15: 10 | B15: 92.57 | C15: 92.2 | D15: 92.18 | E15: 71.46509091 | F15: 95.71181818 | G15: 10 | H15: 91.81 | I15: 91 | J15: 91.63 | K15: 70.78618182 | L15: 94.88872727 | M15: 10 | N15: 92.32 | O15: 92.63 | P15: 93.87 | Q15: 70.33636364 | R15: 95.92090909
A16: 15 | B16: 93.28 | C16: 92.73 | D16: 93.75 | E16: 73.47672727 | F16: 94.67672727 | G16: 15 | H16: 92.89 | I16: 92.71 | J16: 93.32 | K16: 71.62272727 | L16: 95.05781818 | M16: 15 | N16: 93.25 | O16: 93.66 | P16: 94.02 | Q16: 73.71836364 | R16: 95.10327273
A17: 20 | B17: 93.94 | C17: 93.71 | D17: 94.61 | E17: 70.64345455 | F17: 95.35490909 | G17: 20 | H17: 93.47 | I17: 93.36 | J17: 94.4 | K17: 73.04745455 | L17: 94.76527273 | M17: 20 | N17: 94.1 | O17: 93.88 | P17: 94.54 | Q17: 71.03181818 | R17: 95.32054545
A18: 30 | B18: 94.01 | C18: 93.9 | D18: 94.79 | E18: 72.81327273 | F18: 95.02563636 | G18: 30 | H18: 93.87 | I18: 93.08 | J18: 93.78 | K18: 70.72672727 | L18: 94.59381818 | M18: 30 | N18: 94.53 | O18: 93.7 | P18: 94.69 | Q18: 71.8 | R18: 95.47654545
A19: 40 | B19: 94.43 | C19: 93.93 | D19: 95.01 | E19: 71.95909091 | F19: 95.19163636 | G19: 40 | H19: 94.1 | I19: 93.61 | J19: 94.53 | K19: 71.16381818 | L19: 95.17109091 | M19: 40 | N19: 93.32 | O19: 93.13 | P19: 94.17 | Q19: 73.76981818 | R19: 93.92818182
A20: 50 | B20: 94.56 | C20: 93.95 | D20: 94.77 | E20: 71.70127273 | F20: 95.44690909 | G20: 50 | H20: 93.94 | I20: 93.71 | J20: 94.7 | K20: 72.98218182 | L20: 94.71454545 | M20: 50 | N20: 93.92 | O20: 94.21 | P20: 96.64 | Q20: 70.42690909 | R20: 95.87272727
A21: 60 | B21: 94.13 | C21: 93.92 | D21: 95.24 | E21: 73.78436364 | F21: 94.94618182 | G21: 60 | H21: 94.15 | I21: 93.57 | J21: 94.53 | K21: 70.28672727 | L21: 94.79236364 | M21: 60 | N21: 94.11 | O21: 93.89 | P21: 95.02 | Q21: 73.74963636 | R21: 94.92672727
A22: 70 | B22: 94.78 | C22: 94.6 | D22: 96.03 | E22: 70.45763636 | F22: 96.01945455 | G22: 70 | H22: 94.23 | I22: 93.79 | J22: 94.8 | K22: 71.17690909 | L22: 95.24436364 | M22: 70 | N22: 94.35 | O22: 94.36 | P22: 95.94 | Q22: 70.93618182 | R22: 95.71763636
A23: 80 | B23: 94.39 | C23: 93.69 | D23: 95.14 | E23: 70.51981818 | F23: 95.74036364 | G23: 80 | H23: 94.02 | I23: 93.82 | J23: 94.93 | K23: 72.97381818 | L23: 94.65890909 | M23: 80 | N23: 94.44 | O23: 93.75 | P23: 94.98 | Q23: 72.38963636 | R23: 95.30454545
A24: 90 | B24: 94.42 | C24: 94.41 | D24: 95.96 | E24: 72.13581818 | F24: 93.11945455 | G24: 90 | H24: 94.38 | I24: 93.83 | J24: 95.03 | K24: 71.81709091 | L24: 94.94127273 | M24: 90 | N24: 94.51 | O24: 93.8 | P24: 95.35 | Q24: 73.28927273 | R24: 95.18909091
B47: 1 PLI-2.5 Lt | C47: 1 PLI-Centerline | D47: 1 PLI-2.5 Rt | E47: 2 PLI-2.5 Lt | F47: 2 PLI-Centerline | G47: 2 PLI-2.5 Rt | H47: 3 PLI-2.5 Lt | I47: 3 PLI-Centerline | J47: 3 PLI-2.5 Rt
A48: =A12 -> 0 | B48: =B12 -> 79.46 | C48: 79.29 | D48: 78.6 | E48: =H12 -> 78.57 | F48: =I12 -> 77.01 | G48: 76.9 | H48: =N12 -> 80.11 | I48: =O12 -> 79.87 | J48: 78.8
B49: =NA() ->  | C49: =NA() ->  | D49: =NA() ->  | E49: =NA() ->  | F49: =NA() ->  | G49: =NA() ->  | H49: =NA() ->  | I49: =NA() ->  | J49: =NA() -> 
A50: =A14 -> 5 | B50: 88.38 | C50: 87.36 | D50: 86.46 | E50: =H14 -> 88.63 | F50: =I14 -> 88.08 | G50: =J14 -> 88.43 | H50: =N14 -> 88.67 | I50: =O14 -> 89.35 | J50: =P14 -> 88.59
A51: 10 | B51: 92.57 | C51: 92.2 | D51: 92.18 | E51: 91.81 | F51: 91 | G51: 91.63 | H51: 92.32 | I51: 92.63 | J51: 93.87
A52: 15 | B52: 93.28 | C52: 92.73 | D52: 93.75 | E52: 92.89 | F52: 92.71 | G52: 93.32 | H52: 93.25 | I52: 93.66 | J52: 94.02
A53: 20 | B53: 93.94 | C53: 93.71 | D53: 94.61 | E53: 93.47 | F53: 93.36 | G53: 94.4 | H53: 94.1 | I53: 93.88 | J53: 94.54
A54: 30 | B54: 94.01 | C54: 93.9 | D54: 94.79 | E54: 93.87 | F54: 93.08 | G54: 93.78 | H54: 94.53 | I54: 93.7 | J54: 94.69
A55: 40 | B55: 94.43 | C55: 93.93 | D55: 95.01 | E55: 94.1 | F55: 93.61 | G55: 94.53 | H55: 93.32 | I55: 93.13 | J55: 94.17
A56: 50 | B56: 94.56 | C56: 93.95 | D56: 94.77 | E56: 93.94 | F56: 93.71 | G56: 94.7 | H56: 93.92 | I56: 94.21 | J56: 96.64
A57: 60 | B57: 94.13 | C57: 93.92 | D57: 95.24 | E57: 94.15 | F57: 93.57 | G57: 94.53 | H57: 94.11 | I57: 93.89 | J57: 95.02
A58: 70 | B58: 94.78 | C58: 94.6 | D58: 96.03 | E58: 94.23 | F58: 93.79 | G58: 94.8 | H58: 94.35 | I58: 94.36 | J58: 95.94
A59: 80 | B59: 94.39 | C59: 93.69 | D59: 95.14 | E59: 94.02 | F59: 93.82 | G59: 94.93 | H59: 94.44 | I59: 93.75 | J59: 94.98
A60: =A24 -> 90 | B60: =B24 -> 94.42 | C60: 94.41 | D60: 95.96 | E60: 94.38 | F60: 93.83 | G60: 95.03 | H60: 94.51 | I60: 93.8 | J60: 95.35

Sheet 75_Aug
A4: Line speed | B4: 75 fpm | G4: Line speed | H4: 75 fpm | M4: Line speed | N4: 75 fpm
A5: Delta T | B5: ~ 25 F | G5: Delta T | H5: ~ 25 F | M5: Delta T | N5: ~ 25 F
A6: Line Tension | B6: 1 pli | G6: Line Tension | H6: 2 pli | M6: Line Tension | N6: 3 pli
A7: Air and roller tempertures determined from readings taken over a ~9 minute span | G7: Air and roller tempertures determined from readings taken over a ~9 minute span | M7: Air and roller tempertures determined from readings taken over a ~9 minute span
A8: Material tempertures determined from readings taken over a 2.5minute span | G8: Material tempertures determined from readings taken over a 2.5minute span | M8: Material tempertures determined from readings taken over a 2.5minute span
A10: Material Temp | G10: Material Temp | M10: Material Temp
B11: 2.50" Left | C11: Centerline | D11: 2.50" Right | E11: Air Temp | F11: Roller Temp | H11: 2.50" Left | I11: Centerline | J11: 2.50" Right | K11: Air Temp | L11: Roller Temp | N11: 2.50" Left | O11: Centerline | P11: 2.50" Right | Q11: Air Temp | R11: Roller Temp
A12: 0 | B12: 79.9 | C12: 78.71 | D12: 77.72 | E12: 71.99872727 | F12: 94.26963636 | G12: 0 | H12: 78.72 | I12: 81.39 | J12: 81.3 | K12: 72.97472727 | L12: 94.41454545 | M12: 0 | N12: 77.44 | O12: 77.72 | P12: 77.01 | Q12: 69.5 | R12: 95.55909091
A13: 2.5 | B13: 82.71 | C13: 82.57 | D13: 81.94 | E13: 71.37763636 | F13: 95.72309091 | G13: 2.5 | H13: 82.24 | I13: 81.77 | J13: 80.87 | K13: 72.404 | L13: 94.58490909 | M13: 2.5 | N13: 83.16 | O13: 80.68 | P13: 80.95 | Q13: 72.492 | R13: 94.87563636
A14: 5 | B14: 86.26 | C14: 86.1 | D14: 86.03 | E14: 73.07745455 | F14: 94.44054545 | G14: 5 | H14: 86.42 | I14: 86.5 | J14: 86.06 | K14: 72.26872727 | L14: 94.59254545 | M14: 5 | N14: 86.67 | O14: 85.23 | P14: 85.37 | Q14: 73.50327273 | R14: 94.63745455
A15: 10 | B15: 90.86 | C15: 90.66 | D15: 90.99 | E15: 72.31618182 | F15: 94.41618182 | G15: 10 | H15: 91.11 | I15: 90.68 | J15: 91.13 | K15: 73.53709091 | L15: 94.25690909 | M15: 10 | N15: 91.73 | O15: 90.88 | P15: 90.93 | Q15: 70.144 | R15: 94.93418182
A16: 15 | B16: 92.44 | C16: 91.94 | D16: 92.63 | E16: 69.47781818 | F16: 94.736 | G16: 15 | H16: 92.58 | I16: 92.7 | J16: 92.72 | K16: 71.08563636 | L16: 95.74818182 | M16: 15 | N16: 93.03 | O16: 91.97 | P16: 93.09 | Q16: 71.03745455 | R16: 95.258
A17: 20 | B17: 93.46 | C17: 92.67 | D17: 93.62 | E17: 72.00327273 | F17: 94.65236364 | G17: 20 | H17: 92.62 | I17: 92.3 | J17: 93.31 | K17: 73.41636364 | L17: 94.32545455 | M17: 20 | N17: 92.95 | O17: 92.36 | P17: 93.3 | Q17: 73.04254545 | R17: 94.62545455
A18: 30 | B18: 93.45 | C18: 93.17 | D18: 94.4 | E18: 73.50581818 | F18: 94.38309091 | G18: 30 | H18: 93.74 | I18: 92.71 | J18: 94.24 | K18: 71.73509091 | L18: 94.43418182 | M18: 30 | N18: 93.72 | O18: 93.14 | P18: 94.29 | Q18: 72.35381818 | R18: 94.81836364
A19: 40 | B19: 93.48 | C19: 93.49 | D19: 94.29 | E19: 70.21236364 | F19: 94.76454545 | G19: 40 | H19: 93.75 | I19: 92.83 | J19: 94.41 | K19: 69.52145455 | L19: 94.79527273 | M19: 40 | N19: 93.66 | O19: 92.82 | P19: 94.9 | Q19: 69.63890909 | R19: 95.26890909
A20: 50 | B20: 93.82 | C20: 93.57 | D20: 94.55 | E20: 72.68345455 | F20: 94.43909091 | G20: 50 | H20: 93.5 | I20: 93 | J20: 94.24 | K20: 72.08581818 | L20: 94.48218182 | M20: 50 | N20: 95.29 | O20: 94.34 | P20: 95.21 | Q20: 72.27545455 | R20: 96.26272727
A21: 60 | B21: 93.92 | C21: 93.28 | D21: 95.12 | E21: 71.25 | F21: 94.64654545 | G21: 60 | H21: 94.11 | I21: 93.47 | J21: 94.2 | K21: 70.04727273 | L21: 95.10036364 | M21: 60 | N21: 93.87 | O21: 93.27 | P21: 94.76 | Q21: 73.60945455 | R21: 94.78109091
A22: 70 | B22: 94.08 | C22: 93.51 | D22: 94.75 | E22: 70.87854545 | F22: 95.18345455 | G22: 70 | H22: 93.67 | I22: 93.06 | J22: 94.66 | K22: 72.65618182 | L22: 94.42654545 | M22: 70 | N22: 93.95 | O22: 93.79 | P22: 95.1 | Q22: 70.11909091 | R22: 95.40836364
A23: 80 | B23: 93.74 | C23: 93.28 | D23: 94.93 | E23: 72.89036364 | F23: 94.46127273 | G23: 80 | H23: 93.99 | I23: 93.31 | J23: 94.72 | K23: 72.31581818 | L23: 94.548 | M23: 80 | N23: 94.33 | O23: 93.93 | P23: 94.49 | Q23: 70.67290909 | R23: 95.53509091
A24: 90 | B24: 94 | C24: 93.38 | D24: 95.48 | E24: 72.89036364 | F24: 94.46127273 | G24: 90 | H24: 94.41 | I24: 93.23 | J24: 95.38 | K24: 69.60090909 | L24: 95.24563636 | M24: 90 | N24: 93.7 | O24: 93.36 | P24: 94.68 | Q24: 72.74036364 | R24: 94.70145455
B46: 1 PLI-2.5 Lt | C46: 1 PLI-Centerline | D46: 1 PLI-2.5 Rt | E46: 2 PLI-2.5 Lt | F46: 2 PLI-Centerline | G46: 2 PLI-2.5 Rt | H46: 3 PLI-2.5 Lt | I46: 3 PLI-Centerline | J46: 3 PLI-2.5 Rt
A47: 0 | B47: =B12 -> 79.9 | C47: =C12 -> 78.71 | D47: 77.72 | E47: =H12 -> 78.72 | F47: =I12 -> 81.39 | G47: =J12 -> 81.3 | H47: =N12 -> 77.44 | I47: =O12 -> 77.72 | J47: =P12 -> 77.01
A48: 2.5 | B48: =B13 -> 82.71 | C48: 82.57 | D48: 81.94 | E48: =H13 -> 82.24 | F48: 81.77 | G48: 80.87 | H48: =N13 -> 83.16 | I48: 80.68 | J48: 80.95
A49: 5 | B49: =B14 -> 86.26 | C49: 86.1 | D49: 86.03 | E49: =H14 -> 86.42 | F49: =I14 -> 86.5 | G49: =J14 -> 86.06 | H49: =N14 -> 86.67 | I49: =O14 -> 85.23 | J49: =P14 -> 85.37
A50: 10 | B50: 90.86 | C50: 90.66 | D50: 90.99 | E50: 91.11 | F50: 90.68 | G50: 91.13 | H50: 91.73 | I50: 90.88 | J50: 90.93
A51: 15 | B51: 92.44 | C51: 91.94 | D51: 92.63 | E51: 92.58 | F51: 92.7 | G51: 92.72 | H51: 93.03 | I51: 91.97 | J51: 93.09
A52: 20 | B52: 93.46 | C52: 92.67 | D52: 93.62 | E52: 92.62 | F52: 92.3 | G52: 93.31 | H52: 92.95 | I52: 92.36 | J52: 93.3
A53: 30 | B53: 93.45 | C53: 93.17 | D53: 94.4 | E53: 93.74 | F53: 92.71 | G53: 94.24 | H53: 93.72 | I53: 93.14 | J53: 94.29
A54: 40 | B54: 93.48 | C54: 93.49 | D54: 94.29 | E54: 93.75 | F54: 92.83 | G54: 94.41 | H54: 93.66 | I54: 92.82 | J54: 94.9
A55: 50 | B55: 93.82 | C55: 93.57 | D55: 94.55 | E55: 93.5 | F55: 93 | G55: 94.24 | H55: 95.29 | I55: 94.34 | J55: 95.21
A56: 60 | B56: 93.92 | C56: 93.28 | D56: 95.12 | E56: 94.11 | F56: 93.47 | G56: 94.2 | H56: 93.87 | I56: 93.27 | J56: 94.76
A57: 70 | B57: 94.08 | C57: 93.51 | D57: 94.75 | E57: 93.67 | F57: 93.06 | G57: 94.66 | H57: 93.95 | I57: 93.79 | J57: 95.1
A58: 80 | B58: 93.74 | C58: 93.28 | D58: 94.93 | E58: 93.99 | F58: 93.31 | G58: 94.72 | H58: 94.33 | I58: 93.93 | J58: 94.49
A59: 90 | B59: 94 | C59: 93.38 | D59: 95.48 | E59: 94.41 | F59: 93.23 | G59: 95.38 | H59: 93.7 | I59: 93.36 | J59: 94.68

Sheet 150_JULY
A4: Line speed | B4: 150 fpm | G4: Line speed | H4: 150 fpm | M4: Line speed | N4: 150 fpm
A5: Delta T | B5: ~ 25 F | G5: Delta T | H5: ~ 25 F | M5: Delta T | N5: ~ 25 F
A6: Line Tension | B6: 1 pli | G6: Line Tension | H6: 2 pli | M6: Line Tension | N6: 3 pli
A7: Air and roller tempertures determined from readings taken over a ~9 minute span | G7: Air and roller tempertures determined from readings taken over a ~9 minute span | M7: Air and roller tempertures determined from readings taken over a ~9 minute span
A8: Material tempertures determined from readings taken over a 2.5minute span | G8: Material tempertures determined from readings taken over a 2.5minute span | M8: Material tempertures determined from readings taken over a 2.5minute span
A10: Material Temp | G10: Material Temp | M10: Material Temp
B11: 2.50" Left | C11: Centerline | D11: 2.50" Right | E11: Air Temp | F11: Roller Temp | H11: 2.50" Left | I11: Centerline | J11: 2.50" Right | K11: Air Temp | L11: Roller Temp | N11: 2.50" Left | O11: Centerline | P11: 2.50" Right | Q11: Air Temp | R11: Roller Temp
A12: 0 | B12: 76.23 | C12: 75.27 | D12: 74.85 | E12: 70.41945455 | F12: 94.30709091 | G12: 0 | H12: 75.91 | I12: 75.93 | J12: 76.08 | K12: 72.11454545 | L12: 92.30272727 | M12: 0 | N12: 78.03 | O12: 76.83 | P12: 75.73 | Q12: 71.974 | R12: 92.26490909
B13: =NA() ->  | C13: =NA() ->  | D13: =NA() ->  | E13: =NA() ->  | F13: =NA() ->  | H13: =NA() ->  | I13: =NA() ->  | J13: =NA() ->  | K13: =NA() ->  | L13: =NA() ->  | N13: =NA() ->  | O13: =NA() ->  | P13: =NA() ->  | Q13: =NA() ->  | R13: =NA() -> 
A14: 5 | B14: 81.93 | C14: 80.77 | D14: 80.74 | E14: 73.41218182 | F14: 92.96890909 | G14: 5 | H14: 82.91 | I14: 82.28 | J14: 82.11 | K14: 73.62909091 | L14: 92.17927273 | M14: 5 | N14: 81.66 | O14: 81.57 | P14: 81.29 | Q14: 72.13345455 | R14: 92.40563636
A15: 10 | B15: 85.89 | C15: 83.54 | D15: 84.26 | E15: 70.99836364 | F15: 93.88472727 | G15: 10 | H15: 87.08 | I15: 85.61 | J15: 86.29 | K15: 71.24109091 | L15: 92.18690909 | M15: 10 | N15: 86.73 | O15: 86.23 | P15: 86.68 | Q15: 73.66636364 | R15: 92.23563636
A16: 15 | B16: 87.84 | C16: 86.36 | D16: 87.41 | E16: 72.63890909 | F16: 92.94672727 | G16: 15 | H16: 88 | I16: 87.17 | J16: 88.4 | K16: 70.596 | L16: 92.35818182 | M16: 15 | N16: 88.92 | O16: 88.12 | P16: 88.71 | Q16: 71.44345455 | R16: 93.19545455
A17: 20 | B17: 89.64 | C17: 88.66 | D17: 89.51 | E17: 73.08854545 | F17: 93.18309091 | G17: 20 | H17: 89.58 | I17: 88.67 | J17: 90.01 | K17: 72.75927273 | L17: 92.05709091 | M17: 20 | N17: 89.57 | O17: 88.86 | P17: 89.97 | Q17: 73.40145455 | R17: 92.29927273
A18: 30 | B18: 91.08 | C18: 88.89 | D18: 90.3 | E18: 71.57909091 | F18: 93.51254545 | G18: 30 | H18: 90.68 | I18: 89.83 | J18: 91.4 | K18: 73.35218182 | L18: 92.61436364 | M18: 30 | N18: 91 | O18: 89.88 | P18: 91.62 | Q18: 71.45290909 | R18: 92.73327273
A19: 40 | B19: 90.7 | C19: 89.77 | D19: 91.38 | E19: 73.06090909 | F19: 92.952 | G19: 40 | H19: 90.99 | I19: 89.77 | J19: 90.97 | K19: 70.45636364 | L19: 92.53981818 | M19: 40 | N19: 91.5 | O19: 89.84 | P19: 91.46 | Q19: 71.52218182 | R19: 92.91963636
A20: 50 | B20: 91.24 | C20: 90.13 | D20: 92.08 | E20: 72.07181818 | F20: 93.46 | G20: 50 | H20: 90.59 | I20: 89.72 | J20: 91.03 | K20: 73.01909091 | L20: 91.84236364 | M20: 50 | N20: 90.97 | O20: 89.99 | P20: 91.8 | Q20: 73.76545455 | R20: 92.24654545
A21: 60 | B21: 92.07 | C21: 90.71 | D21: 91.24 | E21: 70.36509091 | F21: 93.95145455 | G21: 60 | H21: 90.6 | I21: 89.32 | J21: 91.49 | K21: 70.76418182 | L21: 92.23981818 | M21: 60 | N21: 91.12 | O21: 90.29 | P21: 91.81 | Q21: 71.05727273 | R21: 92.58581818
A22: 70 | B22: 91.16 | C22: 90.11 | D22: 91.98 | E22: 73.46636364 | F22: 92.37636364 | G22: 70 | H22: 90.8 | I22: 89.55 | J22: 91.54 | K22: 72.90636364 | L22: 92.06945455 | M22: 70 | N22: 91.18 | O22: 90.46 | P22: 91.67 | Q22: 71.79254545 | R22: 92.73345455
A23: 80 | B23: 91.7 | C23: 90.48 | D23: 92.57 | E23: 70.30090909 | F23: 92.84490909 | G23: 80 | H23: 91.04 | I23: 90.1 | J23: 92.03 | K23: 73.34 | L23: 92.07727273 | M23: 80 | N23: 91.24 | O23: 90.23 | P23: 92.11 | Q23: 73.684 | R23: 92.39727273
A24: 90 | B24: 91.8 | C24: 89.81 | D24: 91.57 | E24: 72.01981818 | F24: 93.50781818 | G24: 90 | H24: 91.23 | I24: 90.26 | J24: 92.1 | K24: 73.52018182 | L24: 92.21545455 | M24: 90 | N24: 91.42 | O24: 90.59 | P24: 92.79 | Q24: 70.19581818 | R24: 93.41581818
B47: 1 PLI-2.5 Lt | C47: 1 PLI-Centerline | D47: 1 PLI-2.5 Rt | E47: 2 PLI-2.5 Lt | F47: 2 PLI-Centerline | G47: 2 PLI-2.5 Rt | H47: 3 PLI-2.5 Lt | I47: 3 PLI-Centerline | J47: 3 PLI-2.5 Rt
A48: =A12 -> 0 | B48: =B12 -> 76.23 | C48: 75.27 | D48: 74.85 | E48: =H12 -> 75.91 | F48: =I12 -> 75.93 | G48: 76.08 | H48: =N12 -> 78.03 | I48: =O12 -> 76.83 | J48: 75.73
B49: =NA() ->  | C49: =NA() ->  | D49: =NA() ->  | E49: =NA() ->  | F49: =NA() ->  | G49: =NA() ->  | H49: =NA() ->  | I49: =NA() ->  | J49: =NA() -> 
A50: =A14 -> 5 | B50: 81.93 | C50: 80.77 | D50: 80.74 | E50: =H14 -> 82.91 | F50: 82.28 | G50: 82.11 | H50: =N14 -> 81.66 | I50: 81.57 | J50: 81.29
A51: =A15 -> 10 | B51: 85.89 | C51: 83.54 | D51: 84.26 | E51: =H15 -> 87.08 | F51: =I15 -> 85.61 | G51: =J15 -> 86.29 | H51: =N15 -> 86.73 | I51: =O15 -> 86.23 | J51: =P15 -> 86.68
A52: =A16 -> 15 | B52: 87.84 | C52: 86.36 | D52: 87.41 | E52: 88 | F52: 87.17 | G52: 88.4 | H52: 88.92 | I52: 88.12 | J52: 88.71
A53: =A17 -> 20 | B53: 89.64 | C53: 88.66 | D53: 89.51 | E53: 89.58 | F53: 88.67 | G53: 90.01 | H53: 89.57 | I53: 88.86 | J53: 89.97
A54: =A18 -> 30 | B54: 91.08 | C54: 88.89 | D54: 90.3 | E54: 90.68 | F54: 89.83 | G54: 91.4 | H54: 91 | I54: 89.88 | J54: 91.62
A55: =A19 -> 40 | B55: 90.7 | C55: 89.77 | D55: 91.38 | E55: 90.99 | F55: 89.77 | G55: 90.97 | H55: 91.5 | I55: 89.84 | J55: 91.46
A56: =A20 -> 50 | B56: 91.24 | C56: 90.13 | D56: 92.08 | E56: 90.59 | F56: 89.72 | G56: 91.03 | H56: 90.97 | I56: 89.99 | J56: 91.8
A57: =A21 -> 60 | B57: 92.07 | C57: 90.71 | D57: 91.24 | E57: 90.6 | F57: 89.32 | G57: 91.49 | H57: 91.12 | I57: 90.29 | J57: 91.81
A58: =A22 -> 70 | B58: 91.16 | C58: 90.11 | D58: 91.98 | E58: 90.8 | F58: 89.55 | G58: 91.54 | H58: 91.18 | I58: 90.46 | J58: 91.67
A59: =A23 -> 80 | B59: 91.7 | C59: 90.48 | D59: 92.57 | E59: 91.04 | F59: 90.1 | G59: 92.03 | H59: 91.24 | I59: 90.23 | J59: 92.11
A60: =A24 -> 90 | B60: 91.8 | C60: 89.81 | D60: 91.57 | E60: 91.23 | F60: 90.26 | G60: 92.1 | H60: 91.42 | I60: 90.59 | J60: 92.79

Sheet 150_AUG
A4: Line speed | B4: 150 fpm | G4: Line speed | H4: 150 fpm | M4: Line speed | N4: 150 fpm
A5: Delta T | B5: ~ 25 F | G5: Delta T | H5: ~ 25 F | M5: Delta T | N5: ~ 25 F
A6: Line Tension | B6: 1 pli | G6: Line Tension | H6: 2 pli | M6: Line Tension | N6: 3 pli
A7: Air and roller tempertures determined from readings taken over a ~9 minute span | G7: Air and roller tempertures determined from readings taken over a ~9 minute span | M7: Air and roller tempertures determined from readings taken over a ~9 minute span
A8: Material tempertures determined from readings taken over a 2.5minute span | G8: Material tempertures determined from readings taken over a 2.5minute span | M8: Material tempertures determined from readings taken over a 2.5minute span
A10: Material Temp | G10: Material Temp | M10: Material Temp
B11: 2.50" Left | C11: Centerline | D11: 2.50" Right | E11: Air Temp | F11: Roller Temp | H11: 2.50" Left | I11: Centerline | J11: 2.50" Right | K11: Air Temp | L11: Roller Temp | N11: 2.50" Left | O11: Centerline | P11: 2.50" Right | Q11: Air Temp | R11: Roller Temp
A12: 0 | B12: 76.64 | C12: 76.9 | D12: 76.65 | E12: 73.17509091 | F12: 92.13072727 | G12: 0 | H12: 75.91 | I12: 76.34 | J12: 76.29 | K12: 71.99363636 | L12: 92.61981818 | M12: 0 | N12: 76.46 | O12: 77.23 | P12: 76.79 | Q12: 73.11836364 | R12: 92.80418182
A13: 2.5 | B13: 78.5 | C13: 78.2 | D13: 77.05 | E13: 70.67472727 | F13: 92.52345455 | G13: 2.5 | H13: 78.59 | I13: 78.82 | J13: 78.94 | K13: 73.60509091 | L13: 92.40509091 | M13: 2.5 | N13: 79.07 | O13: 78.59 | P13: 77.75 | Q13: 72.41709091 | R13: 92.40909091
A14: 5 | B14: 79.77 | C14: 80.18 | D14: 80.18 | E14: 70.54345455 | F14: 93.25654545 | G14: 5 | H14: 81.19 | I14: 80.63 | J14: 79.68 | K14: 70.85309091 | L14: 92.86763636 | M14: 5 | N14: 81.23 | O14: 79.59 | P14: 78.49 | Q14: 69.68509091 | R14: 92.40690909
A15: 10 | B15: 84.94 | C15: 84.84 | D15: 85.06 | E15: 72.412 | F15: 92.42854545 | G15: 10 | H15: 84.91 | I15: 84.15 | J15: 84.96 | K15: 70.85381818 | L15: 92.89127273 | M15: 10 | N15: 84.83 | O15: 83.08 | P15: 83.96 | Q15: 71.95327273 | R15: 92.528
A16: 15 | B16: 86.83 | C16: 85.83 | D16: 87.2 | E16: 69.91072727 | F16: 92.96418182 | G16: 15 | H16: 87.27 | I16: 86.39 | J16: 87.66 | K16: 73.06 | L16: 92.41327273 | M16: 15 | N16: 86.74 | O16: 85.55 | P16: 87.36 | Q16: 73.80036364 | R16: 93.13654545
A17: 20 | B17: 88.33 | C17: 87.65 | D17: 89.25 | E17: 72.37054545 | F17: 92.266 | G17: 20 | H17: 88.45 | I17: 87.65 | J17: 88.44 | K17: 72.534 | L17: 92.65 | M17: 20 | N17: 88.63 | O17: 87 | P17: 87.63 | Q17: 70.21727273 | R17: 93.60854545
A18: 30 | B18: 89.85 | C18: 89.29 | D18: 90.81 | E18: 72.37054545 | F18: 92.266 | G18: 30 | H18: 89.86 | I18: 88.63 | J18: 90.38 | K18: 70.09290909 | L18: 93.02545455 | M18: 30 | N18: 89.85 | O18: 88.28 | P18: 89.83 | Q18: 71.31836364 | R18: 93.09109091
A19: 40 | B19: 90.77 | C19: 90.21 | D19: 91.8 | E19: 71.02054545 | F19: 93.46963636 | G19: 40 | H19: 90.4 | I19: 89.61 | J19: 91.19 | K19: 70.46090909 | L19: 92.16581818 | M19: 40 | N19: 90.67 | O19: 89.35 | P19: 91.26 | Q19: 73.16945455 | R19: 93.09145455
A20: 50 | B20: 91.91 | C20: 90.67 | D20: 92.81 | E20: 72.13218182 | F20: 93.76509091 | G20: 50 | H20: 90.8 | I20: 89.98 | J20: 91.65 | K20: 71.726 | L20: 92.54 | M20: 50 | N20: 91.19 | O20: 89.72 | P20: 91.68 | Q20: 71.77618182 | R20: 93.38818182
A21: 60 | B21: 91.54 | C21: 90.39 | D21: 91.57 | E21: 70.99436364 | F21: 93.21545455 | G21: 60 | H21: 90.76 | I21: 90.04 | J21: 91.96 | K21: 73.30254545 | L21: 92.22363636 | M21: 60 | N21: 91.28 | O21: 89.46 | P21: 91.4 | Q21: 69.71527273 | R21: 93.65436364
A22: 70 | B22: 91.23 | C22: 90.79 | D22: 92.48 | E22: 73.82472727 | F22: 93.14654545 | G22: 70 | H22: 91.36 | I22: 90.02 | J22: 92.53 | K22: 71.61763636 | L22: 92.46981818 | M22: 70 | N22: 90.69 | O22: 89.76 | P22: 91.39 | Q22: 72.37727273 | R22: 93.29072727
A23: 80 | B23: 92.49 | C23: 91.14 | D23: 92.61 | E23: 71.13163636 | F23: 93.96545455 | G23: 80 | H23: 91.42 | I23: 90.19 | J23: 92.21 | K23: 71.98781818 | L23: 92.63327273 | M23: 80 | N23: 91.36 | O23: 90.19 | P23: 92 | Q23: 73.57472727 | R23: 93.45072727
A24: 90 | B24: 91.74 | C24: 90.31 | D24: 91.67 | E24: 70.21745455 | F24: 93.42781818 | G24: 90 | H24: 91.16 | I24: 90.3 | J24: 92.35 | K24: 73.59509091 | L24: 92.272 | M24: 90 | N24: 91.7 | O24: 90.02 | P24: 91.97 | Q24: 69.78981818 | R24: 93.77
B46: 1 PLI-2.5 Lt | C46: 1 PLI-Centerline | D46: 1 PLI-2.5 Rt | E46: 2 PLI-2.5 Lt | F46: 2 PLI-Centerline | G46: 2 PLI-2.5 Rt | H46: 3 PLI-2.5 Lt | I46: 3 PLI-Centerline | J46: 3 PLI-2.5 Rt
A47: 0 | B47: =B12 -> 76.64 | C47: =C12 -> 76.9 | D47: 76.65 | E47: =H12 -> 75.91 | F47: =I12 -> 76.34 | G47: =J12 -> 76.29 | H47: =N12 -> 76.46 | I47: =O12 -> 77.23 | J47: =P12 -> 76.79
A48: 2.5 | B48: =B13 -> 78.5 | C48: 78.2 | D48: 77.05 | E48: =H13 -> 78.59 | F48: 78.82 | G48: 78.94 | H48: =N13 -> 79.07 | I48: 78.59 | J48: 77.75
A49: 5 | B49: =B14 -> 79.77 | C49: 80.18 | D49: 80.18 | E49: 81.19 | F49: 80.63 | G49: 79.68 | H49: 81.23 | I49: 79.59 | J49: 78.49
A50: 10 | B50: 84.94 | C50: 84.84 | D50: 85.06 | E50: 84.91 | F50: 84.15 | G50: 84.96 | H50: 84.83 | I50: 83.08 | J50: 83.96
A51: 15 | B51: 86.83 | C51: 85.83 | D51: 87.2 | E51: 87.27 | F51: 86.39 | G51: 87.66 | H51: 86.74 | I51: 85.55 | J51: 87.36
A52: 20 | B52: 88.33 | C52: 87.65 | D52: 89.25 | E52: 88.45 | F52: 87.65 | G52: 88.44 | H52: 88.63 | I52: 87 | J52: 87.63
A53: 30 | B53: 89.85 | C53: 89.29 | D53: 90.81 | E53: 89.86 | F53: 88.63 | G53: 90.38 | H53: 89.85 | I53: 88.28 | J53: 89.83
A54: 40 | B54: 90.77 | C54: 90.21 | D54: 91.8 | E54: 90.4 | F54: 89.61 | G54: 91.19 | H54: 90.67 | I54: 89.35 | J54: 91.26
A55: 50 | B55: 91.91 | C55: 90.67 | D55: 92.81 | E55: 90.8 | F55: 89.98 | G55: 91.65 | H55: 91.19 | I55: 89.72 | J55: 91.68
A56: 60 | B56: 91.54 | C56: 90.39 | D56: 91.57 | E56: 90.76 | F56: 90.04 | G56: 91.96 | H56: 91.28 | I56: 89.46 | J56: 91.4
A57: 70 | B57: 91.23 | C57: 90.79 | D57: 92.48 | E57: 91.36 | F57: 90.02 | G57: 92.53 | H57: 90.69 | I57: 89.76 | J57: 91.39
A58: 80 | B58: 92.49 | C58: 91.14 | D58: 92.61 | E58: 91.42 | F58: 90.19 | G58: 92.21 | H58: 91.36 | I58: 90.19 | J58: 92
A59: 90 | B59: 91.74 | C59: 90.31 | D59: 91.67 | E59: 91.16 | F59: 90.3 | G59: 92.35 | H59: 91.7 | I59: 90.02 | J59: 91.97

Sheet 225_JULY
A4: Line speed | B4: 225 fpm | G4: Line speed | H4: 225 fpm | M4: Line speed | N4: 225 fpm
A5: Delta T | B5: ~ 25 F | G5: Delta T | H5: ~ 25 F | M5: Delta T | N5: ~ 25 F
A6: Line Tension | B6: 1 pli | G6: Line Tension | H6: 2 pli | M6: Line Tension | N6: 3 pli
A7: Air and roller tempertures determined from readings taken over a ~9 minute span | G7: Air and roller tempertures determined from readings taken over a ~9 minute span | M7: Air and roller tempertures determined from readings taken over a ~9 minute span
A8: Material tempertures determined from readings taken over a 2.5minute span | G8: Material tempertures determined from readings taken over a 2.5minute span | M8: Material tempertures determined from readings taken over a 2.5minute span
A10: Material Temp | G10: Material Temp | M10: Material Temp
B11: 2.50" Left | C11: Centerline | D11: 2.50" Right | E11: Air Temp | F11: Roller Temp | H11: 2.50" Left | I11: Centerline | J11: 2.50" Right | K11: Air Temp | L11: Roller Temp | N11: 2.50" Left | O11: Centerline | P11: 2.50" Right | Q11: Air Temp | R11: Roller Temp
A12: 0 | B12: 77.03 | C12: 75.41 | D12: 74.95 | E12: 71.06745455 | F12: 94.54581818 | G12: 0 | H12: 75.62 | I12: 74.8 | J12: 74.65 | K12: 70.07472727 | L12: 93.22509091 | M12: 0 | N12: 77.03 | O12: 75.66 | P12: 75.28 | Q12: 70.96945455 | R12: 92.98145455
B13: =NA() ->  | C13: =NA() ->  | D13: =NA() ->  | E13: =NA() ->  | F13: =NA() ->  | H13: =NA() ->  | I13: =NA() ->  | J13: =NA() ->  | K13: =NA() ->  | L13: =NA() ->  | N13: =NA() ->  | O13: =NA() ->  | P13: =NA() ->  | Q13: =NA() ->  | R13: =NA() -> 
A14: 5 | B14: 78.55 | C14: 77.2 | D14: 77.82 | E14: 71.60490909 | F14: 93.25363636 | G14: 5 | H14: 79.41 | I14: 79.48 | J14: 79.16 | K14: 73.34709091 | L14: 92.29127273 | M14: 5 | N14: 78.12 | O14: 77.85 | P14: 78.05 | Q14: 72.28963636 | R14: 92.74490909
A15: 10 | B15: 83.43 | C15: 82.53 | D15: 83.05 | E15: 70.49127273 | F15: 91.64090909 | G15: 10 | H15: 83.93 | I15: 82.39 | J15: 82.25 | K15: 72.16509091 | L15: 92.67072727 | M15: 10 | N15: 83.19 | O15: 82.68 | P15: 83.25 | Q15: 73.90072727 | R15: 92.66872727
A16: 15 | B16: 86.35 | C16: 83.94 | D16: 84.35 | E16: 70.49127273 | F16: 91.64090909 | G16: 15 | H16: 85.46 | I16: 83.36 | J16: 84.68 | K16: 70.36418182 | L16: 93.01963636 | M16: 15 | N16: 86.07 | O16: 84.4 | P16: 85.17 | Q16: 71.47927273 | R16: 92.89090909
A17: 20 | B17: 86.77 | C17: 84.99 | D17: 85.99 | E17: 72.17763636 | F17: 91.09018182 | G17: 20 | H17: 86.85 | I17: 85.35 | J17: 86.65 | K17: 72.67854545 | L17: 92.44127273 | M17: 20 | N17: 86.96 | O17: 85.53 | P17: 86.97 | Q17: 71.26272727 | R17: 93.19563636
A18: 30 | B18: 87.61 | C18: 87.56 | D18: 89.38 | E18: 73.80709091 | F18: 91.26018182 | G18: 30 | H18: 88.78 | I18: 87.45 | J18: 89.19 | K18: 73.94636364 | L18: 92.60654545 | M18: 30 | N18: 89.23 | O18: 87.57 | P18: 89.47 | Q18: 73.70709091 | R18: 92.61727273
A19: 40 | B19: 89.24 | C19: 88.48 | D19: 89.96 | E19: 71.198 | F19: 91.60272727 | G19: 40 | H19: 88.57 | I19: 87.37 | J19: 89.52 | K19: 72.71254545 | L19: 92.33545455 | M19: 40 | N19: 89.99 | O19: 88.19 | P19: 89.85 | Q19: 71.79563636 | R19: 92.83618182
A20: 50 | B20: 89.61 | C20: 88.32 | D20: 90.37 | E20: 71.77490909 | F20: 91.48472727 | G20: 50 | H20: 90.21 | I20: 88.39 | J20: 90.33 | K20: 73.40563636 | L20: 92.52981818 | M20: 50 | N20: 90.55 | O20: 88.36 | P20: 90.21 | Q20: 71.59272727 | R20: 93.30054545
A21: 60 | B21: 90.32 | C21: 89.25 | D21: 90.91 | E21: 73.45490909 | F21: 91.79218182 | G21: 60 | H21: 90.05 | I21: 87.98 | J21: 90.68 | K21: 70.67363636 | L21: 92.84909091 | M21: 60 | N21: 89.64 | O21: 88.31 | P21: 90.43 | Q21: 74.228 | R21: 92.39581818
A22: 70 | B22: 90.82 | C22: 89.54 | D22: 91.77 | E22: 72.528 | F22: 91.66727273 | G22: 70 | H22: 90.02 | I22: 88.38 | J22: 90.62 | K22: 72.87945455 | L22: 92.49545455 | M22: 70 | N22: 90 | O22: 88.43 | P22: 90.89 | Q22: 70.56781818 | R22: 93.19945455
A23: 80 | B23: 90.78 | C23: 88.38 | D23: 90.28 | E23: 71.18381818 | F23: 92.10454545 | G23: 80 | H23: 90.24 | I23: 88.93 | J23: 90.69 | K23: 73.31745455 | L23: 92.51454545 | M23: 80 | N23: 90.41 | O23: 88.58 | P23: 90.55 | Q23: 72.48472727 | R23: 92.94090909
A24: 90 | B24: 89.48 | C24: 88.61 | D24: 90.53 | E24: 73.34672727 | F24: 90.88581818 | G24: 90 | H24: 90.39 | I24: 88.01 | J24: 90.73 | K24: 70.94490909 | L24: 92.76981818 | M24: 90 | N24: 90.43 | O24: 88.98 | P24: 91.32 | Q24: 73.92090909 | R24: 92.836
A25: 100 | B25: 90.22 | C25: 88.8 | D25: 90.83 | E25: =NA() ->  | F25: =NA() -> 
A26: 110 | B26: 89.92 | C26: 87.7 | D26: 89.7 | E26: =NA() ->  | F26: =NA() -> 
B49: 1 PLI-2.5 Lt | C49: 1 PLI-Centerline | D49: 1 PLI-2.5 Rt | E49: 2 PLI-2.5 Lt | F49: 2 PLI-Centerline | G49: 2 PLI-2.5 Rt | H49: 3 PLI-2.5 Lt | I49: 3 PLI-Centerline | J49: 3 PLI-2.5 Rt
A50: =A12 -> 0 | B50: =B12 -> 77.03 | C50: 75.41 | D50: 74.95 | E50: =H12 -> 75.62 | F50: =I12 -> 74.8 | G50: 74.65 | H50: =N12 -> 77.03 | I50: =O12 -> 75.66 | J50: 75.28
B51: =B13 ->  | E51: =H13 ->  | F51: =I13 ->  | G51: =J13 ->  | H51: =N13 ->  | I51: =O13 ->  | J51: =P13 -> 
A52: =A14 -> 5 | B52: 78.55 | C52: 77.2 | D52: 77.82 | E52: 79.41 | F52: 79.48 | G52: 79.16 | H52: 78.12 | I52: 77.85 | J52: 78.05
A53: =A15 -> 10 | B53: 83.43 | C53: 82.53 | D53: 83.05 | E53: 83.93 | F53: 82.39 | G53: 82.25 | H53: 83.19 | I53: 82.68 | J53: 83.25
A54: =A16 -> 15 | B54: 86.35 | C54: 83.94 | D54: 84.35 | E54: 85.46 | F54: 83.36 | G54: 84.68 | H54: 86.07 | I54: 84.4 | J54: 85.17
A55: =A17 -> 20 | B55: 86.77 | C55: 84.99 | D55: 85.99 | E55: 86.85 | F55: 85.35 | G55: 86.65 | H55: 86.96 | I55: 85.53 | J55: 86.97
A56: =A18 -> 30 | B56: 87.61 | C56: 87.56 | D56: 89.38 | E56: 88.78 | F56: 87.45 | G56: 89.19 | H56: 89.23 | I56: 87.57 | J56: 89.47
A57: =A19 -> 40 | B57: 89.24 | C57: 88.48 | D57: 89.96 | E57: 88.57 | F57: 87.37 | G57: 89.52 | H57: 89.99 | I57: 88.19 | J57: 89.85
A58: =A20 -> 50 | B58: 89.61 | C58: 88.32 | D58: 90.37 | E58: 90.21 | F58: 88.39 | G58: 90.33 | H58: 90.55 | I58: 88.36 | J58: 90.21
A59: =A21 -> 60 | B59: 90.32 | C59: 89.25 | D59: 90.91 | E59: 90.05 | F59: 87.98 | G59: 90.68 | H59: 89.64 | I59: 88.31 | J59: 90.43
A60: =A22 -> 70 | B60: 90.82 | C60: 89.54 | D60: 91.77 | E60: 90.02 | F60: 88.38 | G60: 90.62 | H60: 90 | I60: 88.43 | J60: 90.89
A61: =A23 -> 80 | B61: 90.78 | C61: 88.38 | D61: 90.28 | E61: 90.24 | F61: 88.93 | G61: 90.69 | H61: 90.41 | I61: 88.58 | J61: 90.55
A62: =A24 -> 90 | B62: 89.48 | C62: 88.61 | D62: 90.53 | E62: 90.39 | F62: 88.01 | G62: 90.73 | H62: 90.43 | I62: 88.98 | J62: 91.32
A63: =A25 -> 100 | B63: 90.22 | C63: 88.8 | D63: 90.83
A64: =A26 -> 110 | B64: 89.92 | C64: 87.7 | D64: 89.7

Sheet 225_AUG
A4: Line speed | B4: 225 fpm | G4: Line speed | H4: 225 fpm | M4: Line speed | N4: 225 fpm
A5: Delta T | B5: ~ 25 F | G5: Delta T | H5: ~ 25 F | M5: Delta T | N5: ~ 25 F
A6: Line Tension | B6: 1 pli | G6: Line Tension | H6: 2 pli | M6: Line Tension | N6: 3 pli
A7: Air and roller tempertures determined from readings taken over a ~9 minute span | G7: Air and roller tempertures determined from readings taken over a ~9 minute span | M7: Air and roller tempertures determined from readings taken over a ~9 minute span
A8: Material tempertures determined from readings taken over a 2.5minute span | G8: Material tempertures determined from readings taken over a 2.5minute span | M8: Material tempertures determined from readings taken over a 2.5minute span
A10: Material Temp | G10: Material Temp | M10: Material Temp
B11: 2.50" Left | C11: Centerline | D11: 2.50" Right | E11: Air Temp | F11: Roller Temp | H11: 2.50" Left | I11: Centerline | J11: 2.50" Right | K11: Air Temp | L11: Roller Temp | N11: 2.50" Left | O11: Centerline | P11: 2.50" Right | Q11: Air Temp | R11: Roller Temp
A12: 0 | B12: 76.06 | C12: 76.14 | D12: 76.51 | E12: 73.69981818 | F12: 92.37436364 | G12: 0 | H12: 76.03 | I12: 75.87 | J12: 75.44 | K12: 71.168 | L12: 92.79490909 | M12: 0 | N12: 75.44 | O12: 75.91 | P12: 76.02 | Q12: 71.54545455 | R12: 93.31054545
A13: 2.5 | B13: 76.11 | C13: 75.73 | D13: 76.21 | E13: 72.76054545 | F13: 91.97618182 | G13: 2.5 | H13: 77.78 | I13: 76.84 | J13: 77.06 | K13: 72.46527273 | L13: 92.72381818 | M13: 2.5 | N13: 77.88 | O13: 77.35 | P13: 77.95 | Q13: 73.80454545 | R13: 92.64472727
A14: 5 | B14: 78.9 | C14: 78.68 | D14: 78.14 | E14: 73.88636364 | F14: 92.39272727 | G14: 5 | H14: 79.4 | I14: 79.24 | J14: 79.25 | K14: 74.13272727 | L14: 93.02090909 | M14: 5 | N14: 80.08 | O14: 78.84 | P14: 78.41 | Q14: 72.34345455 | R14: 92.73
A15: 10 | B15: 80.88 | C15: 79.84 | D15: 80 | E15: 70.57072727 | F15: 92.66781818 | G15: 10 | H15: 82.22 | I15: 80.84 | J15: 80.88 | K15: 70.94 | L15: 93.34345455 | M15: 10 | N15: 82.25 | O15: 80.86 | P15: 80.96 | Q15: 71.208 | R15: 93.40781818
A16: 15 | B16: 82.08 | C16: 81.16 | D16: 82.82 | E16: 71.88818182 | F16: 92.54145455 | G16: 15 | H16: 82.32 | I16: 81.87 | J16: 83.03 | K16: 70.48618182 | L16: 93.56563636 | M16: 15 | N16: 83.94 | O16: 82.6 | P16: 83.72 | Q16: 73.40218182 | R16: 92.77527273
A17: 20 | B17: 83.65 | C17: 83.05 | D17: 84.44 | E17: 73.62727273 | F17: 91.998 | G17: 20 | H17: 84.74 | I17: 83.65 | J17: 85.04 | K17: 72.88818182 | L17: 92.70909091 | M17: 20 | N17: 86.31 | O17: 84.62 | P17: 85.23 | Q17: 73.22636364 | R17: 93.04054545
A18: 30 | B18: 86.74 | C18: 85.25 | D18: 86.59 | E18: 71.66272727 | F18: 92.31272727 | G18: 30 | H18: 87.78 | I18: 86.34 | J18: 87.32 | K18: 72.89818182 | L18: 92.79836364 | M18: 30 | N18: 88.73 | O18: 86.07 | P18: 87.48 | Q18: 70.38636364 | R18: 93.85509091
A19: 40 | B19: 87.17 | C19: 86.16 | D19: 88.45 | E19: 71.82836364 | F19: 93.51072727 | G19: 40 | H19: 88.35 | I19: 86.34 | J19: 87.92 | K19: 69.86618182 | L19: 92.70454545 | M19: 40 | N19: 88.99 | O19: 87.38 | P19: 89.36 | Q19: 72.836 | R19: 92.91309091
A20: 50 | B20: 88.65 | C20: 87.43 | D20: 89.83 | E20: 73.82018182 | F20: 93.02545455 | G20: 50 | H20: 89.05 | I20: 87.43 | J20: 89.35 | K20: 72.09163636 | L20: 92.97909091 | M20: 50 | N20: 89.81 | O20: 88.28 | P20: 90.07 | Q20: 73.87545455 | R20: 92.83090909
A21: 60 | B21: 88.77 | C21: 87.27 | D21: 89.68 | E21: 73.09418182 | F21: 92.23236364 | G21: 60 | H21: 89.66 | I21: 88.26 | J21: 90.08 | K21: 73.71745455 | L21: 92.94418182 | M21: 60 | N21: 90.19 | O21: 87.95 | P21: 90.19 | Q21: 70.64145455 | R21: 93.53781818
A22: 70 | B22: 89.44 | C22: 88.13 | D22: 90.1 | E22: 72.93854545 | F22: 92.67690909 | G22: 70 | H22: 89.47 | I22: 87.96 | J22: 90 | K22: 70.21945455 | L22: 93.08454545 | M22: 70 | N22: 90.05 | O22: 88.22 | P22: 90.51 | Q22: 73.52090909 | R22: 92.79236364
A23: 80 | B23: 89.84 | C23: 87.84 | D23: 90.47 | E23: 70.04618182 | F23: 93.442 | G23: 80 | H23: 90.14 | I23: 88.02 | J23: 89.97 | K23: 72.29345455 | L23: 93.00090909 | M23: 80 | N23: 90.39 | O23: 88.55 | P23: 90.62 | Q23: 72.87981818 | R23: 92.698
A24: 90 | B24: 89.39 | C24: 88.08 | D24: 89.88 | E24: 72.54872727 | F24: 92.71036364 | G24: 90 | H24: 90.05 | I24: 88.91 | J24: 90.43 | K24: 73.67727273 | L24: 92.95963636 | M24: 90 | N24: 90.95 | O24: 88.28 | P24: 91.15 | Q24: 71.37727273 | R24: 93.62272727
A25: 100 | B25: 89.92 | C25: 88.78 | D25: 90.55 | E25: 73.91181818 | F25: 92.77036364 | G25: 100 | H25: 90.36 | I25: 88.83 | J25: 90.81 | K25: 71.32963636 | L25: 93.29363636 | M25: 100 | N25: 90.19 | O25: 88.44 | P25: 90.62 | Q25: 73.70072727 | R25: 92.70236364
A26: 110 | B26: 90.32 | C26: 88.7 | D26: 90.37 | E26: 69.97254545 | F26: 93.54290909 | G26: 110 | H26: 89.59 | I26: 88.2 | J26: 89.98 | K26: 70.78672727 | L26: 92.72636364 | M26: 110 | N26: 90.52 | O26: 88.75 | P26: 90.57 | Q26: 73.02345455 | R26: 92.72636364
A27: 120 | B27: 89.92 | C27: 88.56 | D27: 90.02 | E27: 71.88909091 | F27: 92.96654545 | G27: 120 | H27: 90.03 | I27: 88.89 | J27: 90.59 | K27: 73.28545455 | L27: 92.85690909 | M27: 120 | N27: 90.14 | O27: 88.5 | P27: 90.73 | Q27: 70.768 | R27: 93.21072727
B48: 1 PLI-2.5 Lt | C48: 1 PLI-Centerline | D48: 1 PLI-2.5 Rt | E48: 2 PLI-2.5 Lt | F48: 2 PLI-Centerline | G48: 2 PLI-2.5 Rt | H48: 3 PLI-2.5 Lt | I48: 3 PLI-Centerline | J48: 3 PLI-2.5 Rt
A49: 0 | B49: =B12 -> 76.06 | C49: =C12 -> 76.14 | D49: =D12 -> 76.51 | E49: =H12 -> 76.03 | F49: =I12 -> 75.87 | G49: =J12 -> 75.44 | H49: =N12 -> 75.44 | I49: =O12 -> 75.91 | J49: =P12 -> 76.02
A50: 2.5 | B50: =B13 -> 76.11 | C50: 75.73 | D50: 76.21 | E50: =H13 -> 77.78 | F50: 76.84 | G50: 77.06 | H50: =N13 -> 77.88 | I50: 77.35 | J50: 77.95
A51: 5 | B51: =B14 -> 78.9 | C51: 78.68 | D51: 78.14 | E51: =H14 -> 79.4 | F51: 79.24 | G51: 79.25 | H51: =N14 -> 80.08 | I51: 78.84 | J51: 78.41
A52: 10 | B52: =B15 -> 80.88 | C52: 79.84 | D52: 80 | E52: =H15 -> 82.22 | F52: 80.84 | G52: 80.88 | H52: =N15 -> 82.25 | I52: 80.86 | J52: 80.96
A53: 15 | B53: =B16 -> 82.08 | C53: 81.16 | D53: 82.82 | E53: =H16 -> 82.32 | F53: 81.87 | G53: 83.03 | H53: =N16 -> 83.94 | I53: 82.6 | J53: 83.72
A54: 20 | B54: =B17 -> 83.65 | C54: 83.05 | D54: 84.44 | E54: =H17 -> 84.74 | F54: 83.65 | G54: 85.04 | H54: =N17 -> 86.31 | I54: 84.62 | J54: 85.23
A55: 30 | B55: =B18 -> 86.74 | C55: 85.25 | D55: 86.59 | E55: =H18 -> 87.78 | F55: 86.34 | G55: 87.32 | H55: =N18 -> 88.73 | I55: 86.07 | J55: 87.48
A56: 40 | B56: =B19 -> 87.17 | C56: 86.16 | D56: 88.45 | E56: =H19 -> 88.35 | F56: 86.34 | G56: 87.92 | H56: =N19 -> 88.99 | I56: 87.38 | J56: 89.36
A57: 50 | B57: =B20 -> 88.65 | C57: 87.43 | D57: 89.83 | E57: =H20 -> 89.05 | F57: 87.43 | G57: 89.35 | H57: =N20 -> 89.81 | I57: 88.28 | J57: 90.07
A58: 60 | B58: =B21 -> 88.77 | C58: 87.27 | D58: 89.68 | E58: =H21 -> 89.66 | F58: 88.26 | G58: 90.08 | H58: =N21 -> 90.19 | I58: 87.95 | J58: 90.19
A59: 70 | B59: =B22 -> 89.44 | C59: 88.13 | D59: 90.1 | E59: =H22 -> 89.47 | F59: 87.96 | G59: 90 | H59: =N22 -> 90.05 | I59: 88.22 | J59: 90.51
A60: 80 | B60: =B23 -> 89.84 | C60: 87.84 | D60: 90.47 | E60: =H23 -> 90.14 | F60: 88.02 | G60: 89.97 | H60: =N23 -> 90.39 | I60: 88.55 | J60: 90.62
A61: 90 | B61: =B24 -> 89.39 | C61: 88.08 | D61: 89.88 | E61: =H24 -> 90.05 | F61: 88.91 | G61: 90.43 | H61: =N24 -> 90.95 | I61: 88.28 | J61: 91.15
A62: 100 | B62: =B25 -> 89.92 | C62: 88.78 | D62: 90.55 | E62: =H25 -> 90.36 | F62: 88.83 | G62: 90.81 | H62: =N25 -> 90.19 | I62: 88.44 | J62: 90.62
A63: 110 | B63: =B26 -> 90.32 | C63: 88.7 | D63: 90.37 | E63: =H26 -> 89.59 | F63: 88.2 | G63: 89.98 | H63: =N26 -> 90.52 | I63: 88.75 | J63: 90.57
A64: 120 | B64: =B27 -> 89.92 | C64: 88.56 | D64: 90.02 | E64: =H27 -> 90.03 | F64: 88.89 | G64: 90.59 | H64: =N27 -> 90.14 | I64: 88.5 | J64: 90.73
